Service Delivery Area(T),Service Delivery Team(T),ExpenditureGroup(T),Account(T),Supplier Name(T),Trans Date,Amount
Children�s Safeguarding & Family Support,Child Protection & Family Support,Transport-Related Expenditure,Taxi Costs,24X7 Ltd,15/12/2023,888.64
Children�s Safeguarding & Family Support,Family Connect & Childrens Centres,Transport-Related Expenditure,Taxi Costs,24X7 Ltd,07/12/2023,132.44
Children�s Safeguarding & Family Support,"Family Placements, Children in Care, Leaving Care & Emergency Duty Team",Transport-Related Expenditure,Taxi Costs,24X7 Ltd,11/12/2023,"1,353.00"
Children�s Safeguarding & Family Support,"Family Placements, Children in Care, Leaving Care & Emergency Duty Team",Transport-Related Expenditure,Taxi Costs,24X7 Ltd,19/12/2023,118.82
Children�s Safeguarding & Family Support,"Family Placements, Children in Care, Leaving Care & Emergency Duty Team",Transport-Related Expenditure,Taxi Costs,24X7 Ltd,19/12/2023,"1,821.48"
Education & Skills,SEND (0-25),Transport-Related Expenditure,Taxi Costs,24X7 Ltd,12/12/2023,"2,680.80"
Education & Skills,SEND (0-25),Transport-Related Expenditure,Taxi Costs,24X7 Ltd,12/12/2023,"2,546.76"
Neighbourhood & Enforcement Services,Strategic Transport & Highway Network Management,Transport-Related Expenditure,Taxi Costs,24X7 Ltd,12/12/2023,"3,272.94"
Policy & Governance,Governance & Legal Services,Supplies & Services,Legal Expenses,39 Essex Chambers,05/12/2023,750.00
Adult Social Care,My Options,Premises-Related Expenditure,R&M -Buildings DLO Charge,A E C & Co Ltd,21/12/2023,135.00
Prosperity & Investment,Regeneration & Investment,Capital Expenditure,External Professional Fees,A.R.M. Surveys Ltd,21/12/2023,"1,750.00"
Prosperity & Investment,BiT,Premises-Related Expenditure,R&M -Buildings DLO Charge,A1 Glass & Glazing Limited,06/12/2023,"1,440.00"
Prosperity & Investment,BiT,Premises-Related Expenditure,R&M -Buildings DLO Charge,A1 Glass & Glazing Limited,08/12/2023,120.00
Prosperity & Investment,BiT,Premises-Related Expenditure,R&M -Buildings DLO Charge,A1 Glass & Glazing Limited,08/12/2023,"2,180.00"
Prosperity & Investment,BiT,Premises-Related Expenditure,R&M -Buildings DLO Charge,A1 Glass & Glazing Limited,08/12/2023,220.00
Prosperity & Investment,BiT,Premises-Related Expenditure,R&M -Buildings DLO Charge,A1 Glass & Glazing Limited,08/12/2023,220.00
Prosperity & Investment,BiT,Premises-Related Expenditure,R&M -Buildings DLO Charge,A1 Glass & Glazing Limited,13/12/2023,285.00
Prosperity & Investment,BiT,Premises-Related Expenditure,R&M -Buildings DLO Charge,A1 Glass & Glazing Limited,14/12/2023,320.00
Prosperity & Investment,BiT,Premises-Related Expenditure,R&M -Buildings DLO Charge,A1 Glass & Glazing Limited,18/12/2023,210.00
Prosperity & Investment,BiT,Premises-Related Expenditure,R&M -Buildings DLO Charge,A1 Glass & Glazing Limited,18/12/2023,145.00
Prosperity & Investment,BiT,Premises-Related Expenditure,R&M -Buildings DLO Charge,A1 Glass & Glazing Limited,18/12/2023,200.00
Prosperity & Investment,BiT,Premises-Related Expenditure,R&M -Buildings DLO Charge,A1 Glass & Glazing Limited,18/12/2023,125.00
Prosperity & Investment,BiT,Premises-Related Expenditure,R&M -Buildings DLO Charge,A1 Glass & Glazing Limited,18/12/2023,125.00
Prosperity & Investment,BiT,Premises-Related Expenditure,R&M -Buildings DLO Charge,A1 Glass & Glazing Limited,18/12/2023,110.00
Health & Wellbeing,Consultant in Public Health,Supplies & Services,Sub Contractors,A Rapid Diagnostics Limited,19/12/2023,"1,104.00"
Health & Wellbeing,Consultant in Public Health,Supplies & Services,Sub Contractors,A Rapid Diagnostics Limited,19/12/2023,828.00
Health & Wellbeing,Consultant in Public Health,Supplies & Services,Sub Contractors,A Rapid Diagnostics Limited,19/12/2023,414.00
Health & Wellbeing,Consultant in Public Health,Supplies & Services,Sub Contractors,A Rapid Diagnostics Limited,19/12/2023,257.27
Health & Wellbeing,Consultant in Public Health,Supplies & Services,Sub Contractors,A Rapid Diagnostics Limited,19/12/2023,335.27
Health & Wellbeing,Consultant in Public Health,Supplies & Services,Sub Contractors,A Rapid Diagnostics Limited,23/12/2023,828.00
Children�s Safeguarding & Family Support,Child Protection & Family Support,Employees,Staff Training,Ability Smart Ltd,01/12/2023,"1,026.00"
"Communities, Customer & Commercial Services",Sport & Leisure,Supplies & Services,Payment Of Income Collected,ABRAHAM DARBY ACADEMY ,21/12/2023,"4,104.98"
Adult Social Care,My Options,Supplies & Services,Computer Software (Maint),Access UK Ltd,06/12/2023,150.00
Adult Social Care,My Options,Supplies & Services,Computer Software (Maint),Access UK Ltd,06/12/2023,494.40
Adult Social Care,Prevention & Independence - Older Adults & Disability,Supplies & Services,Carriage/Delivery Charge,Accora,19/12/2023,175.00
Adult Social Care,Prevention & Independence - Older Adults & Disability,Supplies & Services,Aids & Appliances,Accora,19/12/2023,998.00
Education & Skills,SEND (0-25),Third Party Payments,DSG - High Needs Block,Acorn Care & Education Ltd,22/12/2023,"28,969.67"
Education & Skills,SEND (0-25),Supplies & Services,Health & Safety Expenses,Activate for Kids Ltd,14/12/2023,"1,216.26"
Education & Skills,SEND (0-25),Supplies & Services,Health & Safety Expenses,Activate for Kids Ltd,19/12/2023,"1,731.84"
Prosperity & Investment,BiT,Premises-Related Expenditure,R&M -Buildings DLO Charge,REDACTED PERSONAL INFORMATION,04/12/2023,150.00
Policy & Governance,Governance & Legal Services,Employees,Professional Subs,ADSO ,14/12/2023,280.50
Neighbourhood & Enforcement Services,Strategic Transport & Highway Network Management,Transport-Related Expenditure,Vehicle Parts,AEM GROUP LTD,04/12/2023,518.99
Neighbourhood & Enforcement Services,Strategic Transport & Highway Network Management,Transport-Related Expenditure,Vehicle Parts,AEM GROUP LTD,04/12/2023,483.09
Neighbourhood & Enforcement Services,Strategic Transport & Highway Network Management,Transport-Related Expenditure,Vehicle Parts,AEM GROUP LTD,04/12/2023,252.60
Neighbourhood & Enforcement Services,Strategic Transport & Highway Network Management,Transport-Related Expenditure,Vehicle Parts,AEM GROUP LTD,04/12/2023,157.86
Neighbourhood & Enforcement Services,Strategic Transport & Highway Network Management,Transport-Related Expenditure,Vehicle Parts,AEM GROUP LTD,04/12/2023,168.00
Neighbourhood & Enforcement Services,Strategic Transport & Highway Network Management,Transport-Related Expenditure,Vehicle Parts,AEM GROUP LTD,04/12/2023,728.03
Neighbourhood & Enforcement Services,Strategic Transport & Highway Network Management,Transport-Related Expenditure,Vehicle Parts,AEM GROUP LTD,04/12/2023,312.40
Neighbourhood & Enforcement Services,Strategic Transport & Highway Network Management,Transport-Related Expenditure,Vehicle Parts,AEM GROUP LTD,04/12/2023,180.00
Neighbourhood & Enforcement Services,Strategic Transport & Highway Network Management,Transport-Related Expenditure,Vehicle Parts,AEM GROUP LTD,04/12/2023,220.20
Neighbourhood & Enforcement Services,Strategic Transport & Highway Network Management,Transport-Related Expenditure,Vehicle Parts,AEM GROUP LTD,04/12/2023,"1,087.50"
Neighbourhood & Enforcement Services,Strategic Transport & Highway Network Management,Transport-Related Expenditure,Vehicle Parts,AEM GROUP LTD,19/12/2023,414.50
Adult Social Care,"Commissioning, Procurement & Brokerage",Supplies & Services,Refreshments Meetings,AFC Telford Holdings Limited,21/12/2023,978.50
Policy & Governance,Governance & Legal Services,Premises-Related Expenditure,Hire Of Rooms,AFC Telford Holdings Limited,14/12/2023,375.00
Policy & Governance,Governance & Legal Services,Premises-Related Expenditure,Hire Of Rooms,AFC Telford Holdings Limited,14/12/2023,350.00
Adult Social Care,"Commissioning, Procurement & Brokerage",Supplies & Services,Other Grants (Expenses),AGE UK SHROPSHIRE TELFORD & WREKIN,06/12/2023,"20,471.50"
Adult Social Care,"Commissioning, Procurement & Brokerage",Supplies & Services,Other Grants (Expenses),AGE UK SHROPSHIRE TELFORD & WREKIN,06/12/2023,"15,463.00"
Adult Social Care,"Commissioning, Procurement & Brokerage",Supplies & Services,Other Grants (Expenses),AGE UK SHROPSHIRE TELFORD & WREKIN,08/12/2023,"56,693.00"
Education & Skills,Skills,Supplies & Services,Exam Fees,AIM Qualifications and Assessment Group,05/12/2023,542.50
"Communities, Customer & Commercial Services",ICT,Supplies & Services,Telecomms,Airband Community Internet,04/12/2023,295.00
"Communities, Customer & Commercial Services",ICT,Supplies & Services,Telecomms,Airband Community Internet,04/12/2023,295.00
Prosperity & Investment,Development Management,Capital Expenditure,Payments to Contractor,AJB CONTRACTING LTD,22/12/2023,"10,000.00"
Prosperity & Investment,Development Management,Capital Expenditure,Payments to Contractor,AJB CONTRACTING LTD,11/12/2023,"5,500.00"
Prosperity & Investment,Development Management,Capital Expenditure,Payments to Contractor,AJB CONTRACTING LTD,11/12/2023,550.00
Prosperity & Investment,Development Management,Capital Expenditure,Payments to Contractor,AJB CONTRACTING LTD,11/12/2023,"2,250.00"
Prosperity & Investment,Development Management,Capital Expenditure,Payments to Contractor,AJB CONTRACTING LTD,11/12/2023,"9,850.00"
"Communities, Customer & Commercial Services",Culture & Events,Supplies & Services,Artistes Fees,ALAN CLAYTON CONCERTS LTD,05/12/2023,"9,574.76"
Prosperity & Investment,Regeneration & Investment,Premises-Related Expenditure,R&M -Building Other,ALBRO DOOR SYSTEMS LTD,08/12/2023,"3,794.00"
Prosperity & Investment,Regeneration & Investment,Premises-Related Expenditure,R&M -Building Other,ALBRO DOOR SYSTEMS LTD,14/12/2023,"12,309.00"
"Housing, Employment & Infrastructure",Inward Investment & Business Support,Supplies & Services,Other Services,Alcium Software Ltd,11/12/2023,250.00
Adult Social Care,Prevention & Independence - Older Adults & Disability,Supplies & Services,Aids & Appliances,Alert-it Care Alarms,13/12/2023,255.78
Neighbourhood & Enforcement Services,Strategic Transport & Highway Network Management,Transport-Related Expenditure,Fuel,ALLSTAR BUSINESS SOLUTIONS LTD,12/12/2023,"9,104.04"
Children�s Safeguarding & Family Support,Child Protection & Family Support,Supplies & Services,Other Services,ALPHA BIOLABORATORIES LIMITED,29/12/2023,420.00
"Communities, Customer & Commercial Services",Culture & Events,Supplies & Services,Artistes Fees,Amande Concerts Ltd,05/12/2023,"7,156.40"
Neighbourhood & Enforcement Services,"Highways, Engineering & Project Delivery",Supplies & Services,Consultancy,Amey OW Ltd,13/12/2023,902.77
Neighbourhood & Enforcement Services,"Highways, Engineering & Project Delivery",Capital Expenditure,Payments to Contractor,Amey OW Ltd,13/12/2023,"4,219.22"
Neighbourhood & Enforcement Services,Waste & Neighbourhood Services,Premises-Related Expenditure,Grounds Maintenance - Other,Amey OW Ltd,12/12/2023,537.31
Prosperity & Investment,BiT,Premises-Related Expenditure,Solid Fuel,AMP CLEAN ENERGY,04/12/2023,"2,935.25"
"Housing, Employment & Infrastructure","Housing, Employment & Infrastructure",Capital Expenditure,Payments to Contractor,REDACTED PERSONAL INFORMATION,08/12/2023,"2,960.00"
"Communities, Customer & Commercial Services",Community Services,Supplies & Services,Grants To Voluntary Organis,Anstice Community Trust,18/12/2023,"1,500.00"
"Housing, Employment & Infrastructure",Inward Investment & Business Support,Supplies & Services,Other Services,ANTA Education Ltd,20/12/2023,"1,620.00"
"Housing, Employment & Infrastructure",Inward Investment & Business Support,Supplies & Services,Other Services,ANTA Education Ltd,20/12/2023,"2,400.00"
Prosperity & Investment,Regeneration & Investment,Supplies & Services,Consultancy,Anthony Collins Solicitors ,07/12/2023,750.00
"Communities, Customer & Commercial Services",Customer Relationships & Welfare Services,Supplies & Services,Permit Production - Blue Badge,APS Group,04/12/2023,941.60
"Communities, Customer & Commercial Services",Customer Relationships & Welfare Services,Supplies & Services,Permit Production - Blue Badge,APS Group,11/12/2023,"1,215.57"
Neighbourhood & Enforcement Services,Enforcement,Supplies & Services,Sub Contractors,APT SKIDATA LTD,11/12/2023,103.00
Prosperity & Investment,BiT,Premises-Related Expenditure,Service Contracts,AQUALOGIC LTD,07/12/2023,208.60
Prosperity & Investment,BiT,Premises-Related Expenditure,Service Contracts,AQUALOGIC LTD,07/12/2023,238.60
Prosperity & Investment,BiT,Premises-Related Expenditure,R&M -Buildings DLO Charge,AQUALOGIC LTD,08/12/2023,193.60
Neighbourhood & Enforcement Services,"Highways, Engineering & Project Delivery",Supplies & Services,Protective Clothing,ARCO LIMITED,13/12/2023,152.86
Adult Social Care,ASC Prevention & Enablement,Supplies & Services,Equipment - Hire,ARJO UK LTD,27/12/2023,600.00
Adult Social Care,My Options,Supplies & Services,Equipment - Purchase,ARJO UK LTD,22/12/2023,-580.00
Prosperity & Investment,BiT,Premises-Related Expenditure,Service Contracts,ARJO UK LTD,07/12/2023,476.00
Prosperity & Investment,BiT,Premises-Related Expenditure,Service Contracts,ARJO UK LTD,13/12/2023,121.00
Neighbourhood & Enforcement Services,Strategic Transport & Highway Network Management,Supplies & Services,Concessionary Travel,ARRIVA MIDLANDS LTD,20/12/2023,"141,306.53"
Policy & Governance,Organisational Development & Delivery,Employees,Staff Training,Art of Brilliance Ltd,05/12/2023,"1,000.00"
Policy & Governance,Organisational Development & Delivery,Employees,Staff Training,Art of Brilliance Ltd,20/12/2023,"1,000.00"
Prosperity & Investment,Regeneration & Investment,Supplies & Services,Fees,A.J.G INSURANCE BROKERS LTD ,07/12/2023,"5,207.56"
Prosperity & Investment,Regeneration & Investment,Premises-Related Expenditure,R&M -Building Other,A.J.G INSURANCE BROKERS LTD ,08/12/2023,"13,298.20"
"Communities, Customer & Commercial Services",Customer Relationships & Welfare Services,Supplies & Services,Blue Badge Assessments,Ascenti,07/12/2023,360.00
Health & Wellbeing,Health Improvement,Supplies & Services,Libraries Book Fund,A & H Library Services Ltd,14/12/2023,137.28
Health & Wellbeing,Health Improvement,Supplies & Services,Libraries Book Fund,A & H Library Services Ltd,14/12/2023,199.76
Adult Social Care,My Options,Supplies & Services,Equipment - Purchase,ASLES LTD,13/12/2023,165.00
"Communities, Customer & Commercial Services",Culture & Events,Supplies & Services,Equipment - Purchase,ASLES LTD,14/12/2023,114.30
Prosperity & Investment,BiT,Premises-Related Expenditure,R&M -Buildings DLO Charge,ASLES LTD,12/12/2023,"4,664.00"
Education & Skills,SEND (0-25),Third Party Payments,DSG - High Needs Block,Aspris Telford School,21/12/2023,"17,098.33"
Education & Skills,SEND (0-25),Third Party Payments,DSG - High Needs Block,Aspris Telford School,22/12/2023,"32,959.29"
Education & Skills,SEND (0-25),Third Party Payments,DSG - High Needs Block,Aspris Telford School,22/12/2023,"27,294.66"
Education & Skills,SEND (0-25),Third Party Payments,DSG - High Needs Block,Aspris Telford School,22/12/2023,"35,561.33"
Education & Skills,SEND (0-25),Third Party Payments,DSG - High Needs Block,Aspris Telford School,22/12/2023,"35,561.33"
Finance & Human Resources,Finance,Employees,Professional Subs,ASSOCIATION OF CHARTERED CERTIFIED ACCOUNTANTS ,21/12/2023,297.00
Finance & Human Resources,"Finance Manager (Business, Education & Care)",Employees,Professional Subs,ASSOCIATION OF CHARTERED CERTIFIED ACCOUNTANTS ,06/12/2023,134.00
Finance & Human Resources,"Finance Manager (Business, Education & Care)",Employees,Professional Subs,ASSOCIATION OF CHARTERED CERTIFIED ACCOUNTANTS ,22/12/2023,297.00
Neighbourhood & Enforcement Services,Strategic Transport & Highway Network Management,Third Party Payments,External Foster Care Payments,AtkinsR�alis UK Limited,04/12/2023,"20,315.57"
Neighbourhood & Enforcement Services,Strategic Transport & Highway Network Management,Supplies & Services,Consultancy,AtkinsR�alis UK Limited,13/12/2023,"6,400.00"
Neighbourhood & Enforcement Services,Strategic Transport & Highway Network Management,Supplies & Services,Consultancy,AtkinsR�alis UK Limited,13/12/2023,"6,400.00"
Neighbourhood & Enforcement Services,Strategic Transport & Highway Network Management,Supplies & Services,Consultancy,AtkinsR�alis UK Limited,14/12/2023,"16,590.00"
Neighbourhood & Enforcement Services,Strategic Transport & Highway Network Management,Supplies & Services,Consultancy,AtkinsR�alis UK Limited,22/12/2023,"-6,400.00"
Neighbourhood & Enforcement Services,Strategic Transport & Highway Network Management,Capital Expenditure,Payments to Contractor,AtkinsR�alis UK Limited,05/12/2023,"10,731.50"
Neighbourhood & Enforcement Services,Strategic Transport & Highway Network Management,Capital Expenditure,Payments to Contractor,AtkinsR�alis UK Limited,13/12/2023,"1,900.00"
Neighbourhood & Enforcement Services,Strategic Transport & Highway Network Management,Capital Expenditure,Payments to Contractor,AtkinsR�alis UK Limited,14/12/2023,"4,750.13"
Neighbourhood & Enforcement Services,Strategic Transport & Highway Network Management,Capital Expenditure,Payments to Contractor,AtkinsR�alis UK Limited,12/12/2023,"1,900.00"
Neighbourhood & Enforcement Services,Safer & Stronger Communities,Supplies & Services,Artistes Fees,AUNIQUEART,11/12/2023,280.00
Neighbourhood & Enforcement Services,Enforcement,Supplies & Services,Equipment - Purchase,Austin Mix Ltd,14/12/2023,450.00
Neighbourhood & Enforcement Services,Safer & Stronger Communities,Supplies & Services,Other Services,Austin Mix Ltd,13/12/2023,160.00
Prosperity & Investment,Regeneration & Investment,Supplies & Services,Advertising,Austin Mix Ltd,11/12/2023,515.00
Health & Wellbeing,Health Improvement,Supplies & Services,Computer Software (Maint),AXIELL LTD,07/12/2023,"5,220.81"
Neighbourhood & Enforcement Services,Strategic Transport & Highway Network Management,Supplies & Services,Concessionary Travel,B P B TRAVEL LTD,13/12/2023,559.00
Neighbourhood & Enforcement Services,Strategic Transport & Highway Network Management,Transport-Related Expenditure,Subsidised Routes,B P B TRAVEL LTD,13/12/2023,"12,790.00"
Neighbourhood & Enforcement Services,Strategic Transport & Highway Network Management,Transport-Related Expenditure,Subsidised Routes,B P B TRAVEL LTD,19/12/2023,"12,861.00"
Neighbourhood & Enforcement Services,Strategic Transport & Highway Network Management,Supplies & Services,Concessionary Travel,B P B TRAVEL LTD,19/12/2023,622.00
"Communities, Customer & Commercial Services",Sport & Leisure,Supplies & Services,Sport Equip - Purchase,Badcock Services,05/12/2023,150.00
Neighbourhood & Enforcement Services,"Highways, Engineering & Project Delivery",Third Party Payments,Highways Contract - BBLP,Balfour Beatty Civils Limited,20/12/2023,"981,787.06"
Neighbourhood & Enforcement Services,Strategic Transport & Highway Network Management,Supplies & Services,Concessionary Travel,Banga Travel,19/12/2023,"2,088.00"
Neighbourhood & Enforcement Services,Safer & Stronger Communities,Premises-Related Expenditure,General Rents,Barratt West Midlands,21/12/2023,700.00
Children�s Safeguarding & Family Support,"Family Placements, Children in Care, Leaving Care & Emergency Duty Team",Supplies & Services,Advertising,Bauer Radio Ltd,21/12/2023,901.59
Children�s Safeguarding & Family Support,"Family Placements, Children in Care, Leaving Care & Emergency Duty Team",Supplies & Services,Advertising,Bauer Radio Ltd,21/12/2023,"1,208.56"
Children�s Safeguarding & Family Support,"Family Placements, Children in Care, Leaving Care & Emergency Duty Team",Supplies & Services,Advertising,Bauer Radio Ltd,21/12/2023,370.00
Prosperity & Investment,BiT,Premises-Related Expenditure,Service Contracts,Belvidere Lifts Ltd,05/12/2023,125.00
Prosperity & Investment,BiT,Capital Expenditure,Payments to Contractor,Belvidere Lifts Ltd,21/12/2023,"33,944.00"
Adult Social Care,My Options,Premises-Related Expenditure,Clean Mats & Toilet Requisites,BERWICK CARE EQUIPMENT LTD,06/12/2023,130.50
Adult Social Care,My Options,Premises-Related Expenditure,Clean Mats & Toilet Requisites,BERWICK CARE EQUIPMENT LTD,06/12/2023,251.10
Adult Social Care,My Options,Premises-Related Expenditure,Clean Mats & Toilet Requisites,BERWICK CARE EQUIPMENT LTD,13/12/2023,392.20
Adult Social Care,My Options,Premises-Related Expenditure,Clean Mats & Toilet Requisites,BERWICK CARE EQUIPMENT LTD,21/12/2023,292.68
Adult Social Care,Prevention & Independence - Older Adults & Disability,Supplies & Services,Aids & Appliances,BERWICK CARE EQUIPMENT LTD,08/12/2023,662.00
Adult Social Care,Prevention & Independence - Older Adults & Disability,Supplies & Services,Aids & Appliances,BERWICK CARE EQUIPMENT LTD,14/12/2023,662.00
Prosperity & Investment,BiT,Supplies & Services,Publications,BESA Publications Ltd,21/12/2023,"9,027.75"
Children�s Safeguarding & Family Support,"Family Placements, Children in Care, Leaving Care & Emergency Duty Team",Supplies & Services,Section 17 Childrens Act,Birmingham City Council,19/12/2023,238.79
Health & Wellbeing,Health Improvement,Supplies & Services,Libraries Book Fund,Bolinda UK Ltd,04/12/2023,337.14
Health & Wellbeing,Health Improvement,Supplies & Services,Libraries Book Fund,Bolinda UK Ltd,04/12/2023,337.14
Health & Wellbeing,Health Improvement,Supplies & Services,Libraries Book Fund,Bolinda UK Ltd,04/12/2023,337.14
Health & Wellbeing,Health Improvement,Supplies & Services,Libraries Book Fund,Bolinda UK Ltd,04/12/2023,337.14
Health & Wellbeing,Health Improvement,Supplies & Services,Libraries Book Fund,Bolinda UK Ltd,04/12/2023,337.14
Health & Wellbeing,Health Improvement,Supplies & Services,Libraries Book Fund,Bolinda UK Ltd,04/12/2023,337.14
Health & Wellbeing,Health Improvement,Supplies & Services,Libraries Book Fund,Bolinda UK Ltd,04/12/2023,337.14
"Communities, Customer & Commercial Services",Sport & Leisure,Premises-Related Expenditure,Clean Mats & Toilet Requisites,Border Janitorial Supplies Limited,04/12/2023,216.89
"Communities, Customer & Commercial Services",Sport & Leisure,Premises-Related Expenditure,Clean Mats & Toilet Requisites,Border Janitorial Supplies Limited,04/12/2023,232.58
"Communities, Customer & Commercial Services",Sport & Leisure,Premises-Related Expenditure,Clean Mats & Toilet Requisites,Border Janitorial Supplies Limited,04/12/2023,190.80
"Communities, Customer & Commercial Services",Sport & Leisure,Premises-Related Expenditure,Clean Mats & Toilet Requisites,Border Janitorial Supplies Limited,04/12/2023,100.07
"Communities, Customer & Commercial Services",Sport & Leisure,Supplies & Services,Protective Clothing,Border Janitorial Supplies Limited,04/12/2023,171.49
"Communities, Customer & Commercial Services",Sport & Leisure,Premises-Related Expenditure,Clean Mats & Toilet Requisites,Border Janitorial Supplies Limited,04/12/2023,138.39
"Communities, Customer & Commercial Services",Sport & Leisure,Premises-Related Expenditure,Clean Mats & Toilet Requisites,Border Janitorial Supplies Limited,07/12/2023,108.34
"Communities, Customer & Commercial Services",Sport & Leisure,Supplies & Services,Chemicals/Cleaning Products,Border Janitorial Supplies Limited,07/12/2023,212.33
"Communities, Customer & Commercial Services",Sport & Leisure,Premises-Related Expenditure,Clean Mats & Toilet Requisites,Border Janitorial Supplies Limited,11/12/2023,236.43
"Communities, Customer & Commercial Services",Sport & Leisure,Premises-Related Expenditure,Clean Mats & Toilet Requisites,Border Janitorial Supplies Limited,11/12/2023,105.48
"Communities, Customer & Commercial Services",Sport & Leisure,Premises-Related Expenditure,Clean Mats & Toilet Requisites,Border Janitorial Supplies Limited,13/12/2023,192.18
"Communities, Customer & Commercial Services",Sport & Leisure,Premises-Related Expenditure,Clean Mats & Toilet Requisites,Border Janitorial Supplies Limited,13/12/2023,154.70
"Communities, Customer & Commercial Services",Sport & Leisure,Premises-Related Expenditure,Clean Mats & Toilet Requisites,Border Janitorial Supplies Limited,13/12/2023,127.05
"Communities, Customer & Commercial Services",Sport & Leisure,Premises-Related Expenditure,Clean Mats & Toilet Requisites,Border Janitorial Supplies Limited,13/12/2023,116.28
"Communities, Customer & Commercial Services",Sport & Leisure,Premises-Related Expenditure,Clean Mats & Toilet Requisites,Border Janitorial Supplies Limited,13/12/2023,267.58
"Communities, Customer & Commercial Services",Sport & Leisure,Premises-Related Expenditure,Clean Mats & Toilet Requisites,Border Janitorial Supplies Limited,13/12/2023,114.48
"Communities, Customer & Commercial Services",Sport & Leisure,Premises-Related Expenditure,Clean Mats & Toilet Requisites,Border Janitorial Supplies Limited,14/12/2023,128.55
"Communities, Customer & Commercial Services",Sport & Leisure,Premises-Related Expenditure,Clean Mats & Toilet Requisites,Border Janitorial Supplies Limited,14/12/2023,163.12
"Communities, Customer & Commercial Services",Sport & Leisure,Premises-Related Expenditure,Clean Mats & Toilet Requisites,Border Janitorial Supplies Limited,14/12/2023,184.13
"Communities, Customer & Commercial Services",Sport & Leisure,Premises-Related Expenditure,Clean Mats & Toilet Requisites,Border Janitorial Supplies Limited,14/12/2023,190.77
"Communities, Customer & Commercial Services",Sport & Leisure,Premises-Related Expenditure,Clean Mats & Toilet Requisites,Border Janitorial Supplies Limited,14/12/2023,257.14
"Communities, Customer & Commercial Services",Sport & Leisure,Premises-Related Expenditure,Clean Mats & Toilet Requisites,Border Janitorial Supplies Limited,14/12/2023,169.42
"Communities, Customer & Commercial Services",Sport & Leisure,Premises-Related Expenditure,Clean Mats & Toilet Requisites,Border Janitorial Supplies Limited,14/12/2023,825.00
"Communities, Customer & Commercial Services",Sport & Leisure,Premises-Related Expenditure,Clean Mats & Toilet Requisites,Border Janitorial Supplies Limited,15/12/2023,"5,800.00"
"Communities, Customer & Commercial Services",Sport & Leisure,Premises-Related Expenditure,Clean Mats & Toilet Requisites,Border Janitorial Supplies Limited,18/12/2023,142.41
"Communities, Customer & Commercial Services",Sport & Leisure,Premises-Related Expenditure,Clean Mats & Toilet Requisites,Border Janitorial Supplies Limited,18/12/2023,126.95
"Communities, Customer & Commercial Services",Sport & Leisure,Premises-Related Expenditure,Clean Mats & Toilet Requisites,Border Janitorial Supplies Limited,18/12/2023,147.73
"Communities, Customer & Commercial Services",Sport & Leisure,Premises-Related Expenditure,Clean Mats & Toilet Requisites,Border Janitorial Supplies Limited,18/12/2023,287.65
"Communities, Customer & Commercial Services",Sport & Leisure,Supplies & Services,Crockery/Hardware/Light Equip,Border Janitorial Supplies Limited,18/12/2023,178.21
"Communities, Customer & Commercial Services",Sport & Leisure,Premises-Related Expenditure,Clean Mats & Toilet Requisites,Border Janitorial Supplies Limited,19/12/2023,122.55
"Communities, Customer & Commercial Services",Sport & Leisure,Premises-Related Expenditure,Clean Mats & Toilet Requisites,Border Janitorial Supplies Limited,19/12/2023,103.58
"Communities, Customer & Commercial Services",Sport & Leisure,Premises-Related Expenditure,Clean Mats & Toilet Requisites,Border Janitorial Supplies Limited,19/12/2023,127.68
"Communities, Customer & Commercial Services",Sport & Leisure,Premises-Related Expenditure,Clean Mats & Toilet Requisites,Border Janitorial Supplies Limited,19/12/2023,104.97
"Communities, Customer & Commercial Services",Sport & Leisure,Premises-Related Expenditure,Clean Mats & Toilet Requisites,Border Janitorial Supplies Limited,19/12/2023,261.22
"Communities, Customer & Commercial Services",Sport & Leisure,Premises-Related Expenditure,Clean Mats & Toilet Requisites,Border Janitorial Supplies Limited,21/12/2023,109.17
Prosperity & Investment,BiT,Premises-Related Expenditure,Clean Mats & Toilet Requisites,Border Janitorial Supplies Limited,01/12/2023,379.67
Prosperity & Investment,BiT,Premises-Related Expenditure,Clean Mats & Toilet Requisites,Border Janitorial Supplies Limited,05/12/2023,215.53
Neighbourhood & Enforcement Services,Safer & Stronger Communities,Supplies & Services,Other Services,BOURNVILLE VILLAGE TRUST,18/12/2023,"3,500.00"
Neighbourhood & Enforcement Services,Safer & Stronger Communities,Supplies & Services,Other Services,BOURNVILLE VILLAGE TRUST,21/12/2023,176.50
Prosperity & Investment,BiT,Premises-Related Expenditure,R&M -Buildings DLO Charge,B INDUSTRIAL SERVICES,05/12/2023,115.39
Prosperity & Investment,BiT,Premises-Related Expenditure,R&M -Buildings DLO Charge,B INDUSTRIAL SERVICES,05/12/2023,206.34
Prosperity & Investment,BiT,Premises-Related Expenditure,R&M -Buildings DLO Charge,B INDUSTRIAL SERVICES,05/12/2023,121.00
Prosperity & Investment,BiT,Premises-Related Expenditure,R&M -Buildings DLO Charge,B INDUSTRIAL SERVICES,05/12/2023,242.25
Prosperity & Investment,BiT,Premises-Related Expenditure,R&M -Buildings DLO Charge,B INDUSTRIAL SERVICES,05/12/2023,475.28
Prosperity & Investment,BiT,Premises-Related Expenditure,R&M -Buildings DLO Charge,B INDUSTRIAL SERVICES,12/12/2023,179.40
Prosperity & Investment,BiT,Premises-Related Expenditure,R&M -Buildings DLO Charge,B INDUSTRIAL SERVICES,12/12/2023,107.93
Prosperity & Investment,BiT,Premises-Related Expenditure,R&M -Buildings DLO Charge,B INDUSTRIAL SERVICES,13/12/2023,311.79
Prosperity & Investment,BiT,Premises-Related Expenditure,R&M -Buildings DLO Charge,B INDUSTRIAL SERVICES,13/12/2023,379.13
Prosperity & Investment,BiT,Premises-Related Expenditure,R&M -Buildings DLO Charge,B INDUSTRIAL SERVICES,13/12/2023,110.25
Prosperity & Investment,BiT,Premises-Related Expenditure,R&M -Buildings DLO Charge,B INDUSTRIAL SERVICES,13/12/2023,319.22
Prosperity & Investment,BiT,Premises-Related Expenditure,R&M -Buildings DLO Charge,B INDUSTRIAL SERVICES,13/12/2023,688.92
Prosperity & Investment,BiT,Premises-Related Expenditure,R&M -Buildings DLO Charge,B INDUSTRIAL SERVICES,13/12/2023,121.26
Prosperity & Investment,BiT,Premises-Related Expenditure,R&M -Buildings DLO Charge,B INDUSTRIAL SERVICES,13/12/2023,354.86
Prosperity & Investment,BiT,Premises-Related Expenditure,R&M -Buildings DLO Charge,B INDUSTRIAL SERVICES,13/12/2023,107.30
Prosperity & Investment,BiT,Premises-Related Expenditure,R&M -Buildings DLO Charge,B INDUSTRIAL SERVICES,13/12/2023,219.92
Prosperity & Investment,BiT,Premises-Related Expenditure,R&M -Buildings DLO Charge,B INDUSTRIAL SERVICES,18/12/2023,-110.25
Prosperity & Investment,BiT,Premises-Related Expenditure,R&M -Buildings DLO Charge,B INDUSTRIAL SERVICES,19/12/2023,250.94
"Communities, Customer & Commercial Services",ICT,Capital Expenditure,Payments to Contractor,Bramble Hub Limited,19/12/2023,"7,479.17"
"Communities, Customer & Commercial Services",ICT,Capital Expenditure,Payments to Contractor,Bramble Hub Limited,14/12/2023,"11,982.24"
"Communities, Customer & Commercial Services",Sport & Leisure,Premises-Related Expenditure,Swimming Pool Chemicals,BRENNTAG UK LIMITED,04/12/2023,136.84
"Communities, Customer & Commercial Services",Sport & Leisure,Supplies & Services,Carriage/Delivery Charge,BRENNTAG UK LIMITED,04/12/2023,103.00
"Communities, Customer & Commercial Services",Sport & Leisure,Premises-Related Expenditure,Swimming Pool Chemicals,BRENNTAG UK LIMITED,15/12/2023,387.00
Education & Skills,SEND (0-25),Third Party Payments,DSG - High Needs Block,Bridge Therapy,21/12/2023,426.00
Education & Skills,SEND (0-25),Third Party Payments,DSG - High Needs Block,Bridge Therapy,21/12/2023,612.00
Education & Skills,SEND (0-25),Third Party Payments,DSG - High Needs Block,Bridge Therapy,22/12/2023,722.00
"Housing, Employment & Infrastructure",Inward Investment & Business Support,Employees,Training Expenses,Brightcore Ltd,21/12/2023,"1,062.50"
Education & Skills,SEND (0-25),Third Party Payments,DSG - High Needs Block,Brightstar Futures Ltd,21/12/2023,990.00
Prosperity & Investment,BiT,Premises-Related Expenditure,Electricity,BRITISH GAS BUSINESS ,05/12/2023,294.26
Prosperity & Investment,BiT,Premises-Related Expenditure,Electricity,BRITISH GAS BUSINESS ,05/12/2023,236.97
Prosperity & Investment,BiT,Premises-Related Expenditure,Electricity,BRITISH GAS BUSINESS ,13/12/2023,"1,367.64"
Prosperity & Investment,BiT,Premises-Related Expenditure,Electricity,BRITISH GAS BUSINESS ,13/12/2023,141.70
Prosperity & Investment,BiT,Premises-Related Expenditure,Electricity,BRITISH GAS BUSINESS ,13/12/2023,432.76
Prosperity & Investment,BiT,Premises-Related Expenditure,Gas,BRITISH GAS BUSINESS ,21/12/2023,382.19
Prosperity & Investment,BiT,Premises-Related Expenditure,Electricity,BRITISH GAS BUSINESS ,29/12/2023,506.69
Prosperity & Investment,BiT,Premises-Related Expenditure,Electricity,BRITISH GAS TRADING LIMITED,19/12/2023,-387.00
Prosperity & Investment,BiT,Premises-Related Expenditure,Electricity,BRITISH GAS TRADING LIMITED,19/12/2023,488.65
"Communities, Customer & Commercial Services",Sport & Leisure,Supplies & Services,Subscriptions,BRITISH INSTITUTE OF CLEANING SCIENCE,06/12/2023,212.86
"Communities, Customer & Commercial Services",ICT,Supplies & Services,Telephones,BRITISH TELECOMMUNICATIONS PLC ,16/12/2023,"8,823.34"
Children�s Safeguarding & Family Support,Family Connect & Childrens Centres,Premises-Related Expenditure,Hire Of Rooms,Brookside Central,08/12/2023,120.00
"Communities, Customer & Commercial Services",Community Services,Supplies & Services,Grants To Voluntary Organis,Brookside Central,04/12/2023,"1,500.00"
"Communities, Customer & Commercial Services",Community Services,Supplies & Services,Grants To Voluntary Organis,Brookside Central,04/12/2023,250.00
Education & Skills,Skills,Premises-Related Expenditure,Hire Of Rooms,Brookside Central,20/12/2023,120.00
Education & Skills,Skills,Premises-Related Expenditure,Hire Of Rooms,Brookside Central,20/12/2023,476.00
Education & Skills,Skills,Premises-Related Expenditure,Hire Of Rooms,Brookside Central,21/12/2023,112.00
Neighbourhood & Enforcement Services,"Highways, Engineering & Project Delivery",Capital Expenditure,Payments to Contractor,Broxap Ltd,13/12/2023,715.00
Neighbourhood & Enforcement Services,"Highways, Engineering & Project Delivery",Capital Expenditure,Payments to Contractor,Broxap Ltd,13/12/2023,165.00
Children�s Safeguarding & Family Support,Family Connect & Childrens Centres,Supplies & Services,Consultancy,Building Bonds Ltd,18/12/2023,"10,000.00"
Prosperity & Investment,Regeneration & Investment,Premises-Related Expenditure,Water Rates,Business Stream Ltd,20/12/2023,106.82
"Communities, Customer & Commercial Services",Sport & Leisure,Supplies & Services,Sub Contractors,BUSINESS WATCH GUARDING LIMITED,14/12/2023,574.06
Prosperity & Investment,BiT,Supplies & Services,Security Services,BUSINESS WATCH GUARDING LIMITED,07/12/2023,477.84
Prosperity & Investment,BiT,Supplies & Services,Security Services,BUSINESS WATCH GUARDING LIMITED,07/12/2023,977.05
Prosperity & Investment,Regeneration & Investment,Supplies & Services,Security Services,BUSINESS WATCH GUARDING LIMITED,04/12/2023,530.20
Prosperity & Investment,Regeneration & Investment,Supplies & Services,Security Services,BUSINESS WATCH GUARDING LIMITED,07/12/2023,282.96
Prosperity & Investment,Regeneration & Investment,Premises-Related Expenditure,Window Cleaning,BUSY BEE CLEANING LTD,08/12/2023,330.80
Finance & Human Resources,Finance Manager (Corporate & Capital),Employees,Professional Subs,C I P F A,04/12/2023,380.00
Prosperity & Investment,Regeneration & Investment,Capital Expenditure,External Professional Fees,Cadent Gas Limited,29/12/2023,"8,305.44"
Prosperity & Investment,BiT,Premises-Related Expenditure,R&M -Buildings DLO Charge,C & S Carpet & Flooring,08/12/2023,172.65
"Communities, Customer & Commercial Services",Sport & Leisure,Supplies & Services,Crockery/Hardware/Light Equip,CALTEL CATERING & LAUNDRY EQUIPMENT LLP,04/12/2023,192.47
"Communities, Customer & Commercial Services",Sport & Leisure,Supplies & Services,Crockery/Hardware/Light Equip,CALTEL CATERING & LAUNDRY EQUIPMENT LLP,04/12/2023,120.00
"Communities, Customer & Commercial Services",Sport & Leisure,Supplies & Services,Crockery/Hardware/Light Equip,CALTEL CATERING & LAUNDRY EQUIPMENT LLP,18/12/2023,460.99
Prosperity & Investment,BiT,Premises-Related Expenditure,R&M -Buildings DLO Charge,CALTEL CATERING & LAUNDRY EQUIPMENT LLP,05/12/2023,"4,959.43"
Prosperity & Investment,BiT,Premises-Related Expenditure,R&M -Buildings DLO Charge,CALTEL CATERING & LAUNDRY EQUIPMENT LLP,07/12/2023,"1,614.00"
"Communities, Customer & Commercial Services",ICT,Supplies & Services,Telephones,CAPITA BUSINESS SERVICES LTD ,16/12/2023,"2,214.30"
"Communities, Customer & Commercial Services",ICT,Supplies & Services,Telephones,CAPITA BUSINESS SERVICES LTD ,18/12/2023,"54,735.00"
Adult Social Care,My Options,Premises-Related Expenditure,Clean Mats & Toilet Requisites,CARESHOP,06/12/2023,187.88
Neighbourhood & Enforcement Services,Strategic Transport & Highway Network Management,Supplies & Services,Consultancy,C West Ltd,05/12/2023,"1,370.60"
Neighbourhood & Enforcement Services,Strategic Transport & Highway Network Management,Supplies & Services,Consultancy,C West Ltd,05/12/2023,"1,255.10"
Neighbourhood & Enforcement Services,Strategic Transport & Highway Network Management,Supplies & Services,Consultancy,C West Ltd,05/12/2023,"1,771.00"
Neighbourhood & Enforcement Services,Strategic Transport & Highway Network Management,Supplies & Services,Consultancy,C West Ltd,18/12/2023,"1,805.65"
Adult Social Care,ASC Prevention & Enablement,Transport-Related Expenditure,Taxi Costs,C Ambulance,27/12/2023,187.25
Adult Social Care,ASC Prevention & Enablement,Transport-Related Expenditure,Taxi Costs,C Ambulance,27/12/2023,214.00
Adult Social Care,ASC Prevention & Enablement,Transport-Related Expenditure,Taxi Costs,C Ambulance,27/12/2023,160.50
Adult Social Care,ASC Prevention & Enablement,Transport-Related Expenditure,Taxi Costs,C Ambulance,27/12/2023,160.50
Adult Social Care,ASC Prevention & Enablement,Transport-Related Expenditure,Taxi Costs,C Ambulance,27/12/2023,346.00
Adult Social Care,ASC Prevention & Enablement,Transport-Related Expenditure,Taxi Costs,C Ambulance,27/12/2023,187.25
Adult Social Care,ASC Prevention & Enablement,Transport-Related Expenditure,Taxi Costs,C Ambulance,27/12/2023,187.25
Adult Social Care,ASC Prevention & Enablement,Transport-Related Expenditure,Taxi Costs,C Ambulance,27/12/2023,187.25
Adult Social Care,ASC Prevention & Enablement,Transport-Related Expenditure,Taxi Costs,C Ambulance,27/12/2023,187.25
Adult Social Care,ASC Prevention & Enablement,Transport-Related Expenditure,Taxi Costs,C Ambulance,27/12/2023,187.25
Adult Social Care,Prevention & Independence - Older Adults & Disability,Transport-Related Expenditure,Taxi Costs,C Ambulance,22/12/2023,220.00
Adult Social Care,Prevention & Independence - Older Adults & Disability,Transport-Related Expenditure,Taxi Costs,C Ambulance,22/12/2023,187.25
Adult Social Care,Prevention & Independence - Older Adults & Disability,Transport-Related Expenditure,Taxi Costs,C Ambulance,22/12/2023,160.50
Adult Social Care,Prevention & Independence - Older Adults & Disability,Transport-Related Expenditure,Taxi Costs,C Ambulance,22/12/2023,160.50
Adult Social Care,Prevention & Independence - Older Adults & Disability,Transport-Related Expenditure,Taxi Costs,C Ambulance,22/12/2023,187.25
Prosperity & Investment,Regeneration & Investment,Premises-Related Expenditure,Building Cleaning DSO,C WASTE DISPOSAL SERV LTD,04/12/2023,693.04
Prosperity & Investment,Regeneration & Investment,Premises-Related Expenditure,Building Cleaning DSO,C WASTE DISPOSAL SERV LTD,07/12/2023,470.60
Prosperity & Investment,Regeneration & Investment,Premises-Related Expenditure,Contract Cleaning,C WASTE DISPOSAL SERV LTD,14/12/2023,499.56
Prosperity & Investment,Regeneration & Investment,Premises-Related Expenditure,Building Cleaning DSO,C WASTE DISPOSAL SERV LTD,20/12/2023,467.56
Prosperity & Investment,Regeneration & Investment,Supplies & Services,Fees,Castlepoint Markets Ltd,19/12/2023,"5,000.00"
Prosperity & Investment,Regeneration & Investment,Supplies & Services,Fees,Castlepoint Markets Ltd,20/12/2023,"5,000.00"
Prosperity & Investment,Regeneration & Investment,Premises-Related Expenditure,Building Cleaning DSO,CATHEDRAL LEASING LTD,14/12/2023,100.36
Prosperity & Investment,Regeneration & Investment,Premises-Related Expenditure,Contract Cleaning,CATHEDRAL LEASING LTD,20/12/2023,100.36
Children�s Safeguarding & Family Support,Child Protection & Family Support,Supplies & Services,Comp Hardware (Purch / Hire),CCS MEDIA LIMITED,01/12/2023,126.00
Children�s Safeguarding & Family Support,Family Connect & Childrens Centres,Supplies & Services,Computer Consumables,CCS MEDIA LIMITED,04/12/2023,196.00
"Communities, Customer & Commercial Services",ICT,Supplies & Services,Mobile Phones,CCS MEDIA LIMITED,05/12/2023,"-8,928.00"
"Communities, Customer & Commercial Services",ICT,Supplies & Services,Computer Hardware (Maint),CCS MEDIA LIMITED,15/12/2023,"3,775.00"
"Communities, Customer & Commercial Services",ICT,Supplies & Services,Computer Hardware (Maint),CCS MEDIA LIMITED,15/12/2023,"6,920.00"
"Communities, Customer & Commercial Services",ICT,Supplies & Services,Computer Hardware (Maint),CCS MEDIA LIMITED,15/12/2023,444.00
"Communities, Customer & Commercial Services",ICT,Supplies & Services,Computer Hardware (Maint),CCS MEDIA LIMITED,15/12/2023,"16,103.20"
"Communities, Customer & Commercial Services",ICT,Supplies & Services,Comp Hardware (Purch / Hire),CCS MEDIA LIMITED,15/12/2023,"1,024.97"
"Communities, Customer & Commercial Services",ICT,Supplies & Services,Comp Hardware (Purch / Hire),CCS MEDIA LIMITED,15/12/2023,257.96
"Communities, Customer & Commercial Services",ICT,Capital Expenditure,Computer Hardware,CCS MEDIA LIMITED,07/12/2023,"1,005.00"
"Communities, Customer & Commercial Services",ICT,Capital Expenditure,Computer Hardware,CCS MEDIA LIMITED,07/12/2023,280.00
"Communities, Customer & Commercial Services",Sport & Leisure,Supplies & Services,Comp Hardware (Purch / Hire),CCS MEDIA LIMITED,04/12/2023,447.98
"Communities, Customer & Commercial Services",Sport & Leisure,Supplies & Services,Comp Hardware (Purch / Hire),CCS MEDIA LIMITED,15/12/2023,608.00
Education & Skills,SEND (0-25),Third Party Payments,DSG - High Needs Block,CENTRAL PARK NURSERY,21/12/2023,"1,393.13"
Prosperity & Investment,BiT,Premises-Related Expenditure,R&M -Buildings DLO Charge,Centre Stage Engineering Ltd,12/12/2023,"5,006.00"
"Housing, Employment & Infrastructure",Inward Investment & Business Support,Supplies & Services,Consultancy,CGR Business Solutions Limited,07/12/2023,906.25
"Housing, Employment & Infrastructure",Inward Investment & Business Support,Supplies & Services,Consultancy,CGR Business Solutions Limited,07/12/2023,250.00
Education & Skills,SEND (0-25),Third Party Payments,DSG - High Needs Block,Chalkline Education & Support Ltd,21/12/2023,300.00
Education & Skills,SEND (0-25),Third Party Payments,DSG - High Needs Block,Chalkline Education & Support Ltd,21/12/2023,500.00
Education & Skills,SEND (0-25),Third Party Payments,DSG - High Needs Block,Chalkline Education & Support Ltd,21/12/2023,720.00
Education & Skills,SEND (0-25),Third Party Payments,DSG - High Needs Block,Chalkline Education & Support Ltd,21/12/2023,500.00
Education & Skills,SEND (0-25),Third Party Payments,DSG - High Needs Block,Chalkline Education & Support Ltd,21/12/2023,576.00
Education & Skills,SEND (0-25),Third Party Payments,DSG - High Needs Block,Chalkline Education & Support Ltd,21/12/2023,450.00
"Communities, Customer & Commercial Services",Culture & Events,Supplies & Services,Artistes Fees,Chambers Management Touring Ltd,20/12/2023,"9,449.87"
Children�s Safeguarding & Family Support,Safeguarding Advisory,Third Party Payments,Private Contractors,Change Grow Live Services Ltd ,04/12/2023,"6,035.25"
Education & Skills,Pupil Support Services,Supplies & Services,Comp Software (Purch / Hire),Charanga Ltd.,18/12/2023,780.00
"Communities, Customer & Commercial Services",Sport & Leisure,Transport-Related Expenditure,Servicing & Repairs V&P,C AG & Turf,14/12/2023,212.23
Education & Skills,Pupil Support Services,Third Party Payments,DSG - High Needs Block,CHARLTON SCHOOL FUND,07/12/2023,"24,252.00"
"Communities, Customer & Commercial Services",Sport & Leisure,Supplies & Services,Crockery/Hardware/Light Equip,Charnwood Instrumentation Services Ltd,11/12/2023,646.00
Neighbourhood & Enforcement Services,Public Protection,Employees,Staff Training,Chartered Trading Standards Institute,14/12/2023,267.00
Children�s Safeguarding & Family Support,Family Connect & Childrens Centres,Supplies & Services,Other Grants (Expenses),CHILDCARE SOS,06/12/2023,138.37
Children�s Safeguarding & Family Support,Family Connect & Childrens Centres,Supplies & Services,Other Grants (Expenses),CHILDCARE SOS,06/12/2023,138.38
Children�s Safeguarding & Family Support,Family Connect & Childrens Centres,Supplies & Services,Other Grants (Expenses),CHILDCARE SOS,06/12/2023,138.38
Children�s Safeguarding & Family Support,Family Connect & Childrens Centres,Supplies & Services,Other Grants (Expenses),CHILDCARE SOS,08/12/2023,107.62
Children�s Safeguarding & Family Support,Family Connect & Childrens Centres,Supplies & Services,Other Grants (Expenses),CHILDCARE SOS,08/12/2023,107.63
Children�s Safeguarding & Family Support,Family Connect & Childrens Centres,Supplies & Services,Other Grants (Expenses),CHILDCARE SOS,08/12/2023,107.63
Education & Skills,SEND (0-25),Third Party Payments,DSG - High Needs Block,Childrensworld Newport,21/12/2023,803.28
Neighbourhood & Enforcement Services,Enforcement,Supplies & Services,Security Services,Chipside Ltd,07/12/2023,250.26
Neighbourhood & Enforcement Services,Enforcement,Supplies & Services,Security Services,Chipside Ltd,11/12/2023,245.08
Neighbourhood & Enforcement Services,Neighbourhood & Environmental Services,Supplies & Services,Other Grants (Expenses),CHURCH ASTON PARISH COUNCIL ,28/12/2023,600.00
Education & Skills,SEND (0-25),Third Party Payments,DSG - High Needs Block,Church Street Day Nursery,21/12/2023,401.64
"Communities, Customer & Commercial Services",ICT,Premises-Related Expenditure,Intra Committee - Premises,Churches Fire Security Ltd,16/12/2023,"4,623.50"
Education & Skills,Education & Skills,Capital Expenditure,Payments to Contractor,Churches Fire Security Ltd,20/12/2023,"4,375.76"
Prosperity & Investment,BiT,Premises-Related Expenditure,R&M -Buildings DLO Charge,Churches Fire Security Ltd,04/12/2023,247.75
Prosperity & Investment,BiT,Premises-Related Expenditure,R&M -Buildings DLO Charge,Churches Fire Security Ltd,04/12/2023,120.00
Prosperity & Investment,BiT,Premises-Related Expenditure,R&M -Buildings DLO Charge,Churches Fire Security Ltd,05/12/2023,352.25
Prosperity & Investment,BiT,Premises-Related Expenditure,R&M -Buildings DLO Charge,Churches Fire Security Ltd,08/12/2023,225.55
Prosperity & Investment,BiT,Premises-Related Expenditure,R&M -Buildings DLO Charge,Churches Fire Security Ltd,08/12/2023,126.00
Prosperity & Investment,BiT,Premises-Related Expenditure,R&M -Buildings DLO Charge,Churches Fire Security Ltd,08/12/2023,422.10
Prosperity & Investment,BiT,Premises-Related Expenditure,R&M -Buildings DLO Charge,Churches Fire Security Ltd,08/12/2023,113.90
Prosperity & Investment,BiT,Premises-Related Expenditure,R&M -Buildings DLO Charge,Churches Fire Security Ltd,08/12/2023,120.60
Prosperity & Investment,BiT,Premises-Related Expenditure,Service Contracts,Churches Fire Security Ltd,14/12/2023,166.25
Prosperity & Investment,BiT,Premises-Related Expenditure,R&M -Buildings DLO Charge,Churches Fire Security Ltd,14/12/2023,286.00
Prosperity & Investment,BiT,Premises-Related Expenditure,Service Contracts,Churches Fire Security Ltd,18/12/2023,806.00
Prosperity & Investment,BiT,Capital Expenditure,Payments to Contractor,Churches Fire Security Ltd,20/12/2023,896.24
Prosperity & Investment,Regeneration & Investment,Premises-Related Expenditure,R&M -Building Other,Churches Fire Security Ltd,18/12/2023,339.10
Neighbourhood & Enforcement Services,Enforcement,Employees,Professional Subs,CIEH,11/12/2023,585.00
Education & Skills,Consultancy & Advisory Services,Supplies & Services,Conference Expenses,CITY OF STOKE ON TRENT,20/12/2023,500.00
Finance & Human Resources,Finance Manager (Corporate & Capital),Supplies & Services,Computer Hardware (Maint),CIVICA UK LIMITED,12/12/2023,495.00
"Communities, Customer & Commercial Services",Customer Relationships & Welfare Services,Transfer Payments,Crisis Assistance Awards,CLEANIT CLEANING SERVICES,11/12/2023,"1,250.00"
Prosperity & Investment,Development Management,Supplies & Services,Consultancy,CLEANIT CLEANING SERVICES,20/12/2023,"1,890.00"
Neighbourhood & Enforcement Services,"Highways, Engineering & Project Delivery",Capital Expenditure,Payments to Contractor,The Tree Man,18/12/2023,684.00
Adult Social Care,Prevention & Independence - Older Adults & Disability,Supplies & Services,Equipment - Repair,Closomat Limited,08/12/2023,205.00
Adult Social Care,Prevention & Independence - Older Adults & Disability,Supplies & Services,Equipment - Repair,Closomat Limited,14/12/2023,307.00
"Communities, Customer & Commercial Services",Culture & Events,Supplies & Services,Advertising,Colston Media Ltd,11/12/2023,150.00
Prosperity & Investment,BiT,Premises-Related Expenditure,General Rents,COMBINED PROPERTY CONTROL,01/12/2023,"118,150.13"
Neighbourhood & Enforcement Services,Strategic Transport & Highway Network Management,Supplies & Services,Stationery,COMMUNITY TRANSPORT ASSOCIATION UK,04/12/2023,132.01
Prosperity & Investment,Regeneration & Investment,Capital Expenditure,Payments to Contractor,Complete Roofing Systems Ltd,22/12/2023,"147,487.50"
Prosperity & Investment,BiT,Capital Expenditure,Payments to Contractor,CONCERTO SUPPORT SERVICES LTD,06/12/2023,"1,000.00"
Prosperity & Investment,BiT,Capital Expenditure,Payments to Contractor,CONCERTO SUPPORT SERVICES LTD,07/12/2023,"1,000.00"
"Housing, Employment & Infrastructure",Inward Investment & Business Support,Supplies & Services,Consultancy,Connect Consultancy Limited,07/12/2023,250.00
"Communities, Customer & Commercial Services",ICT,Premises-Related Expenditure,R&M -Buildings DLO Charge,COOL SERVICES LTD,16/12/2023,215.00
Prosperity & Investment,BiT,Premises-Related Expenditure,Service Contracts,COOL SERVICES LTD,05/12/2023,247.76
Prosperity & Investment,BiT,Premises-Related Expenditure,Service Contracts,COOL SERVICES LTD,05/12/2023,306.00
Prosperity & Investment,BiT,Premises-Related Expenditure,R&M -Buildings DLO Charge,COOL SERVICES LTD,05/12/2023,666.16
Prosperity & Investment,BiT,Premises-Related Expenditure,Service Contracts,COOL SERVICES LTD,06/12/2023,"1,133.29"
Prosperity & Investment,BiT,Premises-Related Expenditure,R&M -Buildings DLO Charge,COOL SERVICES LTD,13/12/2023,371.42
Prosperity & Investment,BiT,Premises-Related Expenditure,R&M -Buildings DLO Charge,COOL SERVICES LTD,13/12/2023,109.95
Prosperity & Investment,BiT,Premises-Related Expenditure,Service Contracts,COOL SERVICES LTD,14/12/2023,"1,111.64"
Prosperity & Investment,BiT,Premises-Related Expenditure,Service Contracts,COOL SERVICES LTD,21/12/2023,227.00
Prosperity & Investment,BiT,Premises-Related Expenditure,R&M -Buildings DLO Charge,COOL SERVICES LTD,21/12/2023,346.70
Prosperity & Investment,BiT,Premises-Related Expenditure,R&M -Buildings DLO Charge,COOL SERVICES LTD,21/12/2023,348.69
Prosperity & Investment,BiT,Premises-Related Expenditure,R&M -Buildings DLO Charge,COOL SERVICES LTD,21/12/2023,371.42
Prosperity & Investment,BiT,Premises-Related Expenditure,Service Contracts,COOL SERVICES LTD,21/12/2023,412.28
Prosperity & Investment,BiT,Premises-Related Expenditure,Service Contracts,COOL SERVICES LTD,21/12/2023,330.94
Prosperity & Investment,BiT,Premises-Related Expenditure,R&M -Buildings DLO Charge,COOL SERVICES LTD,21/12/2023,"4,710.01"
Health & Wellbeing,Consultant in Public Health,Supplies & Services,Sub Contractors,Cranstoun,08/12/2023,"124,370.25"
Prosperity & Investment,BiT,Premises-Related Expenditure,Grounds Maintenance - Other,Cropper Grounds Maintenance Ltd,08/12/2023,"4,279.12"
Education & Skills,SEND (0-25),Third Party Payments,DSG - High Needs Block,CROSSBAR COACHING,21/12/2023,975.00
Education & Skills,SEND (0-25),Third Party Payments,DSG - High Needs Block,CROSSBAR COACHING,21/12/2023,"6,825.00"
Education & Skills,SEND (0-25),Third Party Payments,DSG - High Needs Block,CROSSBAR COACHING,21/12/2023,975.00
Education & Skills,SEND (0-25),Third Party Payments,DSG - High Needs Block,CROSSBAR COACHING,21/12/2023,975.00
Education & Skills,SEND (0-25),Third Party Payments,DSG - High Needs Block,CROSSBAR COACHING,21/12/2023,"8,775.00"
Education & Skills,SEND (0-25),Third Party Payments,DSG - High Needs Block,CROSSBAR COACHING,21/12/2023,"4,200.00"
Education & Skills,SEND (0-25),Third Party Payments,DSG - High Needs Block,CROSSBAR COACHING,21/12/2023,"1,950.00"
"Communities, Customer & Commercial Services",Culture & Events,Supplies & Services,Promotion Expenses,crowdEngage Limited,14/12/2023,378.85
Prosperity & Investment,Regeneration & Investment,Premises-Related Expenditure,R&M -Building Other,Cubic FM Ltd,05/12/2023,"15,000.00"
"Communities, Customer & Commercial Services",Sport & Leisure,Premises-Related Expenditure,R&M - Mechanical,Culligan LTD,21/12/2023,117.72
Neighbourhood & Enforcement Services,Safer & Stronger Communities,Supplies & Services,Other Services,CULTUREKIND,05/12/2023,"1,580.00"
Prosperity & Investment,BiT,Premises-Related Expenditure,Non Domestic Rates,CYNGOR GWYNEDD COUNCIL,21/12/2023,"16,585.00"
Neighbourhood & Enforcement Services,Strategic Transport & Highway Network Management,Capital Expenditure,Payments to Contractor,D&G Bus,11/12/2023,354.00
Children�s Safeguarding & Family Support,"Family Placements, Children in Care, Leaving Care & Emergency Duty Team",Premises-Related Expenditure,Hire Of Rooms,Dawley Baptist Church,07/12/2023,371.25
Education & Skills,Skills,Premises-Related Expenditure,Hire Of Rooms,Dawley Social Club,20/12/2023,"1,140.00"
Policy & Governance,Governance & Legal Services,Supplies & Services,Hospitality,DAWN YAPP-ALTINSOY,14/12/2023,168.06
Neighbourhood & Enforcement Services,Strategic Transport & Highway Network Management,Transport-Related Expenditure,Outside Hire,DAYS RENTAL,04/12/2023,240.24
Neighbourhood & Enforcement Services,Strategic Transport & Highway Network Management,Transport-Related Expenditure,Outside Hire,DAYS RENTAL,12/12/2023,300.30
Neighbourhood & Enforcement Services,Strategic Transport & Highway Network Management,Transport-Related Expenditure,Outside Hire,DAYS RENTAL,12/12/2023,410.10
Neighbourhood & Enforcement Services,Strategic Transport & Highway Network Management,Transport-Related Expenditure,Outside Hire,DAYS RENTAL,12/12/2023,300.30
Neighbourhood & Enforcement Services,Strategic Transport & Highway Network Management,Transport-Related Expenditure,Outside Hire,DAYS RENTAL,12/12/2023,300.30
Neighbourhood & Enforcement Services,Strategic Transport & Highway Network Management,Transport-Related Expenditure,Outside Hire,DAYS RENTAL,12/12/2023,410.10
Neighbourhood & Enforcement Services,Strategic Transport & Highway Network Management,Transport-Related Expenditure,Outside Hire,DAYS RENTAL,12/12/2023,410.10
Neighbourhood & Enforcement Services,Strategic Transport & Highway Network Management,Transport-Related Expenditure,Outside Hire,DAYS RENTAL,12/12/2023,300.30
Neighbourhood & Enforcement Services,Strategic Transport & Highway Network Management,Transport-Related Expenditure,Outside Hire,DAYS RENTAL,12/12/2023,410.10
Neighbourhood & Enforcement Services,Strategic Transport & Highway Network Management,Transport-Related Expenditure,Outside Hire,DAYS RENTAL,12/12/2023,920.00
Neighbourhood & Enforcement Services,Strategic Transport & Highway Network Management,Transport-Related Expenditure,Outside Hire,DAYS RENTAL,12/12/2023,920.00
Neighbourhood & Enforcement Services,Strategic Transport & Highway Network Management,Transport-Related Expenditure,Outside Hire,DAYS RENTAL,12/12/2023,"1,229.10"
Neighbourhood & Enforcement Services,Strategic Transport & Highway Network Management,Transport-Related Expenditure,Outside Hire,DAYS RENTAL,12/12/2023,467.94
Neighbourhood & Enforcement Services,Strategic Transport & Highway Network Management,Transport-Related Expenditure,Outside Hire,DAYS RENTAL,12/12/2023,794.68
Neighbourhood & Enforcement Services,Strategic Transport & Highway Network Management,Transport-Related Expenditure,Outside Hire,DAYS RENTAL,12/12/2023,"1,083.73"
Neighbourhood & Enforcement Services,Strategic Transport & Highway Network Management,Transport-Related Expenditure,Insurance Excess,DAYS RENTAL,12/12/2023,"1,000.00"
Neighbourhood & Enforcement Services,Strategic Transport & Highway Network Management,Transport-Related Expenditure,Outside Hire,DAYS RENTAL,12/12/2023,300.30
Neighbourhood & Enforcement Services,Strategic Transport & Highway Network Management,Transport-Related Expenditure,Outside Hire,DAYS RENTAL,12/12/2023,300.30
Neighbourhood & Enforcement Services,Strategic Transport & Highway Network Management,Transport-Related Expenditure,Outside Hire,DAYS RENTAL,12/12/2023,429.90
Neighbourhood & Enforcement Services,Strategic Transport & Highway Network Management,Transport-Related Expenditure,Vehicle Leasing Charges,DAYS RENTAL,18/12/2023,920.00
Neighbourhood & Enforcement Services,Strategic Transport & Highway Network Management,Transport-Related Expenditure,Vehicle Leasing Charges,DAYS RENTAL,18/12/2023,920.00
Education & Skills,Consultancy & Advisory Services,Employees,Training Exp�s (Facilitators),D U Consultancy LTD,12/12/2023,618.00
"Communities, Customer & Commercial Services",Sport & Leisure,Supplies & Services,Provisions,Delice de France,04/12/2023,364.38
Finance & Human Resources,Human Resources,Employees,Criminal Records Bureau Checks,DISCLOSURE & BARRING SERVICE,07/12/2023,"7,333.00"
"Communities, Customer & Commercial Services",Sport & Leisure,Supplies & Services,Advertising,DLM DISTRIBUTIONS LTD,19/12/2023,457.10
"Communities, Customer & Commercial Services",Sport & Leisure,Supplies & Services,Provisions,BIKOLD,07/12/2023,258.80
"Communities, Customer & Commercial Services",Sport & Leisure,Supplies & Services,Provisions,BIKOLD,07/12/2023,213.36
"Communities, Customer & Commercial Services",Sport & Leisure,Supplies & Services,Provisions,BIKOLD,07/12/2023,231.44
"Communities, Customer & Commercial Services",Sport & Leisure,Supplies & Services,Provisions,BIKOLD,07/12/2023,257.00
"Communities, Customer & Commercial Services",Sport & Leisure,Supplies & Services,Provisions,BIKOLD,07/12/2023,112.10
"Communities, Customer & Commercial Services",Sport & Leisure,Supplies & Services,Provisions,BIKOLD,07/12/2023,203.33
"Communities, Customer & Commercial Services",Sport & Leisure,Supplies & Services,Provisions,BIKOLD,07/12/2023,265.44
"Communities, Customer & Commercial Services",Sport & Leisure,Supplies & Services,Provisions,BIKOLD,07/12/2023,239.32
"Communities, Customer & Commercial Services",Sport & Leisure,Supplies & Services,Provisions,BIKOLD,07/12/2023,541.10
"Communities, Customer & Commercial Services",Sport & Leisure,Supplies & Services,Provisions,BIKOLD,07/12/2023,105.52
"Communities, Customer & Commercial Services",Sport & Leisure,Supplies & Services,Provisions,BIKOLD,07/12/2023,249.75
"Communities, Customer & Commercial Services",Sport & Leisure,Supplies & Services,Provisions,BIKOLD,07/12/2023,110.45
"Communities, Customer & Commercial Services",Sport & Leisure,Supplies & Services,Provisions,BIKOLD,07/12/2023,312.52
"Communities, Customer & Commercial Services",Sport & Leisure,Supplies & Services,Provisions,BIKOLD,07/12/2023,232.81
"Communities, Customer & Commercial Services",Sport & Leisure,Supplies & Services,Provisions,BIKOLD,07/12/2023,118.80
"Communities, Customer & Commercial Services",Sport & Leisure,Supplies & Services,Provisions,BIKOLD,07/12/2023,488.52
"Communities, Customer & Commercial Services",Sport & Leisure,Supplies & Services,Provisions,BIKOLD,07/12/2023,173.50
"Communities, Customer & Commercial Services",Sport & Leisure,Supplies & Services,Provisions,BIKOLD,07/12/2023,131.29
"Communities, Customer & Commercial Services",Sport & Leisure,Supplies & Services,Provisions,BIKOLD,07/12/2023,440.22
"Communities, Customer & Commercial Services",Sport & Leisure,Supplies & Services,Provisions,BIKOLD,07/12/2023,121.32
"Communities, Customer & Commercial Services",Sport & Leisure,Supplies & Services,Provisions,BIKOLD,07/12/2023,376.88
"Communities, Customer & Commercial Services",Sport & Leisure,Supplies & Services,Provisions,BIKOLD,07/12/2023,422.71
"Communities, Customer & Commercial Services",Sport & Leisure,Supplies & Services,Provisions,BIKOLD,07/12/2023,271.61
"Communities, Customer & Commercial Services",Sport & Leisure,Supplies & Services,Provisions,BIKOLD,07/12/2023,266.08
"Communities, Customer & Commercial Services",Sport & Leisure,Supplies & Services,Provisions,BIKOLD,07/12/2023,100.50
"Communities, Customer & Commercial Services",Sport & Leisure,Supplies & Services,Provisions,BIKOLD,07/12/2023,311.04
"Communities, Customer & Commercial Services",Sport & Leisure,Supplies & Services,Provisions,BIKOLD,07/12/2023,258.07
"Communities, Customer & Commercial Services",Sport & Leisure,Supplies & Services,Provisions,BIKOLD,07/12/2023,-127.71
"Communities, Customer & Commercial Services",Sport & Leisure,Supplies & Services,Provisions,BIKOLD,07/12/2023,424.47
"Communities, Customer & Commercial Services",Sport & Leisure,Supplies & Services,Provisions,BIKOLD,07/12/2023,400.28
"Communities, Customer & Commercial Services",Sport & Leisure,Supplies & Services,Provisions,BIKOLD,07/12/2023,118.47
"Communities, Customer & Commercial Services",Sport & Leisure,Supplies & Services,Provisions,BIKOLD,07/12/2023,247.34
"Communities, Customer & Commercial Services",Sport & Leisure,Supplies & Services,Provisions,BIKOLD,07/12/2023,444.76
"Communities, Customer & Commercial Services",Sport & Leisure,Supplies & Services,Provisions,BIKOLD,07/12/2023,258.70
"Communities, Customer & Commercial Services",Sport & Leisure,Supplies & Services,Provisions,BIKOLD,07/12/2023,166.38
"Communities, Customer & Commercial Services",Sport & Leisure,Supplies & Services,Provisions,BIKOLD,07/12/2023,193.38
"Communities, Customer & Commercial Services",Sport & Leisure,Supplies & Services,Provisions,BIKOLD,07/12/2023,185.18
"Communities, Customer & Commercial Services",Sport & Leisure,Supplies & Services,Provisions,BIKOLD,07/12/2023,266.94
"Communities, Customer & Commercial Services",Sport & Leisure,Supplies & Services,Provisions,BIKOLD,07/12/2023,258.51
"Communities, Customer & Commercial Services",Sport & Leisure,Supplies & Services,Provisions,BIKOLD,07/12/2023,234.30
"Communities, Customer & Commercial Services",Sport & Leisure,Supplies & Services,Provisions,BIKOLD,07/12/2023,425.96
"Communities, Customer & Commercial Services",Sport & Leisure,Supplies & Services,Provisions,BIKOLD,07/12/2023,245.46
"Communities, Customer & Commercial Services",Sport & Leisure,Supplies & Services,Provisions,BIKOLD,07/12/2023,336.11
"Communities, Customer & Commercial Services",Sport & Leisure,Supplies & Services,Provisions,BIKOLD,07/12/2023,118.56
"Communities, Customer & Commercial Services",Sport & Leisure,Supplies & Services,Provisions,BIKOLD,07/12/2023,106.25
"Communities, Customer & Commercial Services",Sport & Leisure,Supplies & Services,Provisions,BIKOLD,07/12/2023,237.11
"Communities, Customer & Commercial Services",Sport & Leisure,Supplies & Services,Provisions,BIKOLD,07/12/2023,279.28
"Communities, Customer & Commercial Services",Sport & Leisure,Supplies & Services,Provisions,BIKOLD,07/12/2023,178.08
"Communities, Customer & Commercial Services",Sport & Leisure,Supplies & Services,Provisions,BIKOLD,07/12/2023,116.42
"Communities, Customer & Commercial Services",Sport & Leisure,Supplies & Services,Provisions,BIKOLD,07/12/2023,221.67
"Communities, Customer & Commercial Services",Sport & Leisure,Supplies & Services,Provisions,BIKOLD,07/12/2023,101.03
"Communities, Customer & Commercial Services",Sport & Leisure,Supplies & Services,Provisions,BIKOLD,07/12/2023,125.69
"Communities, Customer & Commercial Services",Sport & Leisure,Supplies & Services,Provisions,BIKOLD,07/12/2023,163.04
"Communities, Customer & Commercial Services",Sport & Leisure,Supplies & Services,Provisions,BIKOLD,07/12/2023,109.07
"Communities, Customer & Commercial Services",Sport & Leisure,Supplies & Services,Provisions,BIKOLD,07/12/2023,103.74
"Communities, Customer & Commercial Services",Sport & Leisure,Supplies & Services,Provisions,BIKOLD,07/12/2023,153.16
"Communities, Customer & Commercial Services",Sport & Leisure,Supplies & Services,Provisions,BIKOLD,07/12/2023,206.85
"Communities, Customer & Commercial Services",Sport & Leisure,Supplies & Services,Provisions,BIKOLD,07/12/2023,266.72
"Communities, Customer & Commercial Services",Sport & Leisure,Supplies & Services,Provisions,BIKOLD,07/12/2023,284.40
"Communities, Customer & Commercial Services",Sport & Leisure,Supplies & Services,Provisions,BIKOLD,07/12/2023,164.14
"Communities, Customer & Commercial Services",Sport & Leisure,Supplies & Services,Provisions,BIKOLD,07/12/2023,200.03
"Communities, Customer & Commercial Services",Sport & Leisure,Supplies & Services,Provisions,BIKOLD,07/12/2023,130.62
"Communities, Customer & Commercial Services",Sport & Leisure,Supplies & Services,Provisions,BIKOLD,07/12/2023,211.63
"Communities, Customer & Commercial Services",Sport & Leisure,Supplies & Services,Provisions,BIKOLD,07/12/2023,369.15
"Communities, Customer & Commercial Services",Sport & Leisure,Supplies & Services,Provisions,BIKOLD,07/12/2023,307.91
"Communities, Customer & Commercial Services",Sport & Leisure,Supplies & Services,Provisions,BIKOLD,07/12/2023,427.70
"Communities, Customer & Commercial Services",Sport & Leisure,Supplies & Services,Provisions,BIKOLD,07/12/2023,237.71
"Communities, Customer & Commercial Services",Sport & Leisure,Supplies & Services,Provisions,BIKOLD,07/12/2023,121.92
"Communities, Customer & Commercial Services",Sport & Leisure,Supplies & Services,Provisions,BIKOLD,07/12/2023,115.19
"Communities, Customer & Commercial Services",Sport & Leisure,Supplies & Services,Provisions,BIKOLD,07/12/2023,620.64
"Communities, Customer & Commercial Services",Sport & Leisure,Supplies & Services,Provisions,BIKOLD,07/12/2023,394.12
"Communities, Customer & Commercial Services",Sport & Leisure,Supplies & Services,Provisions,BIKOLD,07/12/2023,278.95
"Communities, Customer & Commercial Services",Sport & Leisure,Supplies & Services,Provisions,BIKOLD,07/12/2023,636.92
"Communities, Customer & Commercial Services",Sport & Leisure,Supplies & Services,Provisions,BIKOLD,07/12/2023,208.56
"Communities, Customer & Commercial Services",Sport & Leisure,Supplies & Services,Provisions,BIKOLD,07/12/2023,255.87
"Communities, Customer & Commercial Services",Sport & Leisure,Supplies & Services,Provisions,BIKOLD,07/12/2023,257.41
"Communities, Customer & Commercial Services",Sport & Leisure,Supplies & Services,Provisions,BIKOLD,07/12/2023,148.12
"Communities, Customer & Commercial Services",Sport & Leisure,Supplies & Services,Provisions,BIKOLD,07/12/2023,478.41
"Communities, Customer & Commercial Services",Sport & Leisure,Supplies & Services,Provisions,BIKOLD,07/12/2023,195.83
"Communities, Customer & Commercial Services",Sport & Leisure,Supplies & Services,Provisions,BIKOLD,07/12/2023,137.67
"Communities, Customer & Commercial Services",Sport & Leisure,Supplies & Services,Provisions,BIKOLD,07/12/2023,117.60
"Communities, Customer & Commercial Services",Sport & Leisure,Supplies & Services,Provisions,BIKOLD,07/12/2023,181.29
"Communities, Customer & Commercial Services",Sport & Leisure,Supplies & Services,Provisions,BIKOLD,07/12/2023,724.72
"Communities, Customer & Commercial Services",Sport & Leisure,Supplies & Services,Provisions,BIKOLD,07/12/2023,440.14
"Communities, Customer & Commercial Services",Sport & Leisure,Supplies & Services,Provisions,BIKOLD,07/12/2023,350.99
"Communities, Customer & Commercial Services",Sport & Leisure,Supplies & Services,Provisions,BIKOLD,07/12/2023,"1,266.82"
"Communities, Customer & Commercial Services",Sport & Leisure,Supplies & Services,Provisions,BIKOLD,07/12/2023,626.28
"Communities, Customer & Commercial Services",Sport & Leisure,Supplies & Services,Provisions,BIKOLD,07/12/2023,126.55
"Communities, Customer & Commercial Services",Sport & Leisure,Supplies & Services,Provisions,BIKOLD,07/12/2023,271.99
"Communities, Customer & Commercial Services",Sport & Leisure,Supplies & Services,Provisions,BIKOLD,07/12/2023,"1,029.53"
"Communities, Customer & Commercial Services",Sport & Leisure,Supplies & Services,Provisions,BIKOLD,07/12/2023,170.84
"Communities, Customer & Commercial Services",Sport & Leisure,Supplies & Services,Provisions,BIKOLD,07/12/2023,134.29
"Communities, Customer & Commercial Services",Sport & Leisure,Supplies & Services,Provisions,BIKOLD,07/12/2023,282.67
"Communities, Customer & Commercial Services",Sport & Leisure,Supplies & Services,Provisions,BIKOLD,07/12/2023,353.11
"Communities, Customer & Commercial Services",Sport & Leisure,Supplies & Services,Provisions,BIKOLD,07/12/2023,332.90
"Communities, Customer & Commercial Services",Sport & Leisure,Supplies & Services,Provisions,BIKOLD,07/12/2023,811.24
"Communities, Customer & Commercial Services",Sport & Leisure,Supplies & Services,Provisions,BIKOLD,07/12/2023,580.41
"Communities, Customer & Commercial Services",Sport & Leisure,Supplies & Services,Provisions,BIKOLD,07/12/2023,159.31
"Communities, Customer & Commercial Services",Sport & Leisure,Supplies & Services,Provisions,BIKOLD,07/12/2023,313.72
"Communities, Customer & Commercial Services",Sport & Leisure,Supplies & Services,Provisions,BIKOLD,07/12/2023,194.30
"Communities, Customer & Commercial Services",Sport & Leisure,Supplies & Services,Provisions,BIKOLD,07/12/2023,173.74
"Communities, Customer & Commercial Services",Sport & Leisure,Supplies & Services,Provisions,BIKOLD,07/12/2023,363.34
"Communities, Customer & Commercial Services",Sport & Leisure,Supplies & Services,Provisions,BIKOLD,07/12/2023,332.00
"Communities, Customer & Commercial Services",Sport & Leisure,Supplies & Services,Provisions,BIKOLD,07/12/2023,384.63
"Communities, Customer & Commercial Services",Sport & Leisure,Supplies & Services,Provisions,BIKOLD,07/12/2023,188.09
"Communities, Customer & Commercial Services",Sport & Leisure,Supplies & Services,Provisions,BIKOLD,07/12/2023,272.55
"Communities, Customer & Commercial Services",Sport & Leisure,Supplies & Services,Provisions,BIKOLD,07/12/2023,130.12
"Communities, Customer & Commercial Services",Sport & Leisure,Supplies & Services,Provisions,BIKOLD,07/12/2023,140.43
"Communities, Customer & Commercial Services",Sport & Leisure,Supplies & Services,Provisions,BIKOLD,07/12/2023,189.11
"Communities, Customer & Commercial Services",Sport & Leisure,Supplies & Services,Provisions,BIKOLD,07/12/2023,657.57
"Communities, Customer & Commercial Services",Sport & Leisure,Supplies & Services,Provisions,BIKOLD,07/12/2023,483.09
"Communities, Customer & Commercial Services",Sport & Leisure,Supplies & Services,Provisions,BIKOLD,07/12/2023,194.57
"Communities, Customer & Commercial Services",Sport & Leisure,Supplies & Services,Provisions,BIKOLD,07/12/2023,168.73
"Communities, Customer & Commercial Services",Sport & Leisure,Supplies & Services,Provisions,BIKOLD,07/12/2023,328.32
"Communities, Customer & Commercial Services",Sport & Leisure,Supplies & Services,Provisions,BIKOLD,07/12/2023,336.62
"Communities, Customer & Commercial Services",Sport & Leisure,Supplies & Services,Provisions,BIKOLD,07/12/2023,209.65
"Communities, Customer & Commercial Services",Sport & Leisure,Supplies & Services,Provisions,BIKOLD,07/12/2023,103.88
"Communities, Customer & Commercial Services",Sport & Leisure,Supplies & Services,Provisions,BIKOLD,07/12/2023,182.70
"Communities, Customer & Commercial Services",Sport & Leisure,Supplies & Services,Provisions,BIKOLD,07/12/2023,413.88
"Communities, Customer & Commercial Services",Sport & Leisure,Supplies & Services,Provisions,BIKOLD,07/12/2023,223.84
"Communities, Customer & Commercial Services",Sport & Leisure,Supplies & Services,Provisions,BIKOLD,07/12/2023,302.48
"Communities, Customer & Commercial Services",Sport & Leisure,Supplies & Services,Provisions,BIKOLD,07/12/2023,428.90
"Communities, Customer & Commercial Services",Sport & Leisure,Supplies & Services,Provisions,BIKOLD,07/12/2023,119.28
"Communities, Customer & Commercial Services",Sport & Leisure,Supplies & Services,Provisions,BIKOLD,07/12/2023,116.94
"Communities, Customer & Commercial Services",Sport & Leisure,Supplies & Services,Provisions,BIKOLD,07/12/2023,455.13
"Communities, Customer & Commercial Services",Sport & Leisure,Supplies & Services,Provisions,BIKOLD,07/12/2023,237.23
"Communities, Customer & Commercial Services",Sport & Leisure,Supplies & Services,Provisions,BIKOLD,07/12/2023,180.46
"Communities, Customer & Commercial Services",Sport & Leisure,Supplies & Services,Provisions,BIKOLD,07/12/2023,455.19
"Communities, Customer & Commercial Services",Sport & Leisure,Supplies & Services,Provisions,BIKOLD,07/12/2023,127.17
"Communities, Customer & Commercial Services",Sport & Leisure,Supplies & Services,Provisions,BIKOLD,07/12/2023,480.14
"Communities, Customer & Commercial Services",Sport & Leisure,Supplies & Services,Provisions,BIKOLD,07/12/2023,192.79
"Communities, Customer & Commercial Services",Sport & Leisure,Supplies & Services,Provisions,BIKOLD,07/12/2023,110.40
"Communities, Customer & Commercial Services",Sport & Leisure,Supplies & Services,Provisions,BIKOLD,07/12/2023,583.25
"Communities, Customer & Commercial Services",Sport & Leisure,Supplies & Services,Provisions,BIKOLD,07/12/2023,275.84
"Communities, Customer & Commercial Services",Sport & Leisure,Supplies & Services,Provisions,BIKOLD,07/12/2023,227.05
"Communities, Customer & Commercial Services",Sport & Leisure,Supplies & Services,Provisions,BIKOLD,07/12/2023,241.10
"Communities, Customer & Commercial Services",Sport & Leisure,Supplies & Services,Provisions,BIKOLD,07/12/2023,507.71
"Communities, Customer & Commercial Services",Sport & Leisure,Supplies & Services,Provisions,BIKOLD,07/12/2023,301.55
"Communities, Customer & Commercial Services",Sport & Leisure,Supplies & Services,Provisions,BIKOLD,07/12/2023,282.80
"Communities, Customer & Commercial Services",Sport & Leisure,Supplies & Services,Provisions,BIKOLD,07/12/2023,319.59
"Communities, Customer & Commercial Services",Sport & Leisure,Supplies & Services,Provisions,BIKOLD,07/12/2023,100.32
"Communities, Customer & Commercial Services",Sport & Leisure,Supplies & Services,Provisions,BIKOLD,07/12/2023,210.28
"Communities, Customer & Commercial Services",Sport & Leisure,Supplies & Services,Provisions,BIKOLD,07/12/2023,310.32
"Communities, Customer & Commercial Services",Sport & Leisure,Supplies & Services,Provisions,BIKOLD,07/12/2023,122.93
"Communities, Customer & Commercial Services",Sport & Leisure,Supplies & Services,Provisions,BIKOLD,07/12/2023,322.23
"Communities, Customer & Commercial Services",Sport & Leisure,Supplies & Services,Provisions,BIKOLD,07/12/2023,415.76
"Communities, Customer & Commercial Services",Sport & Leisure,Supplies & Services,Provisions,BIKOLD,07/12/2023,154.03
"Communities, Customer & Commercial Services",Sport & Leisure,Supplies & Services,Provisions,BIKOLD,07/12/2023,141.10
"Communities, Customer & Commercial Services",Sport & Leisure,Supplies & Services,Provisions,BIKOLD,07/12/2023,267.66
"Communities, Customer & Commercial Services",Sport & Leisure,Supplies & Services,Provisions,BIKOLD,07/12/2023,367.15
"Communities, Customer & Commercial Services",Sport & Leisure,Supplies & Services,Provisions,BIKOLD,07/12/2023,210.65
"Communities, Customer & Commercial Services",Sport & Leisure,Supplies & Services,Provisions,BIKOLD,07/12/2023,116.62
"Communities, Customer & Commercial Services",Sport & Leisure,Supplies & Services,Provisions,BIKOLD,07/12/2023,329.30
"Communities, Customer & Commercial Services",Sport & Leisure,Supplies & Services,Provisions,BIKOLD,07/12/2023,118.30
"Communities, Customer & Commercial Services",Sport & Leisure,Supplies & Services,Provisions,BIKOLD,07/12/2023,279.88
"Communities, Customer & Commercial Services",Sport & Leisure,Supplies & Services,Provisions,BIKOLD,07/12/2023,193.67
"Communities, Customer & Commercial Services",Sport & Leisure,Supplies & Services,Provisions,BIKOLD,07/12/2023,129.50
"Communities, Customer & Commercial Services",Sport & Leisure,Supplies & Services,Provisions,BIKOLD,07/12/2023,130.62
"Communities, Customer & Commercial Services",Sport & Leisure,Supplies & Services,Provisions,BIKOLD,18/12/2023,102.06
"Communities, Customer & Commercial Services",Sport & Leisure,Supplies & Services,Provisions,BIKOLD,18/12/2023,190.31
"Communities, Customer & Commercial Services",Sport & Leisure,Supplies & Services,Provisions,BIKOLD,18/12/2023,215.78
"Communities, Customer & Commercial Services",Sport & Leisure,Supplies & Services,Provisions,BIKOLD,18/12/2023,301.25
"Communities, Customer & Commercial Services",Sport & Leisure,Supplies & Services,Provisions,BIKOLD,18/12/2023,106.66
"Communities, Customer & Commercial Services",Sport & Leisure,Supplies & Services,Provisions,BIKOLD,18/12/2023,352.79
"Communities, Customer & Commercial Services",Sport & Leisure,Supplies & Services,Provisions,BIKOLD,18/12/2023,271.97
"Communities, Customer & Commercial Services",Sport & Leisure,Supplies & Services,Provisions,BIKOLD,18/12/2023,302.14
"Communities, Customer & Commercial Services",Sport & Leisure,Supplies & Services,Provisions,BIKOLD,18/12/2023,409.09
"Communities, Customer & Commercial Services",Sport & Leisure,Supplies & Services,Provisions,BIKOLD,18/12/2023,259.49
"Communities, Customer & Commercial Services",Sport & Leisure,Supplies & Services,Provisions,BIKOLD,18/12/2023,410.49
"Communities, Customer & Commercial Services",Sport & Leisure,Supplies & Services,Provisions,BIKOLD,18/12/2023,115.38
"Communities, Customer & Commercial Services",Sport & Leisure,Supplies & Services,Provisions,BIKOLD,18/12/2023,167.53
"Communities, Customer & Commercial Services",Sport & Leisure,Supplies & Services,Provisions,BIKOLD,18/12/2023,324.24
"Communities, Customer & Commercial Services",Sport & Leisure,Supplies & Services,Provisions,BIKOLD,18/12/2023,113.05
"Communities, Customer & Commercial Services",Sport & Leisure,Supplies & Services,Provisions,BIKOLD,18/12/2023,373.70
"Communities, Customer & Commercial Services",Sport & Leisure,Supplies & Services,Provisions,BIKOLD,18/12/2023,129.75
"Communities, Customer & Commercial Services",Sport & Leisure,Supplies & Services,Provisions,BIKOLD,18/12/2023,360.58
"Communities, Customer & Commercial Services",Sport & Leisure,Supplies & Services,Provisions,BIKOLD,18/12/2023,244.96
"Communities, Customer & Commercial Services",Sport & Leisure,Supplies & Services,Provisions,BIKOLD,18/12/2023,152.13
"Communities, Customer & Commercial Services",Sport & Leisure,Supplies & Services,Provisions,BIKOLD,18/12/2023,102.03
"Communities, Customer & Commercial Services",Sport & Leisure,Supplies & Services,Provisions,BIKOLD,18/12/2023,183.84
"Communities, Customer & Commercial Services",Sport & Leisure,Supplies & Services,Provisions,BIKOLD,18/12/2023,112.66
"Communities, Customer & Commercial Services",Sport & Leisure,Supplies & Services,Provisions,BIKOLD,18/12/2023,270.30
"Communities, Customer & Commercial Services",Sport & Leisure,Supplies & Services,Provisions,BIKOLD,18/12/2023,244.99
"Communities, Customer & Commercial Services",Sport & Leisure,Supplies & Services,Provisions,BIKOLD,18/12/2023,122.28
"Communities, Customer & Commercial Services",Sport & Leisure,Supplies & Services,Provisions,BIKOLD,18/12/2023,247.97
"Communities, Customer & Commercial Services",Sport & Leisure,Supplies & Services,Provisions,BIKOLD,18/12/2023,558.93
"Communities, Customer & Commercial Services",Sport & Leisure,Supplies & Services,Provisions,BIKOLD,18/12/2023,387.92
"Communities, Customer & Commercial Services",Sport & Leisure,Supplies & Services,Provisions,BIKOLD,18/12/2023,155.37
"Communities, Customer & Commercial Services",Sport & Leisure,Supplies & Services,Provisions,BIKOLD,18/12/2023,194.95
"Communities, Customer & Commercial Services",Sport & Leisure,Supplies & Services,Provisions,BIKOLD,18/12/2023,457.52
"Communities, Customer & Commercial Services",Sport & Leisure,Supplies & Services,Provisions,BIKOLD,18/12/2023,100.63
"Communities, Customer & Commercial Services",Sport & Leisure,Supplies & Services,Provisions,BIKOLD,18/12/2023,404.05
"Communities, Customer & Commercial Services",Sport & Leisure,Supplies & Services,Provisions,BIKOLD,18/12/2023,500.92
"Communities, Customer & Commercial Services",Sport & Leisure,Supplies & Services,Provisions,BIKOLD,18/12/2023,363.77
"Communities, Customer & Commercial Services",Sport & Leisure,Supplies & Services,Provisions,BIKOLD,18/12/2023,414.01
"Communities, Customer & Commercial Services",Sport & Leisure,Supplies & Services,Provisions,BIKOLD,18/12/2023,251.75
"Communities, Customer & Commercial Services",Sport & Leisure,Supplies & Services,Provisions,BIKOLD,18/12/2023,456.13
"Communities, Customer & Commercial Services",Sport & Leisure,Supplies & Services,Provisions,BIKOLD,18/12/2023,235.03
"Communities, Customer & Commercial Services",Sport & Leisure,Supplies & Services,Provisions,BIKOLD,18/12/2023,246.22
"Communities, Customer & Commercial Services",Sport & Leisure,Supplies & Services,Provisions,BIKOLD,18/12/2023,253.45
"Communities, Customer & Commercial Services",Sport & Leisure,Supplies & Services,Provisions,BIKOLD,18/12/2023,164.46
"Communities, Customer & Commercial Services",Sport & Leisure,Supplies & Services,Provisions,BIKOLD,18/12/2023,219.92
"Communities, Customer & Commercial Services",Sport & Leisure,Supplies & Services,Provisions,BIKOLD,18/12/2023,131.81
"Communities, Customer & Commercial Services",Sport & Leisure,Supplies & Services,Provisions,BIKOLD,18/12/2023,241.50
"Communities, Customer & Commercial Services",Sport & Leisure,Supplies & Services,Provisions,BIKOLD,18/12/2023,358.31
"Communities, Customer & Commercial Services",Sport & Leisure,Supplies & Services,Provisions,BIKOLD,18/12/2023,210.80
"Communities, Customer & Commercial Services",Sport & Leisure,Supplies & Services,Provisions,BIKOLD,18/12/2023,102.04
"Communities, Customer & Commercial Services",Sport & Leisure,Supplies & Services,Provisions,BIKOLD,18/12/2023,394.17
"Communities, Customer & Commercial Services",Sport & Leisure,Supplies & Services,Provisions,BIKOLD,18/12/2023,287.11
"Communities, Customer & Commercial Services",Sport & Leisure,Supplies & Services,Provisions,BIKOLD,18/12/2023,109.17
"Communities, Customer & Commercial Services",Sport & Leisure,Supplies & Services,Provisions,BIKOLD,18/12/2023,300.16
"Communities, Customer & Commercial Services",Sport & Leisure,Supplies & Services,Provisions,BIKOLD,18/12/2023,170.30
"Communities, Customer & Commercial Services",Sport & Leisure,Supplies & Services,Provisions,BIKOLD,18/12/2023,190.20
"Communities, Customer & Commercial Services",Sport & Leisure,Supplies & Services,Provisions,BIKOLD,18/12/2023,247.38
"Communities, Customer & Commercial Services",Sport & Leisure,Supplies & Services,Provisions,BIKOLD,18/12/2023,386.95
"Communities, Customer & Commercial Services",Sport & Leisure,Supplies & Services,Provisions,BIKOLD,18/12/2023,274.43
"Communities, Customer & Commercial Services",Sport & Leisure,Supplies & Services,Provisions,BIKOLD,18/12/2023,221.41
"Communities, Customer & Commercial Services",Sport & Leisure,Supplies & Services,Provisions,BIKOLD,18/12/2023,406.13
"Communities, Customer & Commercial Services",Sport & Leisure,Supplies & Services,Provisions,BIKOLD,18/12/2023,199.10
"Communities, Customer & Commercial Services",Sport & Leisure,Supplies & Services,Provisions,BIKOLD,18/12/2023,381.76
"Communities, Customer & Commercial Services",Sport & Leisure,Supplies & Services,Provisions,BIKOLD,18/12/2023,115.25
"Communities, Customer & Commercial Services",Sport & Leisure,Supplies & Services,Provisions,BIKOLD,18/12/2023,261.80
"Communities, Customer & Commercial Services",Sport & Leisure,Supplies & Services,Provisions,BIKOLD,18/12/2023,160.12
"Communities, Customer & Commercial Services",Sport & Leisure,Supplies & Services,Provisions,BIKOLD,18/12/2023,171.01
"Communities, Customer & Commercial Services",Sport & Leisure,Supplies & Services,Provisions,BIKOLD,18/12/2023,108.99
"Communities, Customer & Commercial Services",Sport & Leisure,Supplies & Services,Provisions,BIKOLD,18/12/2023,122.55
"Communities, Customer & Commercial Services",Sport & Leisure,Supplies & Services,Provisions,BIKOLD,18/12/2023,384.19
"Communities, Customer & Commercial Services",Sport & Leisure,Supplies & Services,Provisions,BIKOLD,18/12/2023,127.62
"Communities, Customer & Commercial Services",Sport & Leisure,Supplies & Services,Provisions,BIKOLD,18/12/2023,627.87
"Communities, Customer & Commercial Services",Sport & Leisure,Supplies & Services,Provisions,BIKOLD,18/12/2023,286.12
"Communities, Customer & Commercial Services",Sport & Leisure,Supplies & Services,Provisions,BIKOLD,18/12/2023,406.32
"Communities, Customer & Commercial Services",Sport & Leisure,Supplies & Services,Provisions,BIKOLD,18/12/2023,137.99
"Communities, Customer & Commercial Services",Sport & Leisure,Supplies & Services,Provisions,BIKOLD,18/12/2023,572.30
"Communities, Customer & Commercial Services",Sport & Leisure,Supplies & Services,Provisions,BIKOLD,18/12/2023,734.58
"Communities, Customer & Commercial Services",Sport & Leisure,Supplies & Services,Provisions,BIKOLD,18/12/2023,238.85
"Communities, Customer & Commercial Services",Sport & Leisure,Supplies & Services,Provisions,BIKOLD,18/12/2023,"1,048.02"
"Communities, Customer & Commercial Services",Sport & Leisure,Supplies & Services,Provisions,BIKOLD,18/12/2023,143.06
"Communities, Customer & Commercial Services",Sport & Leisure,Supplies & Services,Provisions,BIKOLD,18/12/2023,155.68
"Communities, Customer & Commercial Services",Sport & Leisure,Supplies & Services,Provisions,BIKOLD,18/12/2023,580.91
"Communities, Customer & Commercial Services",Sport & Leisure,Supplies & Services,Provisions,BIKOLD,18/12/2023,417.60
"Communities, Customer & Commercial Services",Sport & Leisure,Supplies & Services,Provisions,BIKOLD,18/12/2023,162.10
"Communities, Customer & Commercial Services",Sport & Leisure,Supplies & Services,Provisions,BIKOLD,18/12/2023,280.22
"Communities, Customer & Commercial Services",Sport & Leisure,Supplies & Services,Provisions,BIKOLD,18/12/2023,266.52
"Communities, Customer & Commercial Services",Sport & Leisure,Supplies & Services,Provisions,BIKOLD,18/12/2023,"1,009.54"
"Communities, Customer & Commercial Services",Sport & Leisure,Supplies & Services,Provisions,BIKOLD,18/12/2023,274.89
"Communities, Customer & Commercial Services",Sport & Leisure,Supplies & Services,Provisions,BIKOLD,18/12/2023,112.10
"Communities, Customer & Commercial Services",Sport & Leisure,Supplies & Services,Provisions,BIKOLD,18/12/2023,629.96
"Communities, Customer & Commercial Services",Sport & Leisure,Supplies & Services,Provisions,BIKOLD,18/12/2023,103.26
"Communities, Customer & Commercial Services",Sport & Leisure,Supplies & Services,Provisions,BIKOLD,18/12/2023,240.63
"Communities, Customer & Commercial Services",Sport & Leisure,Supplies & Services,Provisions,BIKOLD,18/12/2023,873.89
"Communities, Customer & Commercial Services",Sport & Leisure,Supplies & Services,Provisions,BIKOLD,18/12/2023,255.51
"Communities, Customer & Commercial Services",Sport & Leisure,Supplies & Services,Provisions,BIKOLD,18/12/2023,154.83
"Communities, Customer & Commercial Services",Sport & Leisure,Supplies & Services,Provisions,BIKOLD,18/12/2023,432.06
"Communities, Customer & Commercial Services",Sport & Leisure,Supplies & Services,Provisions,BIKOLD,18/12/2023,251.66
"Communities, Customer & Commercial Services",Sport & Leisure,Supplies & Services,Provisions,BIKOLD,18/12/2023,658.50
"Communities, Customer & Commercial Services",Sport & Leisure,Supplies & Services,Provisions,BIKOLD,18/12/2023,380.50
"Communities, Customer & Commercial Services",Sport & Leisure,Supplies & Services,Provisions,BIKOLD,18/12/2023,104.50
"Communities, Customer & Commercial Services",Sport & Leisure,Supplies & Services,Provisions,BIKOLD,18/12/2023,331.16
"Communities, Customer & Commercial Services",Sport & Leisure,Supplies & Services,Provisions,BIKOLD,18/12/2023,353.96
"Communities, Customer & Commercial Services",Sport & Leisure,Supplies & Services,Provisions,BIKOLD,18/12/2023,309.58
"Communities, Customer & Commercial Services",Sport & Leisure,Supplies & Services,Provisions,BIKOLD,18/12/2023,147.66
"Communities, Customer & Commercial Services",Sport & Leisure,Supplies & Services,Provisions,BIKOLD,18/12/2023,140.55
"Communities, Customer & Commercial Services",Sport & Leisure,Supplies & Services,Provisions,BIKOLD,18/12/2023,274.24
"Communities, Customer & Commercial Services",Sport & Leisure,Supplies & Services,Provisions,BIKOLD,18/12/2023,170.16
"Communities, Customer & Commercial Services",Sport & Leisure,Supplies & Services,Provisions,BIKOLD,18/12/2023,391.98
"Communities, Customer & Commercial Services",Sport & Leisure,Supplies & Services,Provisions,BIKOLD,18/12/2023,231.05
"Communities, Customer & Commercial Services",Sport & Leisure,Supplies & Services,Provisions,BIKOLD,18/12/2023,126.31
"Communities, Customer & Commercial Services",Sport & Leisure,Supplies & Services,Provisions,BIKOLD,18/12/2023,157.89
"Communities, Customer & Commercial Services",Sport & Leisure,Supplies & Services,Provisions,BIKOLD,18/12/2023,202.35
"Communities, Customer & Commercial Services",Sport & Leisure,Supplies & Services,Provisions,BIKOLD,18/12/2023,115.53
"Communities, Customer & Commercial Services",Sport & Leisure,Supplies & Services,Provisions,BIKOLD,18/12/2023,201.72
"Communities, Customer & Commercial Services",Sport & Leisure,Supplies & Services,Provisions,BIKOLD,18/12/2023,290.80
"Communities, Customer & Commercial Services",Sport & Leisure,Supplies & Services,Provisions,BIKOLD,18/12/2023,174.70
"Communities, Customer & Commercial Services",Sport & Leisure,Supplies & Services,Provisions,BIKOLD,18/12/2023,203.03
"Communities, Customer & Commercial Services",Sport & Leisure,Supplies & Services,Provisions,BIKOLD,18/12/2023,245.30
"Communities, Customer & Commercial Services",Sport & Leisure,Supplies & Services,Provisions,BIKOLD,18/12/2023,338.64
"Communities, Customer & Commercial Services",Sport & Leisure,Supplies & Services,Provisions,BIKOLD,18/12/2023,206.78
"Communities, Customer & Commercial Services",Sport & Leisure,Supplies & Services,Provisions,BIKOLD,18/12/2023,130.37
"Communities, Customer & Commercial Services",Sport & Leisure,Supplies & Services,Provisions,BIKOLD,18/12/2023,122.31
"Communities, Customer & Commercial Services",Sport & Leisure,Supplies & Services,Provisions,BIKOLD,18/12/2023,232.65
"Communities, Customer & Commercial Services",Sport & Leisure,Supplies & Services,Provisions,BIKOLD,18/12/2023,494.07
"Communities, Customer & Commercial Services",Sport & Leisure,Supplies & Services,Provisions,BIKOLD,18/12/2023,316.02
"Communities, Customer & Commercial Services",Sport & Leisure,Supplies & Services,Provisions,BIKOLD,18/12/2023,142.47
"Communities, Customer & Commercial Services",Sport & Leisure,Supplies & Services,Provisions,BIKOLD,18/12/2023,185.06
"Communities, Customer & Commercial Services",Sport & Leisure,Supplies & Services,Provisions,BIKOLD,18/12/2023,223.82
"Communities, Customer & Commercial Services",Sport & Leisure,Supplies & Services,Provisions,BIKOLD,18/12/2023,603.22
"Communities, Customer & Commercial Services",Sport & Leisure,Supplies & Services,Provisions,BIKOLD,18/12/2023,314.41
"Communities, Customer & Commercial Services",Sport & Leisure,Supplies & Services,Provisions,BIKOLD,18/12/2023,400.94
"Communities, Customer & Commercial Services",Sport & Leisure,Supplies & Services,Provisions,BIKOLD,18/12/2023,436.27
"Communities, Customer & Commercial Services",Sport & Leisure,Supplies & Services,Provisions,BIKOLD,18/12/2023,124.03
"Communities, Customer & Commercial Services",Sport & Leisure,Supplies & Services,Provisions,BIKOLD,18/12/2023,519.30
"Communities, Customer & Commercial Services",Sport & Leisure,Supplies & Services,Provisions,BIKOLD,18/12/2023,204.20
"Communities, Customer & Commercial Services",Sport & Leisure,Supplies & Services,Provisions,BIKOLD,18/12/2023,200.61
"Communities, Customer & Commercial Services",Sport & Leisure,Supplies & Services,Provisions,BIKOLD,18/12/2023,176.67
"Communities, Customer & Commercial Services",Sport & Leisure,Supplies & Services,Provisions,BIKOLD,18/12/2023,315.86
"Communities, Customer & Commercial Services",Sport & Leisure,Supplies & Services,Provisions,BIKOLD,18/12/2023,213.69
"Communities, Customer & Commercial Services",Sport & Leisure,Supplies & Services,Provisions,BIKOLD,18/12/2023,219.71
"Communities, Customer & Commercial Services",Sport & Leisure,Supplies & Services,Provisions,BIKOLD,18/12/2023,544.36
"Communities, Customer & Commercial Services",Sport & Leisure,Supplies & Services,Provisions,BIKOLD,18/12/2023,265.98
"Communities, Customer & Commercial Services",Sport & Leisure,Supplies & Services,Provisions,BIKOLD,18/12/2023,119.21
"Communities, Customer & Commercial Services",Sport & Leisure,Supplies & Services,Provisions,BIKOLD,18/12/2023,102.79
"Communities, Customer & Commercial Services",Sport & Leisure,Supplies & Services,Provisions,BIKOLD,18/12/2023,365.84
"Communities, Customer & Commercial Services",Sport & Leisure,Supplies & Services,Provisions,BIKOLD,18/12/2023,189.04
"Communities, Customer & Commercial Services",Sport & Leisure,Supplies & Services,Provisions,BIKOLD,18/12/2023,148.08
"Communities, Customer & Commercial Services",Sport & Leisure,Supplies & Services,Provisions,BIKOLD,18/12/2023,247.01
"Communities, Customer & Commercial Services",Sport & Leisure,Supplies & Services,Provisions,BIKOLD,18/12/2023,218.81
"Communities, Customer & Commercial Services",Sport & Leisure,Supplies & Services,Provisions,BIKOLD,18/12/2023,385.61
"Communities, Customer & Commercial Services",Sport & Leisure,Supplies & Services,Provisions,BIKOLD,18/12/2023,161.09
"Communities, Customer & Commercial Services",Sport & Leisure,Supplies & Services,Provisions,BIKOLD,18/12/2023,347.02
"Communities, Customer & Commercial Services",Sport & Leisure,Supplies & Services,Provisions,BIKOLD,18/12/2023,440.82
"Communities, Customer & Commercial Services",Sport & Leisure,Supplies & Services,Provisions,BIKOLD,18/12/2023,125.36
"Communities, Customer & Commercial Services",Sport & Leisure,Supplies & Services,Provisions,BIKOLD,18/12/2023,143.60
"Communities, Customer & Commercial Services",Sport & Leisure,Supplies & Services,Provisions,BIKOLD,18/12/2023,355.77
"Communities, Customer & Commercial Services",Sport & Leisure,Supplies & Services,Provisions,BIKOLD,18/12/2023,195.44
"Communities, Customer & Commercial Services",Sport & Leisure,Supplies & Services,Provisions,BIKOLD,18/12/2023,141.29
"Communities, Customer & Commercial Services",Sport & Leisure,Supplies & Services,Provisions,BIKOLD,18/12/2023,182.09
"Communities, Customer & Commercial Services",Sport & Leisure,Supplies & Services,Provisions,BIKOLD,18/12/2023,152.30
"Communities, Customer & Commercial Services",Sport & Leisure,Supplies & Services,Provisions,BIKOLD,18/12/2023,180.24
"Communities, Customer & Commercial Services",Sport & Leisure,Supplies & Services,Provisions,BIKOLD,18/12/2023,165.22
"Communities, Customer & Commercial Services",Sport & Leisure,Supplies & Services,Provisions,BIKOLD,18/12/2023,106.78
"Communities, Customer & Commercial Services",Sport & Leisure,Supplies & Services,Provisions,BIKOLD,18/12/2023,182.22
"Communities, Customer & Commercial Services",Sport & Leisure,Supplies & Services,Provisions,BIKOLD,18/12/2023,132.90
"Communities, Customer & Commercial Services",Sport & Leisure,Supplies & Services,Provisions,BIKOLD,18/12/2023,174.04
"Communities, Customer & Commercial Services",Sport & Leisure,Supplies & Services,Provisions,BIKOLD,18/12/2023,260.03
"Communities, Customer & Commercial Services",Sport & Leisure,Supplies & Services,Provisions,BIKOLD,18/12/2023,114.72
"Communities, Customer & Commercial Services",Sport & Leisure,Supplies & Services,Provisions,BIKOLD,18/12/2023,550.66
"Communities, Customer & Commercial Services",Sport & Leisure,Supplies & Services,Provisions,BIKOLD,18/12/2023,280.59
"Communities, Customer & Commercial Services",Sport & Leisure,Supplies & Services,Provisions,BIKOLD,18/12/2023,122.10
"Communities, Customer & Commercial Services",Sport & Leisure,Supplies & Services,Provisions,BIKOLD,18/12/2023,698.60
"Communities, Customer & Commercial Services",Sport & Leisure,Supplies & Services,Provisions,BIKOLD,18/12/2023,437.71
"Communities, Customer & Commercial Services",Sport & Leisure,Supplies & Services,Provisions,BIKOLD,18/12/2023,518.34
"Communities, Customer & Commercial Services",Sport & Leisure,Supplies & Services,Provisions,BIKOLD,21/12/2023,271.49
"Communities, Customer & Commercial Services",Sport & Leisure,Supplies & Services,Provisions,BIKOLD,21/12/2023,403.81
"Communities, Customer & Commercial Services",Sport & Leisure,Supplies & Services,Provisions,BIKOLD,21/12/2023,147.73
"Communities, Customer & Commercial Services",Sport & Leisure,Supplies & Services,Provisions,BIKOLD,21/12/2023,298.35
"Communities, Customer & Commercial Services",Sport & Leisure,Supplies & Services,Provisions,BIKOLD,21/12/2023,188.50
"Communities, Customer & Commercial Services",Sport & Leisure,Supplies & Services,Provisions,BIKOLD,21/12/2023,116.71
"Communities, Customer & Commercial Services",Sport & Leisure,Supplies & Services,Provisions,BIKOLD,21/12/2023,349.68
"Communities, Customer & Commercial Services",Sport & Leisure,Supplies & Services,Provisions,BIKOLD,21/12/2023,316.88
"Communities, Customer & Commercial Services",Sport & Leisure,Supplies & Services,Provisions,BIKOLD,21/12/2023,150.88
"Communities, Customer & Commercial Services",Sport & Leisure,Supplies & Services,Provisions,BIKOLD,21/12/2023,271.43
"Communities, Customer & Commercial Services",Sport & Leisure,Supplies & Services,Provisions,BIKOLD,21/12/2023,156.61
"Communities, Customer & Commercial Services",Sport & Leisure,Supplies & Services,Provisions,BIKOLD,21/12/2023,156.50
"Communities, Customer & Commercial Services",Sport & Leisure,Supplies & Services,Provisions,BIKOLD,21/12/2023,122.53
"Communities, Customer & Commercial Services",Sport & Leisure,Supplies & Services,Provisions,BIKOLD,21/12/2023,142.53
"Communities, Customer & Commercial Services",Sport & Leisure,Supplies & Services,Provisions,BIKOLD,21/12/2023,289.62
"Communities, Customer & Commercial Services",Sport & Leisure,Supplies & Services,Provisions,BIKOLD,21/12/2023,249.97
"Communities, Customer & Commercial Services",Sport & Leisure,Supplies & Services,Provisions,BIKOLD,21/12/2023,299.24
"Communities, Customer & Commercial Services",Sport & Leisure,Supplies & Services,Provisions,BIKOLD,21/12/2023,124.02
"Communities, Customer & Commercial Services",Sport & Leisure,Supplies & Services,Provisions,BIKOLD,21/12/2023,259.88
"Communities, Customer & Commercial Services",Sport & Leisure,Supplies & Services,Provisions,BIKOLD,21/12/2023,222.91
"Communities, Customer & Commercial Services",Sport & Leisure,Supplies & Services,Provisions,BIKOLD,21/12/2023,103.68
"Communities, Customer & Commercial Services",Sport & Leisure,Supplies & Services,Provisions,BIKOLD,21/12/2023,125.14
"Communities, Customer & Commercial Services",Sport & Leisure,Supplies & Services,Provisions,BIKOLD,21/12/2023,484.06
"Communities, Customer & Commercial Services",Sport & Leisure,Supplies & Services,Provisions,BIKOLD,21/12/2023,191.88
"Communities, Customer & Commercial Services",Sport & Leisure,Supplies & Services,Provisions,BIKOLD,21/12/2023,108.42
"Communities, Customer & Commercial Services",Sport & Leisure,Supplies & Services,Provisions,BIKOLD,21/12/2023,178.21
"Communities, Customer & Commercial Services",Sport & Leisure,Supplies & Services,Provisions,BIKOLD,21/12/2023,216.20
"Communities, Customer & Commercial Services",Sport & Leisure,Supplies & Services,Provisions,BIKOLD,21/12/2023,148.74
"Communities, Customer & Commercial Services",Sport & Leisure,Supplies & Services,Provisions,BIKOLD,21/12/2023,277.06
"Communities, Customer & Commercial Services",Sport & Leisure,Supplies & Services,Provisions,BIKOLD,21/12/2023,199.53
"Communities, Customer & Commercial Services",Sport & Leisure,Supplies & Services,Provisions,BIKOLD,21/12/2023,275.23
"Communities, Customer & Commercial Services",Sport & Leisure,Supplies & Services,Provisions,BIKOLD,21/12/2023,714.58
"Communities, Customer & Commercial Services",Sport & Leisure,Supplies & Services,Provisions,BIKOLD,21/12/2023,117.02
"Communities, Customer & Commercial Services",Sport & Leisure,Supplies & Services,Provisions,BIKOLD,21/12/2023,362.70
"Communities, Customer & Commercial Services",Sport & Leisure,Supplies & Services,Provisions,BIKOLD,21/12/2023,344.45
"Communities, Customer & Commercial Services",Sport & Leisure,Supplies & Services,Provisions,BIKOLD,21/12/2023,733.29
"Communities, Customer & Commercial Services",Sport & Leisure,Supplies & Services,Provisions,BIKOLD,21/12/2023,788.11
"Communities, Customer & Commercial Services",Sport & Leisure,Supplies & Services,Provisions,BIKOLD,21/12/2023,193.40
"Communities, Customer & Commercial Services",Sport & Leisure,Supplies & Services,Provisions,BIKOLD,21/12/2023,517.65
"Communities, Customer & Commercial Services",Sport & Leisure,Supplies & Services,Provisions,BIKOLD,21/12/2023,264.65
"Communities, Customer & Commercial Services",Sport & Leisure,Supplies & Services,Provisions,BIKOLD,21/12/2023,267.70
"Communities, Customer & Commercial Services",Sport & Leisure,Supplies & Services,Provisions,BIKOLD,21/12/2023,108.20
"Communities, Customer & Commercial Services",Sport & Leisure,Supplies & Services,Provisions,BIKOLD,21/12/2023,215.80
"Communities, Customer & Commercial Services",Sport & Leisure,Supplies & Services,Provisions,BIKOLD,21/12/2023,327.38
"Communities, Customer & Commercial Services",Sport & Leisure,Supplies & Services,Provisions,BIKOLD,21/12/2023,610.56
"Communities, Customer & Commercial Services",Sport & Leisure,Supplies & Services,Provisions,BIKOLD,21/12/2023,316.27
"Communities, Customer & Commercial Services",Sport & Leisure,Supplies & Services,Provisions,BIKOLD,21/12/2023,211.40
"Communities, Customer & Commercial Services",Sport & Leisure,Supplies & Services,Provisions,BIKOLD,21/12/2023,127.26
"Communities, Customer & Commercial Services",Sport & Leisure,Supplies & Services,Provisions,BIKOLD,21/12/2023,209.41
"Communities, Customer & Commercial Services",Sport & Leisure,Supplies & Services,Provisions,BIKOLD,21/12/2023,166.73
"Communities, Customer & Commercial Services",Sport & Leisure,Supplies & Services,Provisions,BIKOLD,21/12/2023,371.10
"Communities, Customer & Commercial Services",Sport & Leisure,Supplies & Services,Provisions,BIKOLD,21/12/2023,237.27
"Communities, Customer & Commercial Services",Sport & Leisure,Supplies & Services,Provisions,BIKOLD,21/12/2023,145.42
"Communities, Customer & Commercial Services",Sport & Leisure,Supplies & Services,Provisions,BIKOLD,21/12/2023,144.28
"Communities, Customer & Commercial Services",Sport & Leisure,Supplies & Services,Provisions,BIKOLD,21/12/2023,189.81
"Communities, Customer & Commercial Services",Sport & Leisure,Supplies & Services,Provisions,BIKOLD,21/12/2023,143.94
"Communities, Customer & Commercial Services",Sport & Leisure,Supplies & Services,Provisions,BIKOLD,21/12/2023,204.80
"Communities, Customer & Commercial Services",Sport & Leisure,Supplies & Services,Provisions,BIKOLD,21/12/2023,333.05
"Communities, Customer & Commercial Services",Sport & Leisure,Supplies & Services,Provisions,BIKOLD,21/12/2023,182.31
"Communities, Customer & Commercial Services",Sport & Leisure,Supplies & Services,Provisions,BIKOLD,21/12/2023,377.41
"Communities, Customer & Commercial Services",Sport & Leisure,Supplies & Services,Provisions,BIKOLD,21/12/2023,150.83
"Communities, Customer & Commercial Services",Sport & Leisure,Supplies & Services,Provisions,BIKOLD,21/12/2023,646.76
"Communities, Customer & Commercial Services",Sport & Leisure,Supplies & Services,Provisions,BIKOLD,21/12/2023,124.84
"Communities, Customer & Commercial Services",Sport & Leisure,Supplies & Services,Provisions,BIKOLD,21/12/2023,202.47
"Communities, Customer & Commercial Services",Sport & Leisure,Supplies & Services,Provisions,BIKOLD,21/12/2023,467.60
"Communities, Customer & Commercial Services",Sport & Leisure,Supplies & Services,Provisions,BIKOLD,21/12/2023,178.46
"Communities, Customer & Commercial Services",Sport & Leisure,Supplies & Services,Provisions,BIKOLD,21/12/2023,100.85
"Communities, Customer & Commercial Services",Sport & Leisure,Supplies & Services,Provisions,BIKOLD,21/12/2023,230.79
"Communities, Customer & Commercial Services",Sport & Leisure,Supplies & Services,Provisions,BIKOLD,21/12/2023,323.94
"Communities, Customer & Commercial Services",Sport & Leisure,Supplies & Services,Provisions,BIKOLD,21/12/2023,115.93
"Communities, Customer & Commercial Services",Sport & Leisure,Supplies & Services,Provisions,BIKOLD,21/12/2023,287.32
"Communities, Customer & Commercial Services",Sport & Leisure,Supplies & Services,Provisions,BIKOLD,21/12/2023,111.14
"Communities, Customer & Commercial Services",Sport & Leisure,Supplies & Services,Provisions,BIKOLD,21/12/2023,213.63
"Communities, Customer & Commercial Services",Sport & Leisure,Supplies & Services,Provisions,BIKOLD,21/12/2023,292.40
"Communities, Customer & Commercial Services",Sport & Leisure,Supplies & Services,Provisions,BIKOLD,21/12/2023,245.74
"Communities, Customer & Commercial Services",Sport & Leisure,Supplies & Services,Provisions,BIKOLD,21/12/2023,170.76
"Communities, Customer & Commercial Services",Sport & Leisure,Supplies & Services,Provisions,BIKOLD,21/12/2023,417.16
"Communities, Customer & Commercial Services",Sport & Leisure,Supplies & Services,Provisions,BIKOLD,21/12/2023,198.34
"Communities, Customer & Commercial Services",Sport & Leisure,Supplies & Services,Provisions,BIKOLD,21/12/2023,258.76
"Communities, Customer & Commercial Services",Sport & Leisure,Supplies & Services,Provisions,BIKOLD,21/12/2023,349.49
"Communities, Customer & Commercial Services",Sport & Leisure,Supplies & Services,Provisions,BIKOLD,21/12/2023,364.68
"Communities, Customer & Commercial Services",Sport & Leisure,Supplies & Services,Provisions,BIKOLD,21/12/2023,103.49
"Communities, Customer & Commercial Services",Sport & Leisure,Supplies & Services,Provisions,BIKOLD,21/12/2023,140.92
"Communities, Customer & Commercial Services",Sport & Leisure,Supplies & Services,Provisions,BIKOLD,21/12/2023,310.84
"Communities, Customer & Commercial Services",Sport & Leisure,Supplies & Services,Provisions,BIKOLD,21/12/2023,100.25
"Communities, Customer & Commercial Services",Sport & Leisure,Supplies & Services,Provisions,BIKOLD,21/12/2023,208.64
"Communities, Customer & Commercial Services",Sport & Leisure,Supplies & Services,Provisions,BIKOLD,21/12/2023,400.77
"Communities, Customer & Commercial Services",Sport & Leisure,Supplies & Services,Provisions,BIKOLD,21/12/2023,"1,071.06"
"Communities, Customer & Commercial Services",Sport & Leisure,Supplies & Services,Provisions,BIKOLD,21/12/2023,116.65
"Communities, Customer & Commercial Services",Sport & Leisure,Supplies & Services,Provisions,BIKOLD,21/12/2023,188.19
"Communities, Customer & Commercial Services",Sport & Leisure,Supplies & Services,Provisions,BIKOLD,21/12/2023,630.29
"Communities, Customer & Commercial Services",Sport & Leisure,Supplies & Services,Provisions,BIKOLD,21/12/2023,207.22
"Communities, Customer & Commercial Services",Sport & Leisure,Supplies & Services,Provisions,BIKOLD,21/12/2023,505.45
"Communities, Customer & Commercial Services",Sport & Leisure,Supplies & Services,Provisions,BIKOLD,21/12/2023,-129.46
"Communities, Customer & Commercial Services",Sport & Leisure,Supplies & Services,Provisions,BIKOLD,21/12/2023,133.45
"Communities, Customer & Commercial Services",Sport & Leisure,Supplies & Services,Provisions,BIKOLD,21/12/2023,277.86
"Communities, Customer & Commercial Services",Sport & Leisure,Supplies & Services,Provisions,BIKOLD,21/12/2023,162.19
"Communities, Customer & Commercial Services",Sport & Leisure,Supplies & Services,Provisions,BIKOLD,21/12/2023,235.63
"Communities, Customer & Commercial Services",Sport & Leisure,Supplies & Services,Provisions,BIKOLD,21/12/2023,112.05
"Communities, Customer & Commercial Services",Sport & Leisure,Supplies & Services,Provisions,BIKOLD,21/12/2023,102.94
"Communities, Customer & Commercial Services",Sport & Leisure,Supplies & Services,Provisions,BIKOLD,21/12/2023,145.14
"Communities, Customer & Commercial Services",Sport & Leisure,Supplies & Services,Provisions,BIKOLD,21/12/2023,105.36
"Communities, Customer & Commercial Services",Sport & Leisure,Supplies & Services,Provisions,BIKOLD,21/12/2023,357.91
"Communities, Customer & Commercial Services",Sport & Leisure,Supplies & Services,Provisions,BIKOLD,21/12/2023,138.31
"Communities, Customer & Commercial Services",Sport & Leisure,Supplies & Services,Provisions,BIKOLD,21/12/2023,130.97
"Communities, Customer & Commercial Services",Sport & Leisure,Supplies & Services,Provisions,BIKOLD,21/12/2023,108.36
"Communities, Customer & Commercial Services",Sport & Leisure,Supplies & Services,Provisions,BIKOLD,21/12/2023,214.56
"Communities, Customer & Commercial Services",Sport & Leisure,Supplies & Services,Provisions,BIKOLD,21/12/2023,187.30
"Communities, Customer & Commercial Services",Sport & Leisure,Supplies & Services,Provisions,BIKOLD,21/12/2023,131.93
"Communities, Customer & Commercial Services",Sport & Leisure,Supplies & Services,Provisions,BIKOLD,21/12/2023,237.50
"Communities, Customer & Commercial Services",Sport & Leisure,Supplies & Services,Provisions,BIKOLD,21/12/2023,264.89
"Communities, Customer & Commercial Services",Sport & Leisure,Supplies & Services,Provisions,BIKOLD,21/12/2023,190.35
"Communities, Customer & Commercial Services",Sport & Leisure,Supplies & Services,Provisions,BIKOLD,21/12/2023,509.44
"Communities, Customer & Commercial Services",Sport & Leisure,Supplies & Services,Provisions,BIKOLD,21/12/2023,404.49
"Communities, Customer & Commercial Services",Sport & Leisure,Supplies & Services,Provisions,BIKOLD,21/12/2023,353.32
"Communities, Customer & Commercial Services",Sport & Leisure,Supplies & Services,Provisions,BIKOLD,21/12/2023,424.34
"Communities, Customer & Commercial Services",Sport & Leisure,Supplies & Services,Provisions,BIKOLD,21/12/2023,342.41
"Communities, Customer & Commercial Services",Sport & Leisure,Supplies & Services,Provisions,BIKOLD,21/12/2023,401.92
"Communities, Customer & Commercial Services",Sport & Leisure,Supplies & Services,Provisions,BIKOLD,21/12/2023,201.86
"Communities, Customer & Commercial Services",Sport & Leisure,Supplies & Services,Provisions,BIKOLD,21/12/2023,633.43
"Communities, Customer & Commercial Services",Sport & Leisure,Supplies & Services,Provisions,BIKOLD,21/12/2023,111.31
"Communities, Customer & Commercial Services",Sport & Leisure,Supplies & Services,Provisions,BIKOLD,21/12/2023,137.29
Neighbourhood & Enforcement Services,Neighbourhood & Environmental Services,Supplies & Services,Other Grants (Expenses),DONNINGTON & MUXTON PARISH COUNCIL,15/12/2023,"1,000.00"
Health & Wellbeing,Health Improvement,Premises-Related Expenditure,Hire Of Rooms,DONNINGTON PARTNERSHIP CIO,06/12/2023,231.00
Neighbourhood & Enforcement Services,Neighbourhood & Environmental Services,Premises-Related Expenditure,Grounds Maint - Playgrounds,Dragon Play & Sports Ltd,13/12/2023,140.00
Prosperity & Investment,BiT,Premises-Related Expenditure,Service Contracts,Ductbusters Ltd,05/12/2023,400.00
Prosperity & Investment,BiT,Premises-Related Expenditure,Service Contracts,Ductbusters Ltd,05/12/2023,400.00
Prosperity & Investment,BiT,Premises-Related Expenditure,Service Contracts,Ductbusters Ltd,05/12/2023,400.00
Prosperity & Investment,BiT,Premises-Related Expenditure,Service Contracts,Ductbusters Ltd,05/12/2023,400.00
Prosperity & Investment,BiT,Premises-Related Expenditure,Service Contracts,Ductbusters Ltd,05/12/2023,400.00
Prosperity & Investment,BiT,Premises-Related Expenditure,Service Contracts,Ductbusters Ltd,05/12/2023,400.00
Prosperity & Investment,BiT,Premises-Related Expenditure,Service Contracts,Ductbusters Ltd,05/12/2023,400.00
Prosperity & Investment,BiT,Premises-Related Expenditure,Service Contracts,Ductbusters Ltd,05/12/2023,400.00
Prosperity & Investment,BiT,Premises-Related Expenditure,Service Contracts,Ductbusters Ltd,05/12/2023,400.00
Prosperity & Investment,BiT,Premises-Related Expenditure,Service Contracts,Ductbusters Ltd,07/12/2023,400.00
Prosperity & Investment,Regeneration & Investment,Capital Expenditure,Miscellaneous Income,DWF Law LLP,04/12/2023,"1,272.00"
Prosperity & Investment,Regeneration & Investment,Premises-Related Expenditure,Gas,E.ON ,21/12/2023,-425.35
Prosperity & Investment,Regeneration & Investment,Premises-Related Expenditure,Gas,E.ON ,21/12/2023,-727.14
Adult Social Care,Prevention & Independence - Older Adults & Disability,Supplies & Services,Aids & Appliances,Easylink,15/12/2023,188.42
Adult Social Care,Prevention & Independence - Older Adults & Disability,Supplies & Services,Aids & Appliances,Easylink,19/12/2023,130.68
"Communities, Customer & Commercial Services",Customer Relationships & Welfare Services,Employees,Agency Supply Costs,E B LTD,05/12/2023,972.00
"Communities, Customer & Commercial Services",Customer Relationships & Welfare Services,Employees,Agency Supply Costs,E B LTD,08/12/2023,810.00
"Communities, Customer & Commercial Services",Customer Relationships & Welfare Services,Employees,Agency Supply Costs,E B LTD,18/12/2023,553.50
Education & Skills,SEND (0-25),Supplies & Services,Other Services,E B LTD,22/12/2023,"2,200.00"
"Communities, Customer & Commercial Services",Culture & Events,Supplies & Services,Confectionery & Snacks,E Farm Hulleys,18/12/2023,121.60
"Communities, Customer & Commercial Services",Culture & Events,Supplies & Services,Confectionery & Snacks,E Farm Hulleys,18/12/2023,121.60
"Communities, Customer & Commercial Services",Culture & Events,Supplies & Services,Confectionery & Snacks,E Farm Hulleys,18/12/2023,121.60
"Communities, Customer & Commercial Services",Culture & Events,Supplies & Services,Confectionery & Snacks,E Farm Hulleys,18/12/2023,243.20
"Communities, Customer & Commercial Services",Culture & Events,Supplies & Services,Confectionery & Snacks,E Farm Hulleys,18/12/2023,243.20
"Communities, Customer & Commercial Services",ICT,Supplies & Services,Mobile Phones,EE LTD AIRTIME ,06/12/2023,"13,657.44"
"Communities, Customer & Commercial Services",ICT,Supplies & Services,Mobile Phones,EE LTD AIRTIME ,06/12/2023,"13,942.13"
Children�s Safeguarding & Family Support,Child Protection & Family Support,Supplies & Services,Mobile Phones,EE LTD EQUIPMENT ,06/12/2023,142.00
Children�s Safeguarding & Family Support,"Family Placements, Children in Care, Leaving Care & Emergency Duty Team",Supplies & Services,Mobile Phones,EE LTD EQUIPMENT ,29/12/2023,142.00
Children�s Safeguarding & Family Support,Family Connect & Childrens Centres,Premises-Related Expenditure,R&M -Building Other,Ener-g Combined Power Ltd,01/12/2023,380.30
Prosperity & Investment,BiT,Premises-Related Expenditure,R&M -Buildings DLO Charge,Ener-g Combined Power Ltd,01/12/2023,"3,232.53"
Prosperity & Investment,BiT,Premises-Related Expenditure,R&M -Buildings DLO Charge,Ener-g Combined Power Ltd,01/12/2023,"3,422.67"
Prosperity & Investment,BiT,Premises-Related Expenditure,R&M -Buildings DLO Charge,Ener-g Combined Power Ltd,01/12/2023,"11,979.36"
Health & Wellbeing,Consultant in Public Health,Supplies & Services,Equipment - Hire,Engaging Communities Solutions CIC,01/12/2023,"5,000.00"
Neighbourhood & Enforcement Services,Strategic Transport & Highway Network Management,Transport-Related Expenditure,Outside Hire,Enterprise Rent-A-Car Uk LTD Trading As Enterprise Flexi Rent,04/12/2023,"1,560.00"
Neighbourhood & Enforcement Services,Strategic Transport & Highway Network Management,Transport-Related Expenditure,Outside Hire,Enterprise Rent-A-Car Uk LTD Trading As Enterprise Flexi Rent,12/12/2023,689.28
Neighbourhood & Enforcement Services,Strategic Transport & Highway Network Management,Transport-Related Expenditure,Outside Hire,Enterprise Rent-A-Car Uk LTD Trading As Enterprise Flexi Rent,12/12/2023,"14,040.00"
Education & Skills,Pupil Support Services,Supplies & Services,Other Expenses,Entrust Support Services Ltd,18/12/2023,"1,152.00"
Neighbourhood & Enforcement Services,"Highways, Engineering & Project Delivery",Supplies & Services,Other Services,ENVIRONMENT AGENCY,12/12/2023,"16,928.78"
"Communities, Customer & Commercial Services",Sport & Leisure,Premises-Related Expenditure,Electricity,EON next,08/12/2023,120.08
Prosperity & Investment,BiT,Premises-Related Expenditure,Electricity,EON next,12/12/2023,315.18
Prosperity & Investment,Regeneration & Investment,Premises-Related Expenditure,Electricity,EON next,08/12/2023,334.00
Prosperity & Investment,Regeneration & Investment,Premises-Related Expenditure,Electricity,EON next,19/12/2023,119.07
Education & Skills,SEND (0-25),Supplies & Services,Other Services,EP Practice ,21/12/2023,"1,000.00"
"Communities, Customer & Commercial Services",Sport & Leisure,Premises-Related Expenditure,Clean Mats & Toilet Requisites,E N CATERING EQUIPMENT AND SERVICES  LTD,04/12/2023,149.00
Prosperity & Investment,BiT,Premises-Related Expenditure,R&M -Buildings DLO Charge,E N CATERING EQUIPMENT AND SERVICES  LTD,05/12/2023,"2,039.99"
Prosperity & Investment,BiT,Premises-Related Expenditure,R&M -Buildings DLO Charge,E N CATERING EQUIPMENT AND SERVICES  LTD,05/12/2023,110.00
Prosperity & Investment,BiT,Premises-Related Expenditure,R&M -Buildings DLO Charge,E N CATERING EQUIPMENT AND SERVICES  LTD,14/12/2023,"2,251.81"
Children�s Safeguarding & Family Support,"Family Placements, Children in Care, Leaving Care & Emergency Duty Team",Supplies & Services,Form F Assessments,ES-PBS Services,11/12/2023,"1,000.00"
Children�s Safeguarding & Family Support,"Family Placements, Children in Care, Leaving Care & Emergency Duty Team",Supplies & Services,Form F Assessments,ES-PBS Services,11/12/2023,"1,500.00"
Children�s Safeguarding & Family Support,"Family Placements, Children in Care, Leaving Care & Emergency Duty Team",Supplies & Services,Form F Assessments,ES-PBS Services,11/12/2023,"1,500.00"
Education & Skills,SEND (0-25),Third Party Payments,DSG - High Needs Block,ESWB Tutoring and Support Ltd,21/12/2023,285.00
Education & Skills,SEND (0-25),Third Party Payments,DSG - High Needs Block,ESWB Tutoring and Support Ltd,21/12/2023,780.00
Education & Skills,SEND (0-25),Third Party Payments,DSG - High Needs Block,ESWB Tutoring and Support Ltd,21/12/2023,285.00
Education & Skills,SEND (0-25),Third Party Payments,DSG - High Needs Block,ESWB Tutoring and Support Ltd,21/12/2023,456.00
Education & Skills,SEND (0-25),Third Party Payments,DSG - High Needs Block,ESWB Tutoring and Support Ltd,21/12/2023,780.00
Education & Skills,SEND (0-25),Third Party Payments,DSG - High Needs Block,ESWB Tutoring and Support Ltd,21/12/2023,780.00
Education & Skills,SEND (0-25),Third Party Payments,DSG - High Needs Block,ESWB Tutoring and Support Ltd,21/12/2023,456.00
Education & Skills,SEND (0-25),Third Party Payments,DSG - High Needs Block,ESWB Tutoring and Support Ltd,21/12/2023,780.00
Education & Skills,SEND (0-25),Third Party Payments,DSG - High Needs Block,ESWB Tutoring and Support Ltd,21/12/2023,114.00
Education & Skills,SEND (0-25),Third Party Payments,DSG - High Needs Block,ESWB Tutoring and Support Ltd,21/12/2023,980.00
Education & Skills,SEND (0-25),Third Party Payments,DSG - High Needs Block,ESWB Tutoring and Support Ltd,21/12/2023,780.00
Education & Skills,SEND (0-25),Third Party Payments,DSG - High Needs Block,ESWB Tutoring and Support Ltd,21/12/2023,741.00
Education & Skills,SEND (0-25),Third Party Payments,DSG - High Needs Block,ESWB Tutoring and Support Ltd,21/12/2023,114.00
Education & Skills,SEND (0-25),Third Party Payments,DSG - High Needs Block,ESWB Tutoring and Support Ltd,21/12/2023,780.00
Education & Skills,SEND (0-25),Third Party Payments,DSG - High Needs Block,ESWB Tutoring and Support Ltd,21/12/2023,780.00
Adult Social Care,Prevention & Independence - Older Adults & Disability,Supplies & Services,Aids & Appliances,Etac Limited,18/12/2023,837.43
Adult Social Care,Prevention & Independence - Older Adults & Disability,Supplies & Services,Aids & Appliances,Etac Limited,22/12/2023,317.55
Neighbourhood & Enforcement Services,"Highways, Engineering & Project Delivery",Supplies & Services,Protective Clothing,ETAK Creative Ltd,22/12/2023,"1,033.50"
"Communities, Customer & Commercial Services",Customer Relationships & Welfare Services,Supplies & Services,Bus Pass Production,Euclid Limited,07/12/2023,830.72
"Housing, Employment & Infrastructure",Inward Investment & Business Support,Supplies & Services,Other Grants (Expenses),European Innovation Limited,20/12/2023,"7,350.00"
"Communities, Customer & Commercial Services",Culture & Events,Supplies & Services,Equipment - Hire,Event Furniture Hire Ltd,07/12/2023,"1,821.00"
Prosperity & Investment,Regeneration & Investment,Capital Expenditure,Miscellaneous Income,Eversheds Sutherland LLP Client Account,11/12/2023,"1,536.00"
Prosperity & Investment,BiT,Premises-Related Expenditure,R&M -Buildings DLO Charge,E Solutions Ltd,04/12/2023,"2,935.00"
Prosperity & Investment,BiT,Premises-Related Expenditure,R&M -Buildings DLO Charge,E Solutions Ltd,04/12/2023,140.00
Prosperity & Investment,BiT,Premises-Related Expenditure,R&M -Buildings DLO Charge,E Solutions Ltd,05/12/2023,240.00
Prosperity & Investment,BiT,Premises-Related Expenditure,Service Contracts,E Solutions Ltd,05/12/2023,"1,380.00"
Prosperity & Investment,BiT,Premises-Related Expenditure,Service Contracts,E Solutions Ltd,05/12/2023,"1,020.00"
Prosperity & Investment,BiT,Premises-Related Expenditure,Service Contracts,E Solutions Ltd,05/12/2023,160.00
Prosperity & Investment,BiT,Premises-Related Expenditure,R&M -Buildings DLO Charge,E Solutions Ltd,05/12/2023,120.00
Prosperity & Investment,BiT,Premises-Related Expenditure,R&M -Buildings DLO Charge,E Solutions Ltd,06/12/2023,176.00
Prosperity & Investment,BiT,Premises-Related Expenditure,R&M -Buildings DLO Charge,E Solutions Ltd,07/12/2023,440.00
Prosperity & Investment,BiT,Premises-Related Expenditure,Service Contracts,E Solutions Ltd,07/12/2023,176.00
Prosperity & Investment,BiT,Premises-Related Expenditure,Service Contracts,E Solutions Ltd,07/12/2023,104.00
Prosperity & Investment,BiT,Premises-Related Expenditure,Service Contracts,E Solutions Ltd,07/12/2023,104.00
Prosperity & Investment,BiT,Premises-Related Expenditure,R&M -Buildings DLO Charge,E Solutions Ltd,08/12/2023,840.00
Prosperity & Investment,BiT,Premises-Related Expenditure,R&M -Buildings DLO Charge,E Solutions Ltd,08/12/2023,650.00
Prosperity & Investment,BiT,Premises-Related Expenditure,R&M -Buildings DLO Charge,E Solutions Ltd,08/12/2023,152.00
Prosperity & Investment,BiT,Premises-Related Expenditure,R&M -Buildings DLO Charge,E Solutions Ltd,08/12/2023,285.00
Prosperity & Investment,BiT,Premises-Related Expenditure,R&M -Buildings DLO Charge,E Solutions Ltd,08/12/2023,280.00
Prosperity & Investment,BiT,Premises-Related Expenditure,R&M -Buildings DLO Charge,E Solutions Ltd,11/12/2023,400.00
Prosperity & Investment,BiT,Premises-Related Expenditure,R&M -Buildings DLO Charge,E Solutions Ltd,21/12/2023,140.00
Prosperity & Investment,BiT,Premises-Related Expenditure,R&M -Buildings DLO Charge,E Solutions Ltd,21/12/2023,305.00
Prosperity & Investment,BiT,Premises-Related Expenditure,R&M -Buildings DLO Charge,E Solutions Ltd,21/12/2023,160.00
Prosperity & Investment,BiT,Premises-Related Expenditure,R&M -Buildings DLO Charge,E Solutions Ltd,21/12/2023,200.00
Prosperity & Investment,BiT,Premises-Related Expenditure,R&M -Buildings DLO Charge,E Solutions Ltd,21/12/2023,480.00
Prosperity & Investment,BiT,Premises-Related Expenditure,R&M -Buildings DLO Charge,E Solutions Ltd,21/12/2023,160.00
Prosperity & Investment,BiT,Premises-Related Expenditure,R&M -Buildings DLO Charge,E Solutions Ltd,21/12/2023,200.00
Prosperity & Investment,Regeneration & Investment,Premises-Related Expenditure,R&M -Building Other,E Solutions Ltd,21/12/2023,380.00
Prosperity & Investment,Regeneration & Investment,Premises-Related Expenditure,R&M -Building Other,E Solutions Ltd,21/12/2023,380.00
Adult Social Care,ASC Prevention & Enablement,Transport-Related Expenditure,Taxi Costs,Ezy Car Ltd,27/12/2023,129.90
Children�s Safeguarding & Family Support,"Family Placements, Children in Care, Leaving Care & Emergency Duty Team",Transport-Related Expenditure,Taxi Costs,Ezy Car Ltd,19/12/2023,239.20
Children�s Safeguarding & Family Support,"Family Placements, Children in Care, Leaving Care & Emergency Duty Team",Transport-Related Expenditure,Taxi Costs,Ezy Car Ltd,22/12/2023,239.20
Children�s Safeguarding & Family Support,"Family Placements, Children in Care, Leaving Care & Emergency Duty Team",Transport-Related Expenditure,Taxi Costs,Ezy Car Ltd,22/12/2023,"1,198.50"
"Communities, Customer & Commercial Services",ICT,Capital Expenditure,Payments to Contractor,FarrPoint Ltd,05/12/2023,"3,000.00"
"Communities, Customer & Commercial Services",Sport & Leisure,Premises-Related Expenditure,Trade Refuse,FCC Recycling Ltd,07/12/2023,577.46
Neighbourhood & Enforcement Services,Safer & Stronger Communities,Third Party Payments,Residual Waste Collection,FCC Recycling Ltd,11/12/2023,140.88
Prosperity & Investment,BiT,Premises-Related Expenditure,Trade Refuse,FCC Recycling Ltd,05/12/2023,187.84
Prosperity & Investment,BiT,Premises-Related Expenditure,Trade Refuse,FCC Recycling Ltd,12/12/2023,305.24
Prosperity & Investment,BiT,Premises-Related Expenditure,Trade Refuse,FCC Recycling Ltd,12/12/2023,935.48
Prosperity & Investment,BiT,Premises-Related Expenditure,Trade Refuse,FCC Recycling Ltd,12/12/2023,342.68
Prosperity & Investment,BiT,Premises-Related Expenditure,Trade Refuse,FCC Recycling Ltd,12/12/2023,"1,220.96"
Prosperity & Investment,BiT,Premises-Related Expenditure,Trade Refuse,FCC Recycling Ltd,13/12/2023,"1,757.56"
Prosperity & Investment,BiT,Premises-Related Expenditure,Trade Refuse,FCC Recycling Ltd,13/12/2023,850.98
Prosperity & Investment,BiT,Premises-Related Expenditure,Trade Refuse,FCC Recycling Ltd,13/12/2023,"1,220.96"
Prosperity & Investment,BiT,Premises-Related Expenditure,Trade Refuse,FCC Recycling Ltd,13/12/2023,915.72
Prosperity & Investment,BiT,Premises-Related Expenditure,Trade Refuse,FCC Recycling Ltd,13/12/2023,610.48
Prosperity & Investment,BiT,Premises-Related Expenditure,Trade Refuse,FCC Recycling Ltd,13/12/2023,"1,314.88"
Prosperity & Investment,BiT,Premises-Related Expenditure,Trade Refuse,FCC Recycling Ltd,13/12/2023,305.24
Prosperity & Investment,BiT,Premises-Related Expenditure,Trade Refuse,FCC Recycling Ltd,13/12/2023,"2,441.92"
Prosperity & Investment,BiT,Premises-Related Expenditure,Trade Refuse,FCC Recycling Ltd,13/12/2023,610.48
Prosperity & Investment,BiT,Premises-Related Expenditure,Trade Refuse,FCC Recycling Ltd,21/12/2023,187.84
Prosperity & Investment,Regeneration & Investment,Supplies & Services,Bulk Refuse Contracts Hire,FCC Recycling Ltd,07/12/2023,"2,211.04"
Prosperity & Investment,Regeneration & Investment,Premises-Related Expenditure,Building Cleaning DSO,FCC Recycling Ltd,11/12/2023,140.88
Prosperity & Investment,Regeneration & Investment,Premises-Related Expenditure,R&M -Building Other,FCC Recycling Ltd,13/12/2023,335.40
Prosperity & Investment,BiT,Premises-Related Expenditure,R&M -Buildings DLO Charge,Firntec Ltd,07/12/2023,"2,950.05"
Neighbourhood & Enforcement Services,Waste & Neighbourhood Services,Premises-Related Expenditure,Grounds Maintenance - Other,Flagpole Express Ltd,15/12/2023,535.50
Neighbourhood & Enforcement Services,Waste & Neighbourhood Services,Premises-Related Expenditure,Grounds Maintenance - Other,Flagpole Express Ltd,15/12/2023,175.00
Policy & Governance,Governance & Legal Services,Supplies & Services,Other Services,Flexiform Business Furniture Limited,11/12/2023,"5,553.12"
Prosperity & Investment,BiT,Capital Expenditure,External Professional Fees,Focus Consultants 2010 LLP,07/12/2023,"1,820.00"
Prosperity & Investment,Housing Investment Programme,Supplies & Services,Materials,Focus Consultants 2010 LLP,07/12/2023,"2,190.00"
Policy & Governance,Governance & Legal Services,Supplies & Services,Legal Expenses,F Solicitors,12/12/2023,199.50
Finance & Human Resources,Revenues,Supplies & Services,Franking machine service,Francotyp-Postalia Ltd,11/12/2023,701.22
Finance & Human Resources,Revenues,Supplies & Services,Franking machine service,FRANCOTYP-POSTALIA LTD ,07/12/2023,500.00
Finance & Human Resources,Revenues,Supplies & Services,Franking machine service,FRANCOTYP-POSTALIA LTD ,07/12/2023,500.00
Finance & Human Resources,Revenues,Supplies & Services,Franking machine service,FRANCOTYP-POSTALIA LTD ,20/12/2023,"3,000.00"
Finance & Human Resources,Revenues,Supplies & Services,Postages,FREELANCE BUSINESS ASSOCIATES,07/12/2023,198.00
Finance & Human Resources,Revenues,Supplies & Services,Postages,FREELANCE BUSINESS ASSOCIATES,07/12/2023,396.00
Finance & Human Resources,Revenues,Supplies & Services,Postages,FREELANCE BUSINESS ASSOCIATES,07/12/2023,252.00
"Communities, Customer & Commercial Services",Culture & Events,Supplies & Services,Equipment - Hire,FREEMANS OF TELFORD LTD,05/12/2023,290.00
"Communities, Customer & Commercial Services",Culture & Events,Supplies & Services,Equipment - Hire,FREEMANS OF TELFORD LTD,18/12/2023,166.00
Prosperity & Investment,Regeneration & Investment,Capital Expenditure,Legal Fees,FREETHS LLP,14/12/2023,356.00
Prosperity & Investment,Regeneration & Investment,Capital Expenditure,Legal Fees,FREETHS LLP,14/12/2023,350.00
Prosperity & Investment,Regeneration & Investment,Capital Expenditure,Legal Fees,FREETHS LLP,12/12/2023,506.00
Prosperity & Investment,Regeneration & Investment,Capital Expenditure,Legal Fees,FREETHS LLP,11/12/2023,353.00
Prosperity & Investment,Regeneration & Investment,Capital Expenditure,Legal Fees,FREETHS LLP,20/12/2023,400.00
Prosperity & Investment,Regeneration & Investment,Capital Expenditure,Legal Fees,FREETHS LLP,20/12/2023,229.40
Prosperity & Investment,Regeneration & Investment,Capital Expenditure,Purchase of Buildings,FREETHS LLP ,08/12/2023,"2,142,474.30"
Prosperity & Investment,Regeneration & Investment,Capital Expenditure,Purchase of Buildings,FREETHS LLP ,04/12/2023,"109,500.00"
Neighbourhood & Enforcement Services,Strategic Transport & Highway Network Management,Transport-Related Expenditure,Servicing & Repairs V&P,FURROWS OF TELFORD,12/12/2023,732.55
Neighbourhood & Enforcement Services,Strategic Transport & Highway Network Management,Transport-Related Expenditure,Servicing & Repairs V&P,FURROWS OF TELFORD,12/12/2023,466.95
Neighbourhood & Enforcement Services,Strategic Transport & Highway Network Management,Transport-Related Expenditure,Servicing & Repairs V&P,FURROWS OF TELFORD,12/12/2023,621.46
Neighbourhood & Enforcement Services,Strategic Transport & Highway Network Management,Transport-Related Expenditure,Servicing & Repairs V&P,FURROWS OF TELFORD,12/12/2023,127.50
Neighbourhood & Enforcement Services,Strategic Transport & Highway Network Management,Transport-Related Expenditure,Servicing & Repairs V&P,FURROWS OF TELFORD,12/12/2023,430.45
Neighbourhood & Enforcement Services,Strategic Transport & Highway Network Management,Transport-Related Expenditure,Servicing & Repairs V&P,FURROWS OF TELFORD,12/12/2023,635.27
Children�s Safeguarding & Family Support,"Family Placements, Children in Care, Leaving Care & Emergency Duty Team",Supplies & Services,Aids & Appliances,G & S S LTD,07/12/2023,741.00
"Housing, Employment & Infrastructure",Private Sector Housing & Enforcement,Employees,Agency Supply Costs,G2 Recruitment Solutions,06/12/2023,"1,258.00"
Prosperity & Investment,BiT,Capital Expenditure,Payments to Contractor,GAS ALARM SYSTEMS LTD,13/12/2023,"3,251.40"
Prosperity & Investment,BiT,Capital Expenditure,Payments to Contractor,GAS ALARM SYSTEMS LTD,13/12/2023,"3,241.40"
Prosperity & Investment,BiT,Capital Expenditure,Payments to Contractor,GAS ALARM SYSTEMS LTD,13/12/2023,180.00
Prosperity & Investment,BiT,Capital Expenditure,Payments to Contractor,GAS ALARM SYSTEMS LTD,13/12/2023,"3,144.00"
Prosperity & Investment,BiT,Capital Expenditure,Payments to Contractor,GAS ALARM SYSTEMS LTD,13/12/2023,180.00
Prosperity & Investment,BiT,Capital Expenditure,Payments to Contractor,GAS ALARM SYSTEMS LTD,13/12/2023,"2,036.60"
Prosperity & Investment,BiT,Capital Expenditure,Payments to Contractor,GAS ALARM SYSTEMS LTD,13/12/2023,"3,282.70"
Prosperity & Investment,BiT,Capital Expenditure,Payments to Contractor,GAS ALARM SYSTEMS LTD,13/12/2023,"2,745.00"
Prosperity & Investment,BiT,Capital Expenditure,Payments to Contractor,GAS ALARM SYSTEMS LTD,13/12/2023,"3,195.00"
Prosperity & Investment,BiT,Capital Expenditure,Payments to Contractor,GAS ALARM SYSTEMS LTD,13/12/2023,180.00
Prosperity & Investment,BiT,Capital Expenditure,Payments to Contractor,GAS ALARM SYSTEMS LTD,13/12/2023,180.00
Prosperity & Investment,BiT,Capital Expenditure,Payments to Contractor,GAS ALARM SYSTEMS LTD,13/12/2023,179.98
Prosperity & Investment,BiT,Capital Expenditure,Payments to Contractor,GAS ALARM SYSTEMS LTD,13/12/2023,180.00
Finance & Human Resources,Human Resources,Supplies & Services,Doctors Fees,Get Medic Ltd,05/12/2023,550.00
Adult Social Care,My Options,Supplies & Services,Respite Care,REDACTED PERSONAL INFORMATION,13/12/2023,"1,030.40"
"Communities, Customer & Commercial Services",Culture & Events,Supplies & Services,Research Surveys,Global Tourism Solutions Ltd,11/12/2023,"6,900.00"
Neighbourhood & Enforcement Services,Safer & Stronger Communities,Premises-Related Expenditure,Leasehold Rents,GPS Property Shropshire LLP,11/12/2023,700.00
Neighbourhood & Enforcement Services,Safer & Stronger Communities,Premises-Related Expenditure,Leasehold Rents,GPS Property Shropshire LLP,15/12/2023,725.00
Children�s Safeguarding & Family Support,Family Connect & Childrens Centres,Premises-Related Expenditure,R&M -Building Other,GRANVILLE CONSTRUCTION & MAINTENANCE LTD,20/12/2023,169.95
Education & Skills,Education & Skills,Capital Expenditure,Payments to Contractor,GRANVILLE CONSTRUCTION & MAINTENANCE LTD,06/12/2023,"4,800.00"
Education & Skills,Education & Skills,Capital Expenditure,Payments to Contractor,GRANVILLE CONSTRUCTION & MAINTENANCE LTD,06/12/2023,"2,989.03"
Education & Skills,Education & Skills,Capital Expenditure,Payments to Contractor,GRANVILLE CONSTRUCTION & MAINTENANCE LTD,06/12/2023,"5,878.00"
Education & Skills,Education & Skills,Capital Expenditure,Payments to Contractor,GRANVILLE CONSTRUCTION & MAINTENANCE LTD,06/12/2023,"4,618.05"
Education & Skills,Education & Skills,Capital Expenditure,Payments to Contractor,GRANVILLE CONSTRUCTION & MAINTENANCE LTD,13/12/2023,"2,897.00"
Education & Skills,Education & Skills,Capital Expenditure,Payments to Contractor,GRANVILLE CONSTRUCTION & MAINTENANCE LTD,13/12/2023,749.82
Education & Skills,Education & Skills,Capital Expenditure,Payments to Contractor,GRANVILLE CONSTRUCTION & MAINTENANCE LTD,13/12/2023,"3,040.00"
Education & Skills,Education & Skills,Capital Expenditure,Payments to Contractor,GRANVILLE CONSTRUCTION & MAINTENANCE LTD,13/12/2023,"5,826.23"
Education & Skills,Education & Skills,Capital Expenditure,Payments to Contractor,GRANVILLE CONSTRUCTION & MAINTENANCE LTD,07/12/2023,216.00
Education & Skills,Education & Skills,Capital Expenditure,Payments to Contractor,GRANVILLE CONSTRUCTION & MAINTENANCE LTD,05/12/2023,"3,700.00"
Education & Skills,Education & Skills,Capital Expenditure,Payments to Contractor,GRANVILLE CONSTRUCTION & MAINTENANCE LTD,05/12/2023,"4,126.40"
Education & Skills,Education & Skills,Capital Expenditure,Payments to Contractor,GRANVILLE CONSTRUCTION & MAINTENANCE LTD,13/12/2023,"1,130.40"
Education & Skills,Education & Skills,Capital Expenditure,Payments to Contractor,GRANVILLE CONSTRUCTION & MAINTENANCE LTD,08/12/2023,"9,407.00"
Education & Skills,Education & Skills,Capital Expenditure,Payments to Contractor,GRANVILLE CONSTRUCTION & MAINTENANCE LTD,08/12/2023,"12,485.08"
Prosperity & Investment,BiT,Premises-Related Expenditure,R&M -Buildings DLO Charge,GRANVILLE CONSTRUCTION & MAINTENANCE LTD,04/12/2023,416.38
Prosperity & Investment,BiT,Premises-Related Expenditure,R&M -Buildings DLO Charge,GRANVILLE CONSTRUCTION & MAINTENANCE LTD,04/12/2023,396.36
Prosperity & Investment,BiT,Premises-Related Expenditure,R&M -Buildings DLO Charge,GRANVILLE CONSTRUCTION & MAINTENANCE LTD,04/12/2023,758.36
Prosperity & Investment,BiT,Premises-Related Expenditure,R&M -Buildings DLO Charge,GRANVILLE CONSTRUCTION & MAINTENANCE LTD,04/12/2023,288.23
Prosperity & Investment,BiT,Premises-Related Expenditure,R&M -Buildings DLO Charge,GRANVILLE CONSTRUCTION & MAINTENANCE LTD,04/12/2023,319.95
Prosperity & Investment,BiT,Premises-Related Expenditure,R&M -Buildings DLO Charge,GRANVILLE CONSTRUCTION & MAINTENANCE LTD,05/12/2023,192.56
Prosperity & Investment,BiT,Premises-Related Expenditure,R&M -Buildings DLO Charge,GRANVILLE CONSTRUCTION & MAINTENANCE LTD,05/12/2023,100.18
Prosperity & Investment,BiT,Premises-Related Expenditure,R&M -Buildings DLO Charge,GRANVILLE CONSTRUCTION & MAINTENANCE LTD,05/12/2023,154.42
Prosperity & Investment,BiT,Premises-Related Expenditure,R&M -Buildings DLO Charge,GRANVILLE CONSTRUCTION & MAINTENANCE LTD,05/12/2023,272.40
Prosperity & Investment,BiT,Premises-Related Expenditure,R&M -Buildings DLO Charge,GRANVILLE CONSTRUCTION & MAINTENANCE LTD,05/12/2023,272.56
Prosperity & Investment,BiT,Premises-Related Expenditure,R&M -Buildings DLO Charge,GRANVILLE CONSTRUCTION & MAINTENANCE LTD,05/12/2023,106.86
Prosperity & Investment,BiT,Premises-Related Expenditure,R&M -Buildings DLO Charge,GRANVILLE CONSTRUCTION & MAINTENANCE LTD,05/12/2023,598.27
Prosperity & Investment,BiT,Premises-Related Expenditure,R&M -Buildings DLO Charge,GRANVILLE CONSTRUCTION & MAINTENANCE LTD,05/12/2023,168.00
Prosperity & Investment,BiT,Premises-Related Expenditure,R&M -Buildings DLO Charge,GRANVILLE CONSTRUCTION & MAINTENANCE LTD,05/12/2023,204.60
Prosperity & Investment,BiT,Premises-Related Expenditure,R&M -Buildings DLO Charge,GRANVILLE CONSTRUCTION & MAINTENANCE LTD,05/12/2023,790.00
Prosperity & Investment,BiT,Premises-Related Expenditure,R&M -Buildings DLO Charge,GRANVILLE CONSTRUCTION & MAINTENANCE LTD,05/12/2023,128.40
Prosperity & Investment,BiT,Premises-Related Expenditure,R&M -Buildings DLO Charge,GRANVILLE CONSTRUCTION & MAINTENANCE LTD,06/12/2023,"1,391.48"
Prosperity & Investment,BiT,Premises-Related Expenditure,R&M -Buildings DLO Charge,GRANVILLE CONSTRUCTION & MAINTENANCE LTD,06/12/2023,"5,900.00"
Prosperity & Investment,BiT,Premises-Related Expenditure,R&M -Buildings DLO Charge,GRANVILLE CONSTRUCTION & MAINTENANCE LTD,07/12/2023,270.00
Prosperity & Investment,BiT,Premises-Related Expenditure,R&M -Building Other,GRANVILLE CONSTRUCTION & MAINTENANCE LTD,08/12/2023,"2,613.00"
Prosperity & Investment,BiT,Premises-Related Expenditure,R&M -Buildings DLO Charge,GRANVILLE CONSTRUCTION & MAINTENANCE LTD,08/12/2023,"1,360.00"
Prosperity & Investment,BiT,Premises-Related Expenditure,R&M -Buildings DLO Charge,GRANVILLE CONSTRUCTION & MAINTENANCE LTD,08/12/2023,"2,639.07"
Prosperity & Investment,BiT,Premises-Related Expenditure,R&M -Buildings DLO Charge,GRANVILLE CONSTRUCTION & MAINTENANCE LTD,08/12/2023,"1,347.09"
Prosperity & Investment,BiT,Premises-Related Expenditure,R&M -Buildings DLO Charge,GRANVILLE CONSTRUCTION & MAINTENANCE LTD,08/12/2023,"1,200.00"
Prosperity & Investment,BiT,Premises-Related Expenditure,R&M -Buildings DLO Charge,GRANVILLE CONSTRUCTION & MAINTENANCE LTD,08/12/2023,"1,611.00"
Prosperity & Investment,BiT,Premises-Related Expenditure,R&M -Buildings DLO Charge,GRANVILLE CONSTRUCTION & MAINTENANCE LTD,08/12/2023,701.88
Prosperity & Investment,BiT,Premises-Related Expenditure,R&M -Buildings DLO Charge,GRANVILLE CONSTRUCTION & MAINTENANCE LTD,08/12/2023,"1,020.00"
Prosperity & Investment,BiT,Premises-Related Expenditure,R&M -Buildings DLO Charge,GRANVILLE CONSTRUCTION & MAINTENANCE LTD,08/12/2023,708.00
Prosperity & Investment,BiT,Premises-Related Expenditure,R&M -Buildings DLO Charge,GRANVILLE CONSTRUCTION & MAINTENANCE LTD,12/12/2023,120.00
Prosperity & Investment,BiT,Premises-Related Expenditure,R&M -Buildings DLO Charge,GRANVILLE CONSTRUCTION & MAINTENANCE LTD,13/12/2023,160.35
Prosperity & Investment,BiT,Premises-Related Expenditure,R&M -Buildings DLO Charge,GRANVILLE CONSTRUCTION & MAINTENANCE LTD,18/12/2023,200.00
Prosperity & Investment,BiT,Premises-Related Expenditure,R&M -Buildings DLO Charge,GRANVILLE CONSTRUCTION & MAINTENANCE LTD,18/12/2023,"2,160.99"
Prosperity & Investment,BiT,Premises-Related Expenditure,R&M -Buildings DLO Charge,GRANVILLE CONSTRUCTION & MAINTENANCE LTD,18/12/2023,161.24
Prosperity & Investment,BiT,Premises-Related Expenditure,R&M -Buildings DLO Charge,GRANVILLE CONSTRUCTION & MAINTENANCE LTD,19/12/2023,172.49
Prosperity & Investment,BiT,Premises-Related Expenditure,R&M -Buildings DLO Charge,GRANVILLE CONSTRUCTION & MAINTENANCE LTD,19/12/2023,107.24
Prosperity & Investment,BiT,Premises-Related Expenditure,R&M -Buildings DLO Charge,GRANVILLE CONSTRUCTION & MAINTENANCE LTD,19/12/2023,180.00
Prosperity & Investment,BiT,Premises-Related Expenditure,R&M -Buildings DLO Charge,GRANVILLE CONSTRUCTION & MAINTENANCE LTD,19/12/2023,330.60
Prosperity & Investment,BiT,Premises-Related Expenditure,R&M -Building Other,GRANVILLE CONSTRUCTION & MAINTENANCE LTD,19/12/2023,320.00
Prosperity & Investment,BiT,Premises-Related Expenditure,R&M -Building Other,GRANVILLE CONSTRUCTION & MAINTENANCE LTD,19/12/2023,258.00
Prosperity & Investment,BiT,Premises-Related Expenditure,R&M -Building Other,GRANVILLE CONSTRUCTION & MAINTENANCE LTD,19/12/2023,435.60
Prosperity & Investment,BiT,Premises-Related Expenditure,R&M -Building Other,GRANVILLE CONSTRUCTION & MAINTENANCE LTD,19/12/2023,156.00
Prosperity & Investment,BiT,Premises-Related Expenditure,R&M -Building Other,GRANVILLE CONSTRUCTION & MAINTENANCE LTD,19/12/2023,176.17
Prosperity & Investment,BiT,Premises-Related Expenditure,R&M -Buildings DLO Charge,GRANVILLE CONSTRUCTION & MAINTENANCE LTD,19/12/2023,252.00
Prosperity & Investment,BiT,Premises-Related Expenditure,R&M -Buildings DLO Charge,GRANVILLE CONSTRUCTION & MAINTENANCE LTD,19/12/2023,272.24
Prosperity & Investment,BiT,Premises-Related Expenditure,R&M -Buildings DLO Charge,GRANVILLE CONSTRUCTION & MAINTENANCE LTD,19/12/2023,133.59
Prosperity & Investment,BiT,Premises-Related Expenditure,R&M -Buildings DLO Charge,GRANVILLE CONSTRUCTION & MAINTENANCE LTD,19/12/2023,309.70
Prosperity & Investment,BiT,Premises-Related Expenditure,R&M -Buildings DLO Charge,GRANVILLE CONSTRUCTION & MAINTENANCE LTD,19/12/2023,112.50
Prosperity & Investment,BiT,Premises-Related Expenditure,R&M -Buildings DLO Charge,GRANVILLE CONSTRUCTION & MAINTENANCE LTD,19/12/2023,142.55
Prosperity & Investment,BiT,Premises-Related Expenditure,R&M -Building Other,GRANVILLE CONSTRUCTION & MAINTENANCE LTD,19/12/2023,503.77
Prosperity & Investment,BiT,Premises-Related Expenditure,R&M -Buildings DLO Charge,GRANVILLE CONSTRUCTION & MAINTENANCE LTD,19/12/2023,291.00
Prosperity & Investment,BiT,Premises-Related Expenditure,R&M -Buildings DLO Charge,GRANVILLE CONSTRUCTION & MAINTENANCE LTD,20/12/2023,132.23
Prosperity & Investment,BiT,Premises-Related Expenditure,R&M -Building Other,GRANVILLE CONSTRUCTION & MAINTENANCE LTD,21/12/2023,619.99
Prosperity & Investment,BiT,Capital Expenditure,Payments to Contractor,GRANVILLE CONSTRUCTION & MAINTENANCE LTD,08/12/2023,"1,760.00"
Prosperity & Investment,BiT,Capital Expenditure,Payments to Contractor,GRANVILLE CONSTRUCTION & MAINTENANCE LTD,08/12/2023,"4,090.00"
Prosperity & Investment,BiT,Capital Expenditure,Payments to Contractor,GRANVILLE CONSTRUCTION & MAINTENANCE LTD,06/12/2023,"11,550.00"
Prosperity & Investment,BiT,Capital Expenditure,Payments to Contractor,GRANVILLE CONSTRUCTION & MAINTENANCE LTD,06/12/2023,"7,111.70"
Prosperity & Investment,BiT,Capital Expenditure,Payments to Contractor,GRANVILLE CONSTRUCTION & MAINTENANCE LTD,14/12/2023,"3,080.00"
Prosperity & Investment,BiT,Capital Expenditure,Payments to Contractor,GRANVILLE CONSTRUCTION & MAINTENANCE LTD,14/12/2023,"3,389.40"
Prosperity & Investment,BiT,Capital Expenditure,Payments to Contractor,GRANVILLE CONSTRUCTION & MAINTENANCE LTD,14/12/2023,"1,460.00"
Prosperity & Investment,BiT,Capital Expenditure,Payments to Contractor,GRANVILLE CONSTRUCTION & MAINTENANCE LTD,14/12/2023,"3,203.50"
Prosperity & Investment,Regeneration & Investment,Premises-Related Expenditure,R&M -Building Other,GRANVILLE CONSTRUCTION & MAINTENANCE LTD,04/12/2023,349.00
Prosperity & Investment,Regeneration & Investment,Premises-Related Expenditure,R&M -Building Other,GRANVILLE CONSTRUCTION & MAINTENANCE LTD,05/12/2023,"2,800.00"
Prosperity & Investment,Regeneration & Investment,Premises-Related Expenditure,R&M -Building Other,GRANVILLE CONSTRUCTION & MAINTENANCE LTD,05/12/2023,"4,559.00"
Prosperity & Investment,Regeneration & Investment,Premises-Related Expenditure,R&M -Building Other,GRANVILLE CONSTRUCTION & MAINTENANCE LTD,05/12/2023,"1,129.00"
Prosperity & Investment,Regeneration & Investment,Premises-Related Expenditure,R&M -Building Other,GRANVILLE CONSTRUCTION & MAINTENANCE LTD,07/12/2023,398.35
Prosperity & Investment,Regeneration & Investment,Premises-Related Expenditure,R&M -Building Other,GRANVILLE CONSTRUCTION & MAINTENANCE LTD,07/12/2023,597.65
Prosperity & Investment,Regeneration & Investment,Premises-Related Expenditure,R&M -Building Other,GRANVILLE CONSTRUCTION & MAINTENANCE LTD,11/12/2023,"5,156.65"
Prosperity & Investment,Regeneration & Investment,Premises-Related Expenditure,R&M -Building Other,GRANVILLE CONSTRUCTION & MAINTENANCE LTD,13/12/2023,863.16
Prosperity & Investment,Regeneration & Investment,Premises-Related Expenditure,R&M -Building Other,GRANVILLE CONSTRUCTION & MAINTENANCE LTD,13/12/2023,122.42
Prosperity & Investment,Regeneration & Investment,Premises-Related Expenditure,R&M -Building Other,GRANVILLE CONSTRUCTION & MAINTENANCE LTD,13/12/2023,"1,620.00"
Prosperity & Investment,Regeneration & Investment,Premises-Related Expenditure,R&M -Building Other,GRANVILLE CONSTRUCTION & MAINTENANCE LTD,14/12/2023,485.00
Prosperity & Investment,Regeneration & Investment,Premises-Related Expenditure,R&M -Building Other,GRANVILLE CONSTRUCTION & MAINTENANCE LTD,19/12/2023,220.95
Prosperity & Investment,Regeneration & Investment,Premises-Related Expenditure,R&M -Building Other,GRANVILLE CONSTRUCTION & MAINTENANCE LTD,19/12/2023,723.00
Prosperity & Investment,Regeneration & Investment,Premises-Related Expenditure,R&M -Building Other,GRANVILLE CONSTRUCTION & MAINTENANCE LTD,19/12/2023,158.06
Prosperity & Investment,Regeneration & Investment,Premises-Related Expenditure,R&M -Building Other,GRANVILLE CONSTRUCTION & MAINTENANCE LTD,19/12/2023,315.93
Prosperity & Investment,Regeneration & Investment,Premises-Related Expenditure,R&M -Building Other,GRANVILLE CONSTRUCTION & MAINTENANCE LTD,19/12/2023,126.55
Prosperity & Investment,Regeneration & Investment,Capital Expenditure,Payments to Contractor,GRANVILLE CONSTRUCTION & MAINTENANCE LTD,14/12/2023,244.40
Prosperity & Investment,Regeneration & Investment,Capital Expenditure,Payments to Contractor,GRANVILLE CONSTRUCTION & MAINTENANCE LTD,14/12/2023,"1,158.00"
Prosperity & Investment,Regeneration & Investment,Capital Expenditure,Payments to Contractor,GRANVILLE CONSTRUCTION & MAINTENANCE LTD,20/12/2023,"3,480.00"
Prosperity & Investment,Regeneration & Investment,Capital Expenditure,Other Capital Expenditure,GRANVILLE CONSTRUCTION & MAINTENANCE LTD,19/12/2023,296.32
"Communities, Customer & Commercial Services",Community Services,Supplies & Services,Grants To Voluntary Organis,Great Dawley Town Council,19/12/2023,600.00
Prosperity & Investment,BiT,Premises-Related Expenditure,R&M -Buildings DLO Charge,Green Assess Telford and Wrekin,04/12/2023,105.00
Prosperity & Investment,BiT,Premises-Related Expenditure,R&M -Buildings DLO Charge,Green Assess Telford and Wrekin,04/12/2023,105.00
Prosperity & Investment,BiT,Premises-Related Expenditure,R&M -Buildings DLO Charge,Green Assess Telford and Wrekin,04/12/2023,105.00
Prosperity & Investment,BiT,Premises-Related Expenditure,R&M -Buildings DLO Charge,Green Assess Telford and Wrekin,04/12/2023,105.00
Prosperity & Investment,BiT,Premises-Related Expenditure,R&M -Buildings DLO Charge,Green Assess Telford and Wrekin,05/12/2023,105.00
Prosperity & Investment,BiT,Premises-Related Expenditure,R&M -Buildings DLO Charge,Green Assess Telford and Wrekin,08/12/2023,105.00
Prosperity & Investment,BiT,Premises-Related Expenditure,Service Contracts,Green Assess Telford and Wrekin,12/12/2023,105.00
Prosperity & Investment,BiT,Premises-Related Expenditure,R&M -Buildings DLO Charge,Green Assess Telford and Wrekin,12/12/2023,315.00
Prosperity & Investment,BiT,Premises-Related Expenditure,R&M -Buildings DLO Charge,Green Assess Telford and Wrekin,12/12/2023,105.00
Prosperity & Investment,BiT,Premises-Related Expenditure,R&M -Buildings DLO Charge,Green Assess Telford and Wrekin,12/12/2023,105.00
Prosperity & Investment,BiT,Premises-Related Expenditure,R&M -Buildings DLO Charge,Green Assess Telford and Wrekin,14/12/2023,105.00
Prosperity & Investment,BiT,Premises-Related Expenditure,R&M -Buildings DLO Charge,Green Assess Telford and Wrekin,14/12/2023,105.00
Prosperity & Investment,BiT,Premises-Related Expenditure,R&M -Buildings DLO Charge,Green Assess Telford and Wrekin,14/12/2023,105.00
Prosperity & Investment,BiT,Premises-Related Expenditure,R&M -Buildings DLO Charge,Green Assess Telford and Wrekin,18/12/2023,105.00
Prosperity & Investment,BiT,Premises-Related Expenditure,R&M -Buildings DLO Charge,Green Assess Telford and Wrekin,18/12/2023,105.00
Prosperity & Investment,BiT,Premises-Related Expenditure,R&M -Buildings DLO Charge,Green Assess Telford and Wrekin,18/12/2023,105.00
Prosperity & Investment,BiT,Premises-Related Expenditure,R&M -Buildings DLO Charge,Green Assess Telford and Wrekin,18/12/2023,105.00
Prosperity & Investment,BiT,Premises-Related Expenditure,R&M -Buildings DLO Charge,Green Assess Telford and Wrekin,19/12/2023,105.00
Prosperity & Investment,BiT,Premises-Related Expenditure,R&M -Buildings DLO Charge,Green Assess Telford and Wrekin,19/12/2023,105.00
Finance & Human Resources,Revenues,Supplies & Services,Consultancy,G K Ltd,07/12/2023,266.00
Prosperity & Investment,Development Management,Capital Expenditure,Payments to Contractor,GROUND INVESTIGATION & PILING LTD,21/12/2023,"6,763.50"
Prosperity & Investment,Regeneration & Investment,Capital Expenditure,Payments to Contractor,GROUND INVESTIGATION & PILING LTD,12/12/2023,"3,408.50"
Prosperity & Investment,Regeneration & Investment,Capital Expenditure,Payments to Contractor,GROUND INVESTIGATION & PILING LTD,11/12/2023,"31,627.10"
Education & Skills,SEND (0-25),Employees,Agency Supply Costs,Guide Dogs for the Blind,22/12/2023,"2,105.13"
Children�s Safeguarding & Family Support,Child Protection & Family Support,Employees,Professional Subs,H D Consultancy Limited,15/12/2023,250.00
Education & Skills,Skills,Premises-Related Expenditure,Hire Of Rooms,HADLEY & LEEGOMERY PARISH COUNCIL,05/12/2023,136.67
Education & Skills,Skills,Premises-Related Expenditure,Hire Of Rooms,HADLEY & LEEGOMERY PARISH COUNCIL,20/12/2023,160.00
Education & Skills,Skills,Premises-Related Expenditure,Hire Of Rooms,HADLEY & LEEGOMERY PARISH COUNCIL,20/12/2023,160.00
Neighbourhood & Enforcement Services,Neighbourhood & Environmental Services,Supplies & Services,Other Grants (Expenses),HADLEY & LEEGOMERY PARISH COUNCIL,28/12/2023,439.80
Education & Skills,Pupil Support Services,Third Party Payments,DSG - High Needs Block,Hadley Learning Community Academy,08/12/2023,"64,341.00"
Education & Skills,SEND (0-25),Third Party Payments,DSG - High Needs Block,Hadley Learning Community Academy,21/12/2023,"6,000.00"
Education & Skills,SEND (0-25),Third Party Payments,DSG - High Needs Block,Hadley Learning Community Academy,21/12/2023,335.84
Education & Skills,SEND (0-25),Third Party Payments,DSG - High Needs Block,HADLEY UNDER 5�S ,21/12/2023,240.44
"Communities, Customer & Commercial Services",Sport & Leisure,Supplies & Services,Provisions,Handmade Speciality Products Ltd,04/12/2023,312.84
"Communities, Customer & Commercial Services",Sport & Leisure,Supplies & Services,Provisions,Handmade Speciality Products Ltd,11/12/2023,325.44
"Communities, Customer & Commercial Services",Sport & Leisure,Supplies & Services,Provisions,Handmade Speciality Products Ltd,18/12/2023,336.43
"Communities, Customer & Commercial Services",Customer Relationships & Welfare Services,Supplies & Services,Other Grants (Expenses),Hawk Incentives Ltd,07/12/2023,"310,968.00"
"Communities, Customer & Commercial Services",Customer Relationships & Welfare Services,Supplies & Services,Other Grants (Expenses),Hawk Incentives Ltd,11/12/2023,"19,744.00"
Finance & Human Resources,Human Resources,Supplies & Services,Doctors Fees,Health Assured Ltd,07/12/2023,"3,429.00"
Finance & Human Resources,Human Resources,Supplies & Services,Doctors Fees,Health Assured Ltd,07/12/2023,"3,429.00"
Education & Skills,Consultancy & Advisory Services,Supplies & Services,Conference Expenses,HEMPSALL CONSULTANCIES LIMITED,05/12/2023,"2,140.70"
Neighbourhood & Enforcement Services,Neighbourhood & Environmental Services,Supplies & Services,Other Services,HILBRAE PETS HOTEL,01/12/2023,-340.00
Neighbourhood & Enforcement Services,Enforcement,Supplies & Services,Other Services,HOLLINSWOOD & RANDLAY PARISH COUNCIL,14/12/2023,160.00
Education & Skills,SEND (0-25),Third Party Payments,DSG - High Needs Block,HONEYBUNS NURSERIES,21/12/2023,401.64
"Housing, Employment & Infrastructure",Inward Investment & Business Support,Supplies & Services,Consultancy,Horizons Consultants Ltd,07/12/2023,250.00
Adult Social Care,Prevention & Independence - Older Adults & Disability,Supplies & Services,Aids & Appliances,HOSPITAL DIRECT LTD,11/12/2023,109.80
Neighbourhood & Enforcement Services,Enforcement,Supplies & Services,Security Services,H G Garage Ltd,01/12/2023,389.00
Neighbourhood & Enforcement Services,Enforcement,Supplies & Services,Security Services,H G Garage Ltd,01/12/2023,356.00
Neighbourhood & Enforcement Services,Enforcement,Transport-Related Expenditure,Servicing & Repairs V&P,H G Garage Ltd,18/12/2023,120.00
Neighbourhood & Enforcement Services,Strategic Transport & Highway Network Management,Transport-Related Expenditure,Servicing & Repairs V&P,H G Garage Ltd,19/12/2023,110.00
Prosperity & Investment,BiT,Premises-Related Expenditure,Service Contracts,HOUSE OF PLAY LTD,07/12/2023,622.50
Neighbourhood & Enforcement Services,"Highways, Engineering & Project Delivery",Supplies & Services,Other Services,Hydro-Logic Services Ltd,13/12/2023,728.00
Prosperity & Investment,BiT,Premises-Related Expenditure,R&M -Buildings DLO Charge,HYDRO-TECH ENVIRONMENTAL LLP,04/12/2023,160.00
Prosperity & Investment,BiT,Premises-Related Expenditure,R&M -Buildings DLO Charge,HYDRO-TECH ENVIRONMENTAL LLP,04/12/2023,160.00
Prosperity & Investment,BiT,Premises-Related Expenditure,R&M -Buildings DLO Charge,HYDRO-TECH ENVIRONMENTAL LLP,04/12/2023,380.00
Prosperity & Investment,BiT,Premises-Related Expenditure,R&M -Buildings DLO Charge,HYDRO-TECH ENVIRONMENTAL LLP,04/12/2023,160.00
Prosperity & Investment,BiT,Premises-Related Expenditure,R&M -Buildings DLO Charge,HYDRO-TECH ENVIRONMENTAL LLP,04/12/2023,160.00
Prosperity & Investment,BiT,Premises-Related Expenditure,R&M -Buildings DLO Charge,HYDRO-TECH ENVIRONMENTAL LLP,04/12/2023,160.00
Prosperity & Investment,BiT,Premises-Related Expenditure,R&M -Buildings DLO Charge,HYDRO-TECH ENVIRONMENTAL LLP,04/12/2023,160.00
Prosperity & Investment,BiT,Premises-Related Expenditure,R&M -Buildings DLO Charge,HYDRO-TECH ENVIRONMENTAL LLP,05/12/2023,380.00
Prosperity & Investment,BiT,Premises-Related Expenditure,R&M -Buildings DLO Charge,HYDRO-TECH ENVIRONMENTAL LLP,05/12/2023,180.00
Prosperity & Investment,BiT,Premises-Related Expenditure,R&M -Buildings DLO Charge,HYDRO-TECH ENVIRONMENTAL LLP,05/12/2023,160.00
Prosperity & Investment,BiT,Premises-Related Expenditure,R&M -Buildings DLO Charge,HYDRO-TECH ENVIRONMENTAL LLP,05/12/2023,160.00
Prosperity & Investment,BiT,Premises-Related Expenditure,R&M -Buildings DLO Charge,HYDRO-TECH ENVIRONMENTAL LLP,05/12/2023,160.00
Prosperity & Investment,BiT,Premises-Related Expenditure,R&M -Buildings DLO Charge,HYDRO-TECH ENVIRONMENTAL LLP,05/12/2023,205.00
Prosperity & Investment,BiT,Premises-Related Expenditure,R&M -Buildings DLO Charge,HYDRO-TECH ENVIRONMENTAL LLP,05/12/2023,380.00
Prosperity & Investment,BiT,Premises-Related Expenditure,R&M -Buildings DLO Charge,HYDRO-TECH ENVIRONMENTAL LLP,05/12/2023,160.00
Prosperity & Investment,BiT,Premises-Related Expenditure,R&M -Buildings DLO Charge,HYDRO-TECH ENVIRONMENTAL LLP,05/12/2023,205.00
Prosperity & Investment,BiT,Premises-Related Expenditure,R&M -Buildings DLO Charge,HYDRO-TECH ENVIRONMENTAL LLP,05/12/2023,160.00
Prosperity & Investment,BiT,Premises-Related Expenditure,R&M -Buildings DLO Charge,HYDRO-TECH ENVIRONMENTAL LLP,05/12/2023,380.00
Prosperity & Investment,BiT,Premises-Related Expenditure,R&M -Buildings DLO Charge,HYDRO-TECH ENVIRONMENTAL LLP,05/12/2023,380.00
Prosperity & Investment,BiT,Premises-Related Expenditure,R&M -Buildings DLO Charge,HYDRO-TECH ENVIRONMENTAL LLP,05/12/2023,160.00
Prosperity & Investment,BiT,Premises-Related Expenditure,Service Contracts,HYDRO-TECH ENVIRONMENTAL LLP,05/12/2023,380.00
Prosperity & Investment,BiT,Premises-Related Expenditure,Service Contracts,HYDRO-TECH ENVIRONMENTAL LLP,05/12/2023,420.85
Prosperity & Investment,BiT,Premises-Related Expenditure,Service Contracts,HYDRO-TECH ENVIRONMENTAL LLP,05/12/2023,160.00
Prosperity & Investment,BiT,Premises-Related Expenditure,Service Contracts,HYDRO-TECH ENVIRONMENTAL LLP,05/12/2023,510.00
Prosperity & Investment,BiT,Premises-Related Expenditure,Service Contracts,HYDRO-TECH ENVIRONMENTAL LLP,05/12/2023,625.00
Prosperity & Investment,BiT,Premises-Related Expenditure,R&M -Buildings DLO Charge,HYDRO-TECH ENVIRONMENTAL LLP,05/12/2023,390.00
Prosperity & Investment,BiT,Premises-Related Expenditure,Service Contracts,HYDRO-TECH ENVIRONMENTAL LLP,05/12/2023,125.00
Prosperity & Investment,BiT,Premises-Related Expenditure,R&M -Buildings DLO Charge,HYDRO-TECH ENVIRONMENTAL LLP,05/12/2023,240.00
Prosperity & Investment,BiT,Premises-Related Expenditure,R&M -Buildings DLO Charge,HYDRO-TECH ENVIRONMENTAL LLP,06/12/2023,380.00
Prosperity & Investment,BiT,Premises-Related Expenditure,R&M -Buildings DLO Charge,HYDRO-TECH ENVIRONMENTAL LLP,07/12/2023,150.00
Prosperity & Investment,BiT,Premises-Related Expenditure,R&M -Buildings DLO Charge,HYDRO-TECH ENVIRONMENTAL LLP,13/12/2023,390.00
Prosperity & Investment,Regeneration & Investment,Capital Expenditure,Compensation,REDACTED PERSONAL INFORMATION,04/12/2023,275.00
Adult Social Care,"Assurance, Transformation & Financial Management",Supplies & Services,Comp Hardware (Purch / Hire),ICT Revolutions Ltd,18/12/2023,"6,000.00"
Neighbourhood & Enforcement Services,"Highways, Engineering & Project Delivery",Capital Expenditure,Payments to Contractor,Id verde,14/12/2023,"14,737.00"
Neighbourhood & Enforcement Services,Neighbourhood & Environmental Services,Third Party Payments,Contractor Recharge,Id verde,05/12/2023,"504,941.78"
Prosperity & Investment,Regeneration & Investment,Premises-Related Expenditure,Grounds Maintenance - L&CS,Id verde,11/12/2023,134.94
Prosperity & Investment,Regeneration & Investment,Premises-Related Expenditure,Grounds Maintenance - L&CS,Id verde,11/12/2023,134.94
Prosperity & Investment,Regeneration & Investment,Premises-Related Expenditure,Grounds Maintenance - L&CS,Id verde,14/12/2023,"1,545.00"
Prosperity & Investment,Development Management,Supplies & Services,Application Software Maint,IDOX SOFTWARE LTD,01/12/2023,"9,000.00"
"Communities, Customer & Commercial Services",Sport & Leisure,Supplies & Services,Protective Clothing,IMAGE@WORK LTD,04/12/2023,"1,087.81"
"Communities, Customer & Commercial Services",Sport & Leisure,Supplies & Services,Protective Clothing,IMAGE@WORK LTD,13/12/2023,119.25
Finance & Human Resources,Revenues,Supplies & Services,Consultancy,Inform CPI Ltd,07/12/2023,"4,150.00"
Finance & Human Resources,Revenues,Supplies & Services,Consultancy,Inform CPI Ltd,20/12/2023,300.00
Education & Skills,SEND (0-25),Supplies & Services,Other Services,Inspire EdPsych Ltd,21/12/2023,"1,000.00"
Education & Skills,SEND (0-25),Supplies & Services,Other Services,Inspire EdPsych Ltd,21/12/2023,"1,000.00"
Neighbourhood & Enforcement Services,Public Protection,Employees,Cont Prof Development,INSTITUTE OF LICENSING LTD ,20/12/2023,165.00
"Communities, Customer & Commercial Services",Customer Relationships & Welfare Services,Employees,Professional Subs,IRRV,15/12/2023,660.00
Finance & Human Resources,Revenues,Employees,Professional Subs,IRRV,04/12/2023,207.00
Finance & Human Resources,Revenues,Employees,Professional Subs,IRRV,15/12/2023,660.00
Education & Skills,Consultancy & Advisory Services,Employees,Staff Training,ITS Training Limited,04/12/2023,335.00
"Communities, Customer & Commercial Services",Sport & Leisure,Supplies & Services,Equipment - Purchase,J P L LTD,18/12/2023,101.25
"Communities, Customer & Commercial Services",Sport & Leisure,Supplies & Services,Equipment - Purchase,J P L LTD,18/12/2023,101.25
"Communities, Customer & Commercial Services",Sport & Leisure,Supplies & Services,Equipment - Purchase,J P L LTD,21/12/2023,159.30
Education & Skills,Skills,Supplies & Services,Equipment - Purchase,REDACTED PERSONAL INFORMATION,05/12/2023,147.77
Education & Skills,Skills,Supplies & Services,Research Surveys,J2 Research LTD,05/12/2023,"3,390.00"
Prosperity & Investment,BiT,Premises-Related Expenditure,Service Contracts,JAK WATER SYSTEMS LTD,14/12/2023,"1,158.72"
Prosperity & Investment,BiT,Premises-Related Expenditure,Service Contracts,JAK WATER SYSTEMS LTD,14/12/2023,319.32
Prosperity & Investment,BiT,Premises-Related Expenditure,Service Contracts,JAK WATER SYSTEMS LTD,14/12/2023,111.50
Prosperity & Investment,BiT,Premises-Related Expenditure,Service Contracts,JAK WATER SYSTEMS LTD,14/12/2023,161.50
Prosperity & Investment,BiT,Premises-Related Expenditure,Service Contracts,JAK WATER SYSTEMS LTD,14/12/2023,286.50
Adult Social Care,My Options,Capital Expenditure,Payments to Contractor,JCE & SONS LTD,14/12/2023,310.06
"Communities, Customer & Commercial Services",Culture & Events,Supplies & Services,Equipment - Hire,JCE & SONS LTD,14/12/2023,427.50
"Communities, Customer & Commercial Services",Sport & Leisure,Supplies & Services,Sub Contractors,JCE & SONS LTD,08/12/2023,"32,107.00"
"Communities, Customer & Commercial Services",Sport & Leisure,Supplies & Services,Equipment - Purchase,JCE & SONS LTD,18/12/2023,"3,471.35"
"Housing, Employment & Infrastructure",Inward Investment & Business Support,Supplies & Services,Marketing & Publicity,JCE & SONS LTD,07/12/2023,"1,003.48"
Prosperity & Investment,BiT,Premises-Related Expenditure,R&M -Buildings DLO Charge,JCE & SONS LTD,04/12/2023,343.00
Prosperity & Investment,BiT,Premises-Related Expenditure,R&M -Buildings DLO Charge,JCE & SONS LTD,05/12/2023,148.50
Prosperity & Investment,BiT,Premises-Related Expenditure,R&M -Buildings DLO Charge,JCE & SONS LTD,05/12/2023,237.60
Prosperity & Investment,BiT,Premises-Related Expenditure,R&M -Buildings DLO Charge,JCE & SONS LTD,05/12/2023,882.00
Prosperity & Investment,BiT,Supplies & Services,Test Portable Elec Equipment,JCE & SONS LTD,06/12/2023,311.25
Prosperity & Investment,BiT,Supplies & Services,Test Portable Elec Equipment,JCE & SONS LTD,08/12/2023,463.50
Prosperity & Investment,BiT,Supplies & Services,Test Portable Elec Equipment,JCE & SONS LTD,08/12/2023,352.50
Prosperity & Investment,BiT,Premises-Related Expenditure,R&M -Buildings DLO Charge,JCE & SONS LTD,08/12/2023,840.00
Prosperity & Investment,BiT,Premises-Related Expenditure,R&M -Buildings DLO Charge,JCE & SONS LTD,13/12/2023,390.00
Prosperity & Investment,BiT,Premises-Related Expenditure,R&M -Buildings DLO Charge,JCE & SONS LTD,13/12/2023,419.12
Prosperity & Investment,BiT,Premises-Related Expenditure,R&M -Buildings DLO Charge,JCE & SONS LTD,13/12/2023,103.12
Prosperity & Investment,BiT,Premises-Related Expenditure,R&M -Buildings DLO Charge,JCE & SONS LTD,13/12/2023,168.34
Prosperity & Investment,BiT,Premises-Related Expenditure,R&M -Buildings DLO Charge,JCE & SONS LTD,13/12/2023,182.90
Prosperity & Investment,BiT,Premises-Related Expenditure,R&M -Buildings DLO Charge,JCE & SONS LTD,13/12/2023,206.56
Prosperity & Investment,BiT,Premises-Related Expenditure,R&M -Buildings DLO Charge,JCE & SONS LTD,13/12/2023,145.26
Prosperity & Investment,BiT,Premises-Related Expenditure,R&M -Buildings DLO Charge,JCE & SONS LTD,14/12/2023,237.40
Prosperity & Investment,BiT,Premises-Related Expenditure,R&M -Buildings DLO Charge,JCE & SONS LTD,14/12/2023,"1,271.89"
Prosperity & Investment,BiT,Premises-Related Expenditure,R&M -Buildings DLO Charge,JCE & SONS LTD,14/12/2023,245.00
Prosperity & Investment,BiT,Supplies & Services,Test Portable Elec Equipment,JCE & SONS LTD,14/12/2023,353.25
Prosperity & Investment,BiT,Supplies & Services,Test Portable Elec Equipment,JCE & SONS LTD,14/12/2023,183.00
Prosperity & Investment,BiT,Premises-Related Expenditure,R&M -Buildings DLO Charge,JCE & SONS LTD,18/12/2023,133.50
Prosperity & Investment,BiT,Premises-Related Expenditure,R&M -Buildings DLO Charge,JCE & SONS LTD,18/12/2023,293.20
Prosperity & Investment,BiT,Premises-Related Expenditure,R&M -Buildings DLO Charge,JCE & SONS LTD,18/12/2023,130.50
Prosperity & Investment,BiT,Premises-Related Expenditure,R&M -Buildings DLO Charge,JCE & SONS LTD,18/12/2023,263.56
Prosperity & Investment,BiT,Premises-Related Expenditure,R&M -Buildings DLO Charge,JCE & SONS LTD,18/12/2023,133.50
Prosperity & Investment,BiT,Premises-Related Expenditure,R&M -Buildings DLO Charge,JCE & SONS LTD,18/12/2023,359.24
Prosperity & Investment,BiT,Supplies & Services,Test Portable Elec Equipment,JCE & SONS LTD,18/12/2023,129.75
Prosperity & Investment,BiT,Premises-Related Expenditure,R&M -Buildings DLO Charge,JCE & SONS LTD,18/12/2023,176.96
Prosperity & Investment,BiT,Premises-Related Expenditure,R&M -Buildings DLO Charge,JCE & SONS LTD,19/12/2023,342.80
Prosperity & Investment,BiT,Premises-Related Expenditure,R&M -Buildings DLO Charge,JCE & SONS LTD,19/12/2023,773.30
Prosperity & Investment,BiT,Premises-Related Expenditure,R&M -Buildings DLO Charge,JCE & SONS LTD,19/12/2023,230.66
Prosperity & Investment,BiT,Premises-Related Expenditure,R&M -Buildings DLO Charge,JCE & SONS LTD,19/12/2023,570.00
Prosperity & Investment,BiT,Premises-Related Expenditure,R&M -Buildings DLO Charge,JCE & SONS LTD,19/12/2023,"1,958.00"
Prosperity & Investment,BiT,Premises-Related Expenditure,R&M -Buildings DLO Charge,JCE & SONS LTD,19/12/2023,334.49
Prosperity & Investment,BiT,Premises-Related Expenditure,R&M -Buildings DLO Charge,JCE & SONS LTD,21/12/2023,236.00
Prosperity & Investment,BiT,Premises-Related Expenditure,R&M -Buildings DLO Charge,JCE & SONS LTD,21/12/2023,139.25
Prosperity & Investment,BiT,Premises-Related Expenditure,R&M -Buildings DLO Charge,JCE & SONS LTD,21/12/2023,631.14
Prosperity & Investment,BiT,Premises-Related Expenditure,R&M -Buildings DLO Charge,JCE & SONS LTD,21/12/2023,243.35
Prosperity & Investment,BiT,Premises-Related Expenditure,R&M -Buildings DLO Charge,JCE & SONS LTD,21/12/2023,183.00
Prosperity & Investment,BiT,Capital Expenditure,Payments to Contractor,JCE & SONS LTD,14/12/2023,404.57
Prosperity & Investment,BiT,Capital Expenditure,Payments to Contractor,JCE & SONS LTD,14/12/2023,418.66
Prosperity & Investment,BiT,Capital Expenditure,Payments to Contractor,JCE & SONS LTD,14/12/2023,"1,028.00"
Prosperity & Investment,BiT,Capital Expenditure,Payments to Contractor,JCE & SONS LTD,19/12/2023,"3,837.31"
Prosperity & Investment,Regeneration & Investment,Premises-Related Expenditure,Dilapidations,JCE & SONS LTD,13/12/2023,"8,800.00"
Prosperity & Investment,Regeneration & Investment,Premises-Related Expenditure,R&M -Building Other,JCE & SONS LTD,14/12/2023,243.00
Prosperity & Investment,Regeneration & Investment,Premises-Related Expenditure,R&M -Building Other,JCE & SONS LTD,14/12/2023,547.98
Prosperity & Investment,Regeneration & Investment,Third Party Payments,Contractor Recharge,JCE & SONS LTD,14/12/2023,"4,239.80"
Prosperity & Investment,Regeneration & Investment,Premises-Related Expenditure,R&M -Building Other,JCE & SONS LTD,19/12/2023,626.87
Prosperity & Investment,Regeneration & Investment,Premises-Related Expenditure,R&M -Building Other,JCE & SONS LTD,19/12/2023,423.96
Prosperity & Investment,Regeneration & Investment,Premises-Related Expenditure,R&M -Building Other,JCE & SONS LTD,19/12/2023,"2,341.33"
Prosperity & Investment,Regeneration & Investment,Premises-Related Expenditure,Dilapidations,JCE & SONS LTD,19/12/2023,332.80
Children�s Safeguarding & Family Support,"Family Placements, Children in Care, Leaving Care & Emergency Duty Team",Supplies & Services,Aids & Appliances,Jiraffe,07/12/2023,"3,110.00"
Children�s Safeguarding & Family Support,"Family Placements, Children in Care, Leaving Care & Emergency Duty Team",Supplies & Services,Aids & Appliances,Jiraffe,14/12/2023,754.00
"Communities, Customer & Commercial Services",ICT,Supplies & Services,Comp Software (Purch / Hire),JISC SERVICES LTD ,06/12/2023,"18,500.00"
Health & Wellbeing,Consultant in Public Health,Supplies & Services,Other Services,J U Removals Ltd,08/12/2023,"1,771.20"
"Communities, Customer & Commercial Services",Sport & Leisure,Supplies & Services,EEC Whole Milk,J DAIRIES,07/12/2023,"1,767.36"
"Communities, Customer & Commercial Services",Sport & Leisure,Supplies & Services,EEC Whole Milk,J DAIRIES,07/12/2023,802.75
"Communities, Customer & Commercial Services",Sport & Leisure,Supplies & Services,EEC Whole Milk,J DAIRIES,18/12/2023,796.25
"Communities, Customer & Commercial Services",Sport & Leisure,Supplies & Services,EEC Whole Milk,J DAIRIES,18/12/2023,"1,772.56"
"Communities, Customer & Commercial Services",Sport & Leisure,Supplies & Services,EEC Whole Milk,J DAIRIES,20/12/2023,797.55
"Communities, Customer & Commercial Services",Sport & Leisure,Supplies & Services,EEC Whole Milk,J DAIRIES,20/12/2023,"1,764.96"
Finance & Human Resources,Revenues,Supplies & Services,Printing - Other,J P Printers Limited,19/12/2023,993.00
Finance & Human Resources,Revenues,Supplies & Services,Printing - Other,J P Printers Limited,20/12/2023,161.00
"Communities, Customer & Commercial Services",Sport & Leisure,Supplies & Services,Provisions,J S Catering Butchers,12/12/2023,218.47
"Communities, Customer & Commercial Services",Sport & Leisure,Supplies & Services,Provisions,J S Catering Butchers,12/12/2023,111.53
"Communities, Customer & Commercial Services",Sport & Leisure,Supplies & Services,Provisions,J S Catering Butchers,12/12/2023,182.25
"Communities, Customer & Commercial Services",Sport & Leisure,Supplies & Services,Provisions,J S Catering Butchers,12/12/2023,266.10
"Communities, Customer & Commercial Services",Sport & Leisure,Supplies & Services,Provisions,J S Catering Butchers,12/12/2023,140.74
"Communities, Customer & Commercial Services",Sport & Leisure,Supplies & Services,Provisions,J S Catering Butchers,12/12/2023,112.00
"Communities, Customer & Commercial Services",Sport & Leisure,Supplies & Services,Provisions,J S Catering Butchers,12/12/2023,103.99
"Communities, Customer & Commercial Services",Sport & Leisure,Supplies & Services,Provisions,J S Catering Butchers,12/12/2023,180.63
"Communities, Customer & Commercial Services",Sport & Leisure,Supplies & Services,Provisions,J S Catering Butchers,12/12/2023,113.63
"Communities, Customer & Commercial Services",Sport & Leisure,Supplies & Services,Provisions,J S Catering Butchers,12/12/2023,110.40
"Communities, Customer & Commercial Services",Sport & Leisure,Supplies & Services,Provisions,J S Catering Butchers,12/12/2023,147.10
"Communities, Customer & Commercial Services",Sport & Leisure,Supplies & Services,Provisions,J S Catering Butchers,12/12/2023,106.61
"Communities, Customer & Commercial Services",Sport & Leisure,Supplies & Services,Provisions,J S Catering Butchers,12/12/2023,174.88
"Communities, Customer & Commercial Services",Sport & Leisure,Supplies & Services,Provisions,J S Catering Butchers,12/12/2023,106.08
"Communities, Customer & Commercial Services",Sport & Leisure,Supplies & Services,Provisions,J S Catering Butchers,12/12/2023,383.98
"Communities, Customer & Commercial Services",Sport & Leisure,Supplies & Services,Provisions,J S Catering Butchers,12/12/2023,170.00
"Communities, Customer & Commercial Services",Sport & Leisure,Supplies & Services,Provisions,J S Catering Butchers,12/12/2023,118.33
"Communities, Customer & Commercial Services",Sport & Leisure,Supplies & Services,Provisions,J S Catering Butchers,18/12/2023,109.28
"Communities, Customer & Commercial Services",Sport & Leisure,Supplies & Services,Provisions,J S Catering Butchers,18/12/2023,104.93
"Communities, Customer & Commercial Services",Sport & Leisure,Supplies & Services,Provisions,J S Catering Butchers,18/12/2023,108.38
"Communities, Customer & Commercial Services",Sport & Leisure,Supplies & Services,Provisions,J S Catering Butchers,18/12/2023,336.40
"Communities, Customer & Commercial Services",Sport & Leisure,Supplies & Services,Provisions,J S Catering Butchers,18/12/2023,130.05
"Communities, Customer & Commercial Services",Sport & Leisure,Supplies & Services,Provisions,J S Catering Butchers,18/12/2023,123.09
"Communities, Customer & Commercial Services",Sport & Leisure,Supplies & Services,Provisions,J S Catering Butchers,18/12/2023,650.25
Education & Skills,Education & Skills,Capital Expenditure,Payments to Contractor,J CONTROLS LTD,08/12/2023,"65,161.37"
Prosperity & Investment,BiT,Premises-Related Expenditure,R&M -Buildings DLO Charge,J CONTROLS LTD,05/12/2023,"1,024.00"
Neighbourhood & Enforcement Services,Strategic Transport & Highway Network Management,Capital Expenditure,Payments to Contractor,Journeo Passenger Systems Ltd,06/12/2023,"2,679.20"
Neighbourhood & Enforcement Services,Strategic Transport & Highway Network Management,Capital Expenditure,Payments to Contractor,Journeo Passenger Systems Ltd,06/12/2023,"2,480.00"
Neighbourhood & Enforcement Services,Strategic Transport & Highway Network Management,Capital Expenditure,Payments to Contractor,Journeo Passenger Systems Ltd,05/12/2023,"6,200.00"
Neighbourhood & Enforcement Services,Strategic Transport & Highway Network Management,Capital Expenditure,Payments to Contractor,Journeo Passenger Systems Ltd,05/12/2023,"5,040.00"
Neighbourhood & Enforcement Services,Strategic Transport & Highway Network Management,Capital Expenditure,Payments to Contractor,Journeo Passenger Systems Ltd,05/12/2023,"2,280.00"
Neighbourhood & Enforcement Services,Strategic Transport & Highway Network Management,Capital Expenditure,Payments to Contractor,Journeo Passenger Systems Ltd,05/12/2023,"2,016.00"
Neighbourhood & Enforcement Services,Strategic Transport & Highway Network Management,Capital Expenditure,Payments to Contractor,Journeo Passenger Systems Ltd,05/12/2023,"1,801.60"
Neighbourhood & Enforcement Services,Strategic Transport & Highway Network Management,Capital Expenditure,Payments to Contractor,Journeo Passenger Systems Ltd,05/12/2023,"2,016.00"
Neighbourhood & Enforcement Services,Strategic Transport & Highway Network Management,Capital Expenditure,Payments to Contractor,Journeo Passenger Systems Ltd,05/12/2023,"5,140.50"
Neighbourhood & Enforcement Services,Strategic Transport & Highway Network Management,Capital Expenditure,Payments to Contractor,Journeo Passenger Systems Ltd,05/12/2023,"5,700.00"
Neighbourhood & Enforcement Services,Strategic Transport & Highway Network Management,Capital Expenditure,Payments to Contractor,Journeo Passenger Systems Ltd,05/12/2023,"2,329.80"
Neighbourhood & Enforcement Services,Strategic Transport & Highway Network Management,Capital Expenditure,Payments to Contractor,Journeo Passenger Systems Ltd,05/12/2023,"2,016.00"
Neighbourhood & Enforcement Services,Strategic Transport & Highway Network Management,Capital Expenditure,Payments to Contractor,Journeo Passenger Systems Ltd,05/12/2023,"2,016.00"
Neighbourhood & Enforcement Services,Strategic Transport & Highway Network Management,Capital Expenditure,Payments to Contractor,Journeo Passenger Systems Ltd,05/12/2023,"2,785.60"
Neighbourhood & Enforcement Services,Strategic Transport & Highway Network Management,Capital Expenditure,Payments to Contractor,Journeo Passenger Systems Ltd,05/12/2023,"2,137.20"
Neighbourhood & Enforcement Services,Strategic Transport & Highway Network Management,Capital Expenditure,Payments to Contractor,Journeo Passenger Systems Ltd,05/12/2023,"1,801.60"
Neighbourhood & Enforcement Services,Strategic Transport & Highway Network Management,Capital Expenditure,Payments to Contractor,Journeo Passenger Systems Ltd,05/12/2023,"2,280.00"
Neighbourhood & Enforcement Services,Strategic Transport & Highway Network Management,Capital Expenditure,Payments to Contractor,Journeo Passenger Systems Ltd,05/12/2023,"2,785.60"
Neighbourhood & Enforcement Services,Strategic Transport & Highway Network Management,Capital Expenditure,Payments to Contractor,Journeo Passenger Systems Ltd,05/12/2023,"5,700.00"
Neighbourhood & Enforcement Services,Strategic Transport & Highway Network Management,Capital Expenditure,Payments to Contractor,Journeo Passenger Systems Ltd,05/12/2023,"6,698.00"
Neighbourhood & Enforcement Services,Strategic Transport & Highway Network Management,Capital Expenditure,Payments to Contractor,Journeo Passenger Systems Ltd,05/12/2023,"6,964.00"
Neighbourhood & Enforcement Services,Strategic Transport & Highway Network Management,Capital Expenditure,Payments to Contractor,Journeo Passenger Systems Ltd,05/12/2023,"3,337.80"
Neighbourhood & Enforcement Services,Strategic Transport & Highway Network Management,Capital Expenditure,Payments to Contractor,Journeo Passenger Systems Ltd,05/12/2023,"3,337.80"
Neighbourhood & Enforcement Services,Strategic Transport & Highway Network Management,Capital Expenditure,Payments to Contractor,Journeo Passenger Systems Ltd,05/12/2023,"2,056.20"
Neighbourhood & Enforcement Services,Strategic Transport & Highway Network Management,Capital Expenditure,Payments to Contractor,Journeo Passenger Systems Ltd,14/12/2023,"3,630.90"
Neighbourhood & Enforcement Services,Strategic Transport & Highway Network Management,Capital Expenditure,Payments to Contractor,Journeo Passenger Systems Ltd,14/12/2023,"4,119.60"
Neighbourhood & Enforcement Services,Strategic Transport & Highway Network Management,Capital Expenditure,Payments to Contractor,Journeo Passenger Systems Ltd,14/12/2023,"4,059.30"
Neighbourhood & Enforcement Services,Strategic Transport & Highway Network Management,Capital Expenditure,Payments to Contractor,Journeo Passenger Systems Ltd,14/12/2023,"3,024.00"
Neighbourhood & Enforcement Services,Strategic Transport & Highway Network Management,Capital Expenditure,Payments to Contractor,Journeo Passenger Systems Ltd,14/12/2023,"4,628.40"
Neighbourhood & Enforcement Services,Strategic Transport & Highway Network Management,Capital Expenditure,Payments to Contractor,Journeo Passenger Systems Ltd,14/12/2023,"2,809.80"
Neighbourhood & Enforcement Services,Strategic Transport & Highway Network Management,Capital Expenditure,Payments to Contractor,Journeo Passenger Systems Ltd,14/12/2023,"3,024.00"
Neighbourhood & Enforcement Services,Strategic Transport & Highway Network Management,Capital Expenditure,Payments to Contractor,Journeo Passenger Systems Ltd,14/12/2023,"3,266.70"
Neighbourhood & Enforcement Services,Strategic Transport & Highway Network Management,Capital Expenditure,Payments to Contractor,Journeo Passenger Systems Ltd,14/12/2023,"3,024.00"
Neighbourhood & Enforcement Services,Strategic Transport & Highway Network Management,Capital Expenditure,Payments to Contractor,Journeo Passenger Systems Ltd,14/12/2023,"4,690.80"
Adult Social Care,My Options,Supplies & Services,Respite Care,REDACTED PERSONAL INFORMATION,07/12/2023,346.44
Education & Skills,SEND (0-25),Supplies & Services,Health & Safety Expenses,Just for schools,14/12/2023,439.09
Policy & Governance,Governance & Legal Services,Transport-Related Expenditure,District Council Vehicles,K & L CARS,14/12/2023,442.50
"Communities, Customer & Commercial Services",Sport & Leisure,Premises-Related Expenditure,R&M WC Planned,K S CONTRACTING SERVICES,19/12/2023,160.00
"Communities, Customer & Commercial Services",Sport & Leisure,Premises-Related Expenditure,R&M WC Planned,K S CONTRACTING SERVICES,19/12/2023,140.00
Prosperity & Investment,Regeneration & Investment,Capital Expenditure,External Professional Fees,Kajima Partnerships Ltd,18/12/2023,"12,463.00"
Prosperity & Investment,Regeneration & Investment,Capital Expenditure,External Professional Fees,Kajima Partnerships Ltd,18/12/2023,"25,159.81"
Prosperity & Investment,Regeneration & Investment,Capital Expenditure,Marketing / Advertising,Kensa Creative Ltd,20/12/2023,210.00
Prosperity & Investment,Regeneration & Investment,Capital Expenditure,Marketing / Advertising,Kensa Creative Ltd,20/12/2023,210.00
Education & Skills,SEND (0-25),Third Party Payments,DSG - High Needs Block,Keys PCE Limited,22/12/2023,"22,125.00"
Education & Skills,SEND (0-25),Third Party Payments,DSG - High Needs Block,Keys PCE Limited,22/12/2023,"25,500.00"
Education & Skills,SEND (0-25),Third Party Payments,DSG - High Needs Block,Keys PCE Limited,22/12/2023,"22,125.00"
"Communities, Customer & Commercial Services",Customer Relationships & Welfare Services,Transfer Payments,Crisis Assistance Awards,Kings of the Road,12/12/2023,495.00
"Communities, Customer & Commercial Services",Customer Relationships & Welfare Services,Transfer Payments,Crisis Assistance Awards,Kings of the Road,15/12/2023,475.00
"Communities, Customer & Commercial Services",Customer Relationships & Welfare Services,Transfer Payments,Crisis Assistance Awards,Kings of the Road,19/12/2023,475.00
Children�s Safeguarding & Family Support,"Family Placements, Children in Care, Leaving Care & Emergency Duty Team",Supplies & Services,Form F Assessments,Kite Fostering Consultancy Ltd,07/12/2023,"2,029.70"
Education & Skills,Education & Skills,Capital Expenditure,Payments to Contractor,KN Services Staffordshire Ltd,14/12/2023,"2,440.28"
Education & Skills,Education & Skills,Capital Expenditure,Payments to Contractor,KN Services Staffordshire Ltd,14/12/2023,"4,103.72"
"Communities, Customer & Commercial Services",ICT,Supplies & Services,Text Messages,K M BUSINESS SOLUTIONS UK LTD,05/12/2023,267.24
"Communities, Customer & Commercial Services",ICT,Supplies & Services,Text Messages,K M BUSINESS SOLUTIONS UK LTD,05/12/2023,425.79
"Communities, Customer & Commercial Services",ICT,Supplies & Services,Text Messages,K M BUSINESS SOLUTIONS UK LTD,05/12/2023,379.95
"Communities, Customer & Commercial Services",ICT,Supplies & Services,Text Messages,K M BUSINESS SOLUTIONS UK LTD,06/12/2023,338.34
"Communities, Customer & Commercial Services",Sport & Leisure,Employees,Hospitality,LACA LTD,04/12/2023,658.00
"Communities, Customer & Commercial Services",Community Services,Supplies & Services,Grants To Voluntary Organis,Lantern Academy,20/12/2023,450.00
"Communities, Customer & Commercial Services",Community Services,Supplies & Services,Grants To Voluntary Organis,LAWLEY & OVERDALE PARISH COUNCIL,08/12/2023,108.00
"Communities, Customer & Commercial Services",Community Services,Supplies & Services,Grants To Voluntary Organis,LAWLEY & OVERDALE PARISH COUNCIL,08/12/2023,105.84
"Communities, Customer & Commercial Services",Community Services,Supplies & Services,Grants To Voluntary Organis,LAWLEY & OVERDALE PARISH COUNCIL,18/12/2023,"1,800.00"
Neighbourhood & Enforcement Services,Safer & Stronger Communities,Supplies & Services,Other Services,LAWLEY & OVERDALE PARISH COUNCIL,13/12/2023,400.00
"Communities, Customer & Commercial Services",Sport & Leisure,Supplies & Services,Licences,L M Fitness UK Ltd,07/12/2023,789.17
"Communities, Customer & Commercial Services",Sport & Leisure,Supplies & Services,Licences,L M Fitness UK Ltd,07/12/2023,"1,045.00"
"Communities, Customer & Commercial Services",Sport & Leisure,Supplies & Services,Licences,L M Fitness UK Ltd,07/12/2023,"1,045.00"
"Communities, Customer & Commercial Services",Sport & Leisure,Supplies & Services,Licences,L M Fitness UK Ltd,07/12/2023,"1,097.25"
"Communities, Customer & Commercial Services",Sport & Leisure,Supplies & Services,Licences,L M Fitness UK Ltd,07/12/2023,650.00
"Communities, Customer & Commercial Services",Sport & Leisure,Supplies & Services,Licences,L M Fitness UK Ltd,12/12/2023,682.50
"Communities, Customer & Commercial Services",Sport & Leisure,Supplies & Services,Licences,L M Fitness UK Ltd,18/12/2023,"1,097.25"
Finance & Human Resources,Revenues,Supplies & Services,Printing - Other,LEXON GB LTD,19/12/2023,"1,992.35"
Children�s Safeguarding & Family Support,Child Protection & Family Support,Supplies & Services,Other Services,LEXTOX,29/12/2023,331.64
Education & Skills,SEND (0-25),Supplies & Services,Other Services,LINQ Healthcare Recruitment Specialists Ltd,21/12/2023,"2,550.00"
Education & Skills,SEND (0-25),Supplies & Services,Other Services,LINQ Healthcare Recruitment Specialists Ltd,21/12/2023,"2,550.00"
Adult Social Care,"Assurance, Transformation & Financial Management",Supplies & Services,Computer Software (Maint),LIQUIDLOGIC LIMITED,22/12/2023,799.73
"Communities, Customer & Commercial Services",Culture & Events,Supplies & Services,Equipment - Hire,LITE ,14/12/2023,"11,284.00"
Policy & Governance,Governance & Legal Services,Employees,Staff Training,LLG Legal Training,06/12/2023,130.00
"Communities, Customer & Commercial Services",Customer Relationships & Welfare Services,Employees,Staff Training,LOCAL REGISTRATION SERVICES ASSOCIATION,21/12/2023,400.00
"Communities, Customer & Commercial Services",Customer Relationships & Welfare Services,Employees,Staff Training,LOCAL REGISTRATION SERVICES ASSOCIATION,21/12/2023,400.00
"Communities, Customer & Commercial Services",Customer Relationships & Welfare Services,Employees,Staff Training,LOCAL REGISTRATION SERVICES ASSOCIATION,22/12/2023,400.00
Neighbourhood & Enforcement Services,Strategic Transport & Highway Network Management,Transport-Related Expenditure,Outside Hire,London Hire,20/12/2023,"240,137.04"
Neighbourhood & Enforcement Services,Strategic Transport & Highway Network Management,Transport-Related Expenditure,Vehicle Parts,London Hire,20/12/2023,492.26
Neighbourhood & Enforcement Services,Safer & Stronger Communities,Supplies & Services,Other Services,LOUDMOUTH EDUCATION & TRAINING LTD,13/12/2023,725.00
Prosperity & Investment,BiT,Capital Expenditure,Payments to Contractor,L Partnerships Limited,19/12/2023,"201,127.12"
Prosperity & Investment,Regeneration & Investment,Capital Expenditure,External Professional Fees,L Partnerships Limited,08/12/2023,"22,986.81"
Prosperity & Investment,Regeneration & Investment,Capital Expenditure,Payments to Contractor,L Partnerships Limited,07/12/2023,"21,189.06"
Prosperity & Investment,Regeneration & Investment,Capital Expenditure,External Professional Fees,L Partnerships Limited,20/12/2023,"10,933.67"
Prosperity & Investment,Regeneration & Investment,Capital Expenditure,Payments to Contractor,L Partnerships Limited,20/12/2023,"1,152.39"
Neighbourhood & Enforcement Services,Neighbourhood & Environmental Services,Premises-Related Expenditure,Grounds Maintenance - Other,LUBBE & SONS LTD,15/12/2023,"3,125.25"
Neighbourhood & Enforcement Services,Neighbourhood & Environmental Services,Premises-Related Expenditure,Grounds Maintenance - Other,LUBBE & SONS LTD,20/12/2023,499.95
Adult Social Care,My Options,Supplies & Services,Respite Care,REDACTED PERSONAL INFORMATION,12/12/2023,"1,159.48"
Adult Social Care,My Options,Supplies & Services,Respite Care,REDACTED PERSONAL INFORMATION,12/12/2023,856.80
Adult Social Care,My Options,Supplies & Services,Respite Care,REDACTED PERSONAL INFORMATION,12/12/2023,"1,159.48"
Neighbourhood & Enforcement Services,Safer & Stronger Communities,Supplies & Services,Other Services,M & BG Limited,22/12/2023,"5,750.00"
Children�s Safeguarding & Family Support,"Family Placements, Children in Care, Leaving Care & Emergency Duty Team",Supplies & Services,Aids & Appliances,M A S Associates,07/12/2023,300.00
Education & Skills,Pupil Support Services,Third Party Payments,DSG - High Needs Block,MADELEY ACADEMY TRUST LTD,08/12/2023,"69,703.00"
Finance & Human Resources,Revenues,Supplies & Services,Printing - Other,MailSolutions,05/12/2023,109.00
"Communities, Customer & Commercial Services",ICT,Supplies & Services,Comp Software (Purch / Hire),Man and Machine,07/12/2023,"46,774.64"
"Communities, Customer & Commercial Services",ICT,Supplies & Services,Comp Software (Purch / Hire),Man and Machine,07/12/2023,"4,400.00"
"Communities, Customer & Commercial Services",ICT,Supplies & Services,Comp Software (Purch / Hire),Man and Machine,07/12/2023,"108,360.00"
"Communities, Customer & Commercial Services",ICT,Supplies & Services,Comp Software (Purch / Hire),Man and Machine,07/12/2023,"34,365.60"
"Communities, Customer & Commercial Services",ICT,Supplies & Services,Comp Software (Purch / Hire),Man and Machine,07/12/2023,"137,650.40"
"Housing, Employment & Infrastructure",Inward Investment & Business Support,Supplies & Services,Consultancy,Mango Studios London Ltd,07/12/2023,375.00
"Housing, Employment & Infrastructure",Inward Investment & Business Support,Supplies & Services,Consultancy,Mango Studios London Ltd,07/12/2023,625.00
Education & Skills,SEND (0-25),Third Party Payments,DSG - High Needs Block,Maple Hayes Dyslexia School & Research Centre,21/12/2023,"7,835.20"
"Communities, Customer & Commercial Services",Sport & Leisure,Supplies & Services,Equipment - Purchase,M H Ltd,16/12/2023,390.00
Education & Skills,SEND (0-25),Third Party Payments,DSG - High Needs Block,M T Support Ltd,22/12/2023,765.65
Education & Skills,SEND (0-25),Third Party Payments,DSG - High Needs Block,M T Support Ltd,22/12/2023,489.20
Prosperity & Investment,Regeneration & Investment,Capital Expenditure,External Professional Fees,Market Curators,14/12/2023,900.00
Finance & Human Resources,Revenues,Supplies & Services,Printing - Other,MARKETING AT THE MILL,05/12/2023,155.00
Finance & Human Resources,Revenues,Supplies & Services,Printing - Other,MARKETING AT THE MILL,05/12/2023,235.00
Finance & Human Resources,Revenues,Supplies & Services,Printing - Other,MARKETING AT THE MILL,12/12/2023,475.00
Neighbourhood & Enforcement Services,Neighbourhood & Environmental Services,Premises-Related Expenditure,Grounds Maintenance - Other,MARMAX PRODUCTS LTD,07/12/2023,331.20
Neighbourhood & Enforcement Services,Neighbourhood & Environmental Services,Premises-Related Expenditure,Grounds Maintenance - Other,MARMAX PRODUCTS LTD,07/12/2023,335.60
Neighbourhood & Enforcement Services,Neighbourhood & Environmental Services,Premises-Related Expenditure,Grounds Maintenance - Other,MARMAX PRODUCTS LTD,07/12/2023,335.60
Neighbourhood & Enforcement Services,Neighbourhood & Environmental Services,Premises-Related Expenditure,Grounds Maintenance - Other,MARMAX PRODUCTS LTD,12/12/2023,856.80
Corporate Items,Corporate Codes,Employees,Agency Supply Costs,Matrix SCM,05/12/2023,"37,829.69"
Corporate Items,Corporate Codes,Employees,Agency Supply Costs,Matrix SCM,12/12/2023,"37,487.24"
Corporate Items,Corporate Codes,Employees,Agency Supply Costs,Matrix SCM,19/12/2023,"40,660.83"
Corporate Items,Corporate Codes,Employees,Agency Supply Costs,Matrix SCM,22/12/2023,"36,399.59"
Finance & Human Resources,Human Resources,Employees,Criminal Records Bureau Checks,Matrix Security Watchdog,04/12/2023,563.17
Prosperity & Investment,Development Management,Supplies & Services,Consultancy,M C and Associates,20/12/2023,247.50
Prosperity & Investment,Development Management,Supplies & Services,Consultancy,M C and Associates,20/12/2023,180.00
Prosperity & Investment,Development Management,Supplies & Services,Consultancy,M C and Associates,20/12/2023,157.50
Prosperity & Investment,Development Management,Supplies & Services,Consultancy,M C and Associates,20/12/2023,180.00
Children�s Safeguarding & Family Support,Child Protection & Family Support,Premises-Related Expenditure,Hire Of Rooms,MEETING POINT TRUST LTD,29/12/2023,115.00
Children�s Safeguarding & Family Support,Family Connect & Childrens Centres,Employees,Staff Training,MEETING POINT TRUST LTD,11/12/2023,153.05
Children�s Safeguarding & Family Support,"Family Placements, Children in Care, Leaving Care & Emergency Duty Team",Premises-Related Expenditure,Hire Of Rooms,MEETING POINT TRUST LTD,19/12/2023,122.10
Education & Skills,Consultancy & Advisory Services,Premises-Related Expenditure,Hire Of Rooms,MEETING POINT TRUST LTD,12/12/2023,140.00
Education & Skills,Consultancy & Advisory Services,Premises-Related Expenditure,Hire Of Rooms,MEETING POINT TRUST LTD,12/12/2023,115.00
Education & Skills,Consultancy & Advisory Services,Premises-Related Expenditure,Hire Of Rooms,MEETING POINT TRUST LTD,12/12/2023,115.00
Education & Skills,Consultancy & Advisory Services,Premises-Related Expenditure,Hire Of Rooms,MEETING POINT TRUST LTD,12/12/2023,115.00
Education & Skills,Consultancy & Advisory Services,Premises-Related Expenditure,Hire Of Rooms,MEETING POINT TRUST LTD,19/12/2023,115.00
Education & Skills,Skills,Premises-Related Expenditure,Hire Of Rooms,MEETING POINT TRUST LTD,20/12/2023,110.00
Education & Skills,Skills,Premises-Related Expenditure,Hire Of Rooms,MEETING POINT TRUST LTD,20/12/2023,110.00
Education & Skills,Skills,Premises-Related Expenditure,Minor Alterations H & Safety,MEETING POINT TRUST LTD,20/12/2023,110.00
Education & Skills,Skills,Premises-Related Expenditure,Hire Of Rooms,MEETING POINT TRUST LTD,20/12/2023,140.00
Education & Skills,Skills,Premises-Related Expenditure,Hire Of Rooms,MEETING POINT TRUST LTD,20/12/2023,140.00
Policy & Governance,Governance & Legal Services,Premises-Related Expenditure,Hire Of Rooms,MEETING POINT TRUST LTD,14/12/2023,230.00
Policy & Governance,Governance & Legal Services,Premises-Related Expenditure,Hire Of Rooms,MEETING POINT TRUST LTD,21/12/2023,115.00
Children�s Safeguarding & Family Support,Family Connect & Childrens Centres,Supplies & Services,Conference Expenses,Mercure Telford Centre Hotel,11/12/2023,"2,358.90"
Education & Skills,Consultancy & Advisory Services,Supplies & Services,Training Costs - Participants Recharged,Mercure Telford Centre Hotel,01/12/2023,573.66
Education & Skills,Consultancy & Advisory Services,Premises-Related Expenditure,Hire Of Rooms,Mercure Telford Centre Hotel,01/12/2023,596.54
Education & Skills,Consultancy & Advisory Services,Supplies & Services,Training Costs - Participants Recharged,Mercure Telford Centre Hotel,13/12/2023,124.37
Education & Skills,Consultancy & Advisory Services,Premises-Related Expenditure,Hire Of Rooms,Mercure Telford Centre Hotel,13/12/2023,124.46
Education & Skills,SEND (0-25),Premises-Related Expenditure,Hire Of Rooms,Mercure Telford Centre Hotel,22/12/2023,124.46
Education & Skills,SEND (0-25),Supplies & Services,Training Costs - Participants Recharged,Mercure Telford Centre Hotel,22/12/2023,188.10
Education & Skills,SEND (0-25),Premises-Related Expenditure,Hire Of Rooms,Mercure Telford Centre Hotel,22/12/2023,124.46
Neighbourhood & Enforcement Services,Enforcement,Premises-Related Expenditure,Preventative Maintenance,METRIC GROUP LTD,11/12/2023,884.00
Neighbourhood & Enforcement Services,Neighbourhood & Environmental Services,Premises-Related Expenditure,Grounds Maint - Playgrounds,Midland Playscape,01/12/2023,200.00
Children�s Safeguarding & Family Support,Child Protection & Family Support,Supplies & Services,Other Grants (Expenses),Midlands Partnership NHS Foundation Trust,15/12/2023,"37,228.50"
Children�s Safeguarding & Family Support,Child Protection & Family Support,Supplies & Services,Other Grants (Expenses),Midlands Partnership NHS Foundation Trust,22/12/2023,"10,395.67"
Children�s Safeguarding & Family Support,Child Protection & Family Support,Supplies & Services,Other Grants (Expenses),Midlands Partnership NHS Foundation Trust,22/12/2023,"38,000.00"
Health & Wellbeing,Consultant in Public Health,Supplies & Services,Sub Contractors,Midlands Partnership NHS Foundation Trust,08/12/2023,"261,802.50"
Health & Wellbeing,Consultant in Public Health,Supplies & Services,Service Contracts,Midlands Partnership NHS Foundation Trust,08/12/2023,"631,448.75"
Children�s Safeguarding & Family Support,"Family Placements, Children in Care, Leaving Care & Emergency Duty Team",Supplies & Services,Aids & Appliances,MIDSHIRES MOBILITY GROUP,07/12/2023,378.50
Children�s Safeguarding & Family Support,"Family Placements, Children in Care, Leaving Care & Emergency Duty Team",Supplies & Services,Aids & Appliances,MIDSHIRES MOBILITY GROUP,14/12/2023,"1,084.79"
Education & Skills,SEND (0-25),Supplies & Services,Health & Safety Expenses,MIDSHIRES MOBILITY GROUP,15/12/2023,"2,191.50"
Prosperity & Investment,Regeneration & Investment,Premises-Related Expenditure,Grounds Maintenance - L&CS,M LANDSCAPES LTD,11/12/2023,225.37
